Workbook

Sheet INTRO
B2: Joint request for selected PC medicines v.3.1
B4: As part of global efforts to accelerate expansion of preventive chemotherapy (PC) for control and elimination of lymphatic filariasis, schistosomiasis and soil-transmitted helminthiases, the World Health Organization (WHO) facilitates the supply of albendazole 400 mg tablets (GSK) to national lymphatic filariasis elimination programmes and national soil-transmitted helminth control programmes; diethylcarbamazine citrate 100 mg tablets (Eisai) to national lymphatic filariasis elimination programmes; mebendazole 500 mg tablets (J&J) for national soil-transmitted helminth control programmes; and praziquantel 600 mg tablets (Merck KGaA) for school-age children to national schistosomiasis control programmes. WHO also collaborates to supply ivermectin 3 mg tablets (Merck) for onchocerciasis and lymphatic filariasis donation programmes. This Excel-based tool is designed to assist countries in quantifying the number of tablets of relevant PC medicines required to reach the planned target population and districts for the year of request. Output of the tool is a joint request for PC medicines, which can be printed, signed and submitted to WHO to request these medicines.
B6: Structure of the application (worksheets):
B8: INTRO | C8: This worksheet includes guides on how to complete the joint request for selected PC medicines and information about the status of PC for endemic diseases in the country.
B9: COUNTRY_INFO | C9: This worksheet includes information about administrative structure of the country, population by age group, status of endemicity for each disease, population requiring PC and planned interventions.
B10: DEC, ALB_MBD, PZQ and IVM | C10: These worksheets include information about endemic districts targeted for treatment with specified PC medicines, treatment plan, and number of tablets required and requested.
B11: SUMMARY | C11: This worksheet includes summary of number of tablets requested, information about stock, and date for submission of requested medicines. Before generating the report (run macros) please select the medicine for which the report is needed. Follow the same rule to see the number of people to be treated for the specific disease. This worksheet should be printed and submitted as a joint request for selected PC medicines (see the instruction for submission in the SUMMARY worksheet).
B13: Instruction for data entry
B15: Most of the cells in the above-mentioned worksheets include formula that are calculated automatically according to the treatment policy recommended by WHO for each disease. See the link http://www.who.int/neglected_diseases/preventive_chemotherapy/pct_manual/en/index.html
B17: Please enter your data into the cells according to their colour code:
C19: White - cell is not protected. Please enter the value of the requested indicator.
C21: Yellow - cell is protected and includes name of indicator. No data entry required.
C23: Orange - cell is not protected and includes a drop-down menu. Please select the value from the drop-down list.
C26: Green - cell is not protected and includes formula. Please change the value only if your data are different from those that are calculated automatically.
C29: Blue - cell is protected and includes formula. No data entry required.
B31: Country data
B33: COUNTRY | E33: Liberia
B35: Year for request of the medicine | E35: 2023
B37: Is country endemic for lymphatic filariasis (LF)? | E37: Endemic
B39: Is country endemic for onchocerciasis (ONCHO)? | E39: Endemic
B41: Is country endemic for soil-transmitted helminthiases (STH)? | E41: Endemic
B43: Is country endemic for schistosomiasis (SCH)? | E43: Endemic
B45: How many administrative units in the country? | E45: 15
B47: If demographical data at the second administrative level are not available by age group, please enter the proportion (%) of population by age group in the country. If data are available, please leave these cells blank.
B48: 1-4 years age | C48: Preschool-age children (PreSAC) | E48: 0.085
B49: 5-14 years age | C49: School-age children (SAC) | E49: 0.267
B50: 15 years + | C50: Adults | E50: 0.59

Sheet COUNTRY_INFO
A1: COUNTRY INFORMATION
A2: Administrative structure, population by age group, status of endemicity and planned interventions | V2: 1.0246
A4: TOTAL | D4: =SUM(D$9:D$1000) -> 4661796.863 | E4: =SUM(E$9:E$1000) -> 806828 | F4: =SUM(F$9:F$1000) -> 1244700 | G4: =SUM(G$9:G$1000) -> 2750459 | L4: =SUM(L$9:L$1000) -> 4436932.844 | M4: =SUM(M$9:M$1000) -> 4661796.863 | N4: =SUM(N$9:N$1000) -> 785789 | O4: =SUM(O$9:O$1000) -> 1508733
A6: Country administrative structure | D6: Population | H6: Endemicity | L6: Population requiring PC | P6: Number of treatment rounds planned for the year | T6: Criteria to apply for IVM+DEC+ALB therapy | U6: Epidemiological surveys planned for the year | AD6: End | AE6: popReqPC_Total | AF6: popReqPC_SAC | AG6: popReqPC_Adults | AH6: Treatment plan | AL6: 2019 | AM6: 2020 | AN6: 2019+2020
A7: Country | B7: Province/State | C7: District | D7: Total | E7: PreSAC | F7: SAC | G7: Adults | H7: LF | I7: Oncho | J7: STH | K7: SCH | L7: LF | M7: Oncho | N7: STH | O7: SCH | P7: LF | Q7: Oncho | R7: STH | S7: SCH | T7: LF | U7: LF | V7: Oncho | W7: STH | X7: SCH | Y7: IU_ID | Z7: IU_Name | AA7: x | AB7: x | AC7: x | AD7: x | AE7: x | AF7: x | AG7: x | AH7: x | AI7: target_SAC | AJ7: target_Adults | AK7: x | AL7: x | AM7: x | AN7: x
A9: =IF(INTRO!$E$33<>0,INTRO!$E$33, " ") -> Liberia | B9: Bomi | C9: Bomi | D9: 112922.6 | E9: =IF(INTRO!$E$48="","",ROUND($D9*INTRO!$E$48,0)) -> 9598 | F9: =IF(INTRO!$E$49="","",ROUND($D9*INTRO!$E$49,0)) -> 30150 | G9: =IF(INTRO!$E$50="","",ROUND($D9*INTRO!$E$50,0)) -> 66624 | H9: 0 | I9: 1 | J9: 2 | K9: 1 | L9: =IF(INTRO!$E$37="Endemic",IF($H9>0,IF($H9=4,"Unknown",IF($H9=99,"Stopped",$D9)),0),"Not required") -> 0 | M9: =IF(INTRO!$E$39="Endemic", IF($I9>0, IF($I9=4,"Unknown",IF($I9=99,"Stopped",$D9)), 0),"Not required") -> 112922.6 | N9: =IF(INTRO!$E$41="Endemic", IF(AND($J9>1,$J9<5), IF($J9=4, "Unknown", E9+F9), 0),"Not required") -> 39748 | O9: 0 | P9: 0 | Q9: 1 | R9: 0 | S9: 0 | V9: Yes | Y9: 26818 | Z9: Bomi | AD9: =VLOOKUP($Y9,[1]IU_PROJECTIONS!$F$5:$W$19,2,FALSE) -> 2 | AE9: =VLOOKUP($Y9,[1]IU_PROJECTIONS!$F$5:$W$19,13,FALSE) -> 40974 | AF9: =VLOOKUP($Y9,[1]IU_PROJECTIONS!$F$5:$W$19,11,FALSE) -> 30859 | AG9: =VLOOKUP($Y9,[1]IU_PROJECTIONS!$F$5:$W$19,12,FALSE) -> 10115 | AH9: =VLOOKUP($Y9,[1]IU_PROJECTIONS!$F$5:$W$19,14,FALSE) -> 1 | AI9: =VLOOKUP($Y9,[1]IU_PROJECTIONS!$F$5:$W$19,16,FALSE) -> 26715 | AJ9: =VLOOKUP($Y9,[1]IU_PROJECTIONS!$F$5:$W$19,17,FALSE) -> 10115 | AL9: 22714 | AM9: 1 | AN9: =AL9+AM9 -> 22715
A10: =IF(INTRO!$E$33<>0,INTRO!$E$33, " ") -> Liberia | B10: Bong | C10: Bong | D10: 447672.765 | E10: =IF(INTRO!$E$48="","",ROUND($D10*INTRO!$E$48,0)) -> 38052 | F10: =IF(INTRO!$E$49="","",ROUND($D10*INTRO!$E$49,0)) -> 119529 | G10: =IF(INTRO!$E$50="","",ROUND($D10*INTRO!$E$50,0)) -> 264127 | H10: 1 | I10: 1 | J10: 2 | K10: 3 | L10: =IF(INTRO!$E$37="Endemic",IF($H10>0,IF($H10=4,"Unknown",IF($H10=99,"Stopped",$D10)),0),"Not required") -> 447672.765 | M10: =IF(INTRO!$E$39="Endemic", IF($I10>0, IF($I10=4,"Unknown",IF($I10=99,"Stopped",$D10)), 0),"Not required") -> 447672.765 | N10: =IF(INTRO!$E$41="Endemic", IF(AND($J10>1,$J10<5), IF($J10=4, "Unknown", E10+F10), 0),"Not required") -> 157581 | O10: 237267 | P10: 1 | Q10: 1 | R10: 2 | S10: 1 | U10: TAS | V10: Yes | W10: Yes | X10: Yes | Y10: 26819 | Z10: Bong | AD10: =VLOOKUP($Y10,[1]IU_PROJECTIONS!$F$5:$W$19,2,FALSE) -> 3 | AE10: =VLOOKUP($Y10,[1]IU_PROJECTIONS!$F$5:$W$19,13,FALSE) -> 272302 | AF10: =VLOOKUP($Y10,[1]IU_PROJECTIONS!$F$5:$W$19,11,FALSE) -> 122338 | AG10: =VLOOKUP($Y10,[1]IU_PROJECTIONS!$F$5:$W$19,12,FALSE) -> 149964 | AH10: =VLOOKUP($Y10,[1]IU_PROJECTIONS!$F$5:$W$19,14,FALSE) -> 1 | AI10: =VLOOKUP($Y10,[1]IU_PROJECTIONS!$F$5:$W$19,16,FALSE) -> 71002 | AJ10: =VLOOKUP($Y10,[1]IU_PROJECTIONS!$F$5:$W$19,17,FALSE) -> 134398 | AL10: 110970 | AM10: 1 | AN10: =AL10+AM10 -> 110971
A11: =IF(INTRO!$E$33<>0,INTRO!$E$33, " ") -> Liberia | B11: Gbarpolu | C11: Gbarpolu | D11: 111941.419 | E11: =IF(INTRO!$E$48="","",ROUND($D11*INTRO!$E$48,0)) -> 9515 | F11: =IF(INTRO!$E$49="","",ROUND($D11*INTRO!$E$49,0)) -> 29888 | G11: =IF(INTRO!$E$50="","",ROUND($D11*INTRO!$E$50,0)) -> 66045 | H11: 0 | I11: 1 | J11: 1 | K11: 1 | L11: =IF(INTRO!$E$37="Endemic",IF($H11>0,IF($H11=4,"Unknown",IF($H11=99,"Stopped",$D11)),0),"Not required") -> 0 | M11: =IF(INTRO!$E$39="Endemic", IF($I11>0, IF($I11=4,"Unknown",IF($I11=99,"Stopped",$D11)), 0),"Not required") -> 111941.419 | N11: =IF(INTRO!$E$41="Endemic", IF(AND($J11>1,$J11<5), IF($J11=4, "Unknown", E11+F11), 0),"Not required") -> 0 | O11: 0 | P11: 0 | Q11: 1 | R11: 0 | S11: 0 | V11: Yes | W11: Yes | X11: Yes | Y11: 26820 | Z11: Gbarpolu | AD11: =VLOOKUP($Y11,[1]IU_PROJECTIONS!$F$5:$W$19,2,FALSE) -> 2 | AE11: =VLOOKUP($Y11,[1]IU_PROJECTIONS!$F$5:$W$19,13,FALSE) -> 34699 | AF11: =VLOOKUP($Y11,[1]IU_PROJECTIONS!$F$5:$W$19,11,FALSE) -> 30591 | AG11: =VLOOKUP($Y11,[1]IU_PROJECTIONS!$F$5:$W$19,12,FALSE) -> 4108 | AH11: =VLOOKUP($Y11,[1]IU_PROJECTIONS!$F$5:$W$19,14,FALSE) -> 1 | AI11: =VLOOKUP($Y11,[1]IU_PROJECTIONS!$F$5:$W$19,16,FALSE) -> 10854 | AJ11: =VLOOKUP($Y11,[1]IU_PROJECTIONS!$F$5:$W$19,17,FALSE) -> 4108 | AL11: 22288 | AM11: 1 | AN11: 22289
A12: =IF(INTRO!$E$33<>0,INTRO!$E$33, " ") -> Liberia | B12: Grand Bassa | C12: Grand Bassa | D12: 297605.164 | E12: =IF(INTRO!$E$48="","",ROUND($D12*INTRO!$E$48,0)) -> 25296 | F12: =IF(INTRO!$E$49="","",ROUND($D12*INTRO!$E$49,0)) -> 79461 | G12: =IF(INTRO!$E$50="","",ROUND($D12*INTRO!$E$50,0)) -> 175587 | H12: 1 | I12: 1 | J12: 2 | K12: 1 | L12: =IF(INTRO!$E$37="Endemic",IF($H12>0,IF($H12=4,"Unknown",IF($H12=99,"Stopped",$D12)),0),"Not required") -> 297605.164 | M12: =IF(INTRO!$E$39="Endemic", IF($I12>0, IF($I12=4,"Unknown",IF($I12=99,"Stopped",$D12)), 0),"Not required") -> 297605.164 | N12: =IF(INTRO!$E$41="Endemic", IF(AND($J12>1,$J12<5), IF($J12=4, "Unknown", E12+F12), 0),"Not required") -> 104757 | O12: 83329 | P12: 1 | Q12: 1 | R12: 1 | S12: 1 | U12: TAS | V12: Yes | W12: Yes | X12: Yes | Y12: 26821 | Z12: Grand Bassa | AD12: =VLOOKUP($Y12,[1]IU_PROJECTIONS!$F$5:$W$19,2,FALSE) -> 2 | AE12: =VLOOKUP($Y12,[1]IU_PROJECTIONS!$F$5:$W$19,13,FALSE) -> 91760 | AF12: =VLOOKUP($Y12,[1]IU_PROJECTIONS!$F$5:$W$19,11,FALSE) -> 81328 | AG12: =VLOOKUP($Y12,[1]IU_PROJECTIONS!$F$5:$W$19,12,FALSE) -> 10432 | AH12: =VLOOKUP($Y12,[1]IU_PROJECTIONS!$F$5:$W$19,14,FALSE) -> 1 | AI12: =VLOOKUP($Y12,[1]IU_PROJECTIONS!$F$5:$W$19,16,FALSE) -> 27554 | AJ12: =VLOOKUP($Y12,[1]IU_PROJECTIONS!$F$5:$W$19,17,FALSE) -> 10432 | AL12: 0 | AM12: 0 | AN12: 0
A13: =IF(INTRO!$E$33<>0,INTRO!$E$33, " ") -> Liberia | B13: Grand Cape Mount | C13: Grand Cape Mount | D13: 170588.68 | E13: =IF(INTRO!$E$48="","",ROUND($D13*INTRO!$E$48,0)) -> 14500 | F13: =IF(INTRO!$E$49="","",ROUND($D13*INTRO!$E$49,0)) -> 45547 | G13: =IF(INTRO!$E$50="","",ROUND($D13*INTRO!$E$50,0)) -> 100647 | H13: 1 | I13: 1 | J13: 2 | K13: 1 | L13: =IF(INTRO!$E$37="Endemic",IF($H13>0,IF($H13=4,"Unknown",IF($H13=99,"Stopped",$D13)),0),"Not required") -> 170588.68 | M13: =IF(INTRO!$E$39="Endemic", IF($I13>0, IF($I13=4,"Unknown",IF($I13=99,"Stopped",$D13)), 0),"Not required") -> 170588.68 | N13: =IF(INTRO!$E$41="Endemic", IF(AND($J13>1,$J13<5), IF($J13=4, "Unknown", E13+F13), 0),"Not required") -> 60047 | O13: 47765 | P13: 1 | Q13: 1 | R13: 1 | S13: 1 | U13: TAS | V13: Yes | W13: Yes | X13: Yes | Y13: 26822 | Z13: Grand Cape Mount | AD13: =VLOOKUP($Y13,[1]IU_PROJECTIONS!$F$5:$W$19,2,FALSE) -> 3 | AE13: =VLOOKUP($Y13,[1]IU_PROJECTIONS!$F$5:$W$19,13,FALSE) -> 86232 | AF13: =VLOOKUP($Y13,[1]IU_PROJECTIONS!$F$5:$W$19,11,FALSE) -> 46617 | AG13: =VLOOKUP($Y13,[1]IU_PROJECTIONS!$F$5:$W$19,12,FALSE) -> 39615 | AH13: =VLOOKUP($Y13,[1]IU_PROJECTIONS!$F$5:$W$19,14,FALSE) -> 1 | AI13: =VLOOKUP($Y13,[1]IU_PROJECTIONS!$F$5:$W$19,16,FALSE) -> 46617 | AJ13: =VLOOKUP($Y13,[1]IU_PROJECTIONS!$F$5:$W$19,17,FALSE) -> 39615 | AL13: 0 | AM13: 0 | AN13: 0
A14: =IF(INTRO!$E$33<>0,INTRO!$E$33, " ") -> Liberia | B14: Grand Gedeh | C14: Grand Gedeh | D14: 168148.49 | E14: =IF(INTRO!$E$48="","",ROUND($D14*INTRO!$E$48,0)) -> 14293 | F14: =IF(INTRO!$E$49="","",ROUND($D14*INTRO!$E$49,0)) -> 44896 | G14: =IF(INTRO!$E$50="","",ROUND($D14*INTRO!$E$50,0)) -> 99208 | H14: 1 | I14: 1 | J14: 1 | K14: 2 | L14: =IF(INTRO!$E$37="Endemic",IF($H14>0,IF($H14=4,"Unknown",IF($H14=99,"Stopped",$D14)),0),"Not required") -> 168148.49 | M14: =IF(INTRO!$E$39="Endemic", IF($I14>0, IF($I14=4,"Unknown",IF($I14=99,"Stopped",$D14)), 0),"Not required") -> 168148.49 | N14: =IF(INTRO!$E$41="Endemic", IF(AND($J14>1,$J14<5), IF($J14=4, "Unknown", E14+F14), 0),"Not required") -> 0 | O14: 0 | P14: 1 | Q14: 1 | R14: 0 | S14: 0 | U14: TAS | V14: Yes | W14: Yes | X14: Yes | Y14: 26823 | Z14: Grand Gedeh | AD14: =VLOOKUP($Y14,[1]IU_PROJECTIONS!$F$5:$W$19,2,FALSE) -> 3 | AE14: =VLOOKUP($Y14,[1]IU_PROJECTIONS!$F$5:$W$19,13,FALSE) -> 71856 | AF14: =VLOOKUP($Y14,[1]IU_PROJECTIONS!$F$5:$W$19,11,FALSE) -> 45949 | AG14: =VLOOKUP($Y14,[1]IU_PROJECTIONS!$F$5:$W$19,12,FALSE) -> 25907 | AH14: =VLOOKUP($Y14,[1]IU_PROJECTIONS!$F$5:$W$19,14,FALSE) -> 1 | AI14: =VLOOKUP($Y14,[1]IU_PROJECTIONS!$F$5:$W$19,16,FALSE) -> 5621 | AJ14: =VLOOKUP($Y14,[1]IU_PROJECTIONS!$F$5:$W$19,17,FALSE) -> 10640 | AL14: 22000 | AM14: 1 | AN14: 22001
A15: =IF(INTRO!$E$33<>0,INTRO!$E$33, " ") -> Liberia | B15: Grand Kru | C15: Grand Kru | D15: 77744.045 | E15: =IF(INTRO!$E$48="","",ROUND($D15*INTRO!$E$48,0)) -> 6608 | F15: =IF(INTRO!$E$49="","",ROUND($D15*INTRO!$E$49,0)) -> 20758 | G15: =IF(INTRO!$E$50="","",ROUND($D15*INTRO!$E$50,0)) -> 45869 | H15: 1 | I15: 1 | J15: 3 | K15: 0 | L15: =IF(INTRO!$E$37="Endemic",IF($H15>0,IF($H15=4,"Unknown",IF($H15=99,"Stopped",$D15)),0),"Not required") -> 77744.045 | M15: =IF(INTRO!$E$39="Endemic", IF($I15>0, IF($I15=4,"Unknown",IF($I15=99,"Stopped",$D15)), 0),"Not required") -> 77744.045 | N15: =IF(INTRO!$E$41="Endemic", IF(AND($J15>1,$J15<5), IF($J15=4, "Unknown", E15+F15), 0),"Not required") -> 27366 | O15: 0 | P15: 1 | Q15: 1 | R15: 2 | S15: 0 | U15: TAS | V15: Yes | W15: Yes | X15: Yes | Y15: 26824 | Z15: Grand Kru | AD15: =VLOOKUP($Y15,[1]IU_PROJECTIONS!$F$5:$W$19,2,FALSE) -> 0 | AE15: =VLOOKUP($Y15,[1]IU_PROJECTIONS!$F$5:$W$19,13,FALSE) -> 0 | AF15: =VLOOKUP($Y15,[1]IU_PROJECTIONS!$F$5:$W$19,11,FALSE) -> 0 | AG15: =VLOOKUP($Y15,[1]IU_PROJECTIONS!$F$5:$W$19,12,FALSE) -> 0 | AH15: =VLOOKUP($Y15,[1]IU_PROJECTIONS!$F$5:$W$19,14,FALSE) -> 0 | AI15: =VLOOKUP($Y15,[1]IU_PROJECTIONS!$F$5:$W$19,16,FALSE) -> 0 | AJ15: =VLOOKUP($Y15,[1]IU_PROJECTIONS!$F$5:$W$19,17,FALSE) -> 0 | AL15: 0 | AM15: 0 | AN15: 0
A16: =IF(INTRO!$E$33<>0,INTRO!$E$33, " ") -> Liberia | B16: Lofa | C16: Lofa | D16: 371666.462 | E16: =IF(INTRO!$E$48="","",ROUND($D16*INTRO!$E$48,0)) -> 31592 | F16: =IF(INTRO!$E$49="","",ROUND($D16*INTRO!$E$49,0)) -> 99235 | G16: =IF(INTRO!$E$50="","",ROUND($D16*INTRO!$E$50,0)) -> 219283 | H16: 1 | I16: 1 | J16: 1 | K16: 2 | L16: =IF(INTRO!$E$37="Endemic",IF($H16>0,IF($H16=4,"Unknown",IF($H16=99,"Stopped",$D16)),0),"Not required") -> 371666.462 | M16: =IF(INTRO!$E$39="Endemic", IF($I16>0, IF($I16=4,"Unknown",IF($I16=99,"Stopped",$D16)), 0),"Not required") -> 371666.462 | N16: =IF(INTRO!$E$41="Endemic", IF(AND($J16>1,$J16<5), IF($J16=4, "Unknown", E16+F16), 0),"Not required") -> 0 | O16: 301050 | P16: 1 | Q16: 1 | R16: 0 | S16: 1 | U16: TAS | V16: Yes | W16: Yes | X16: Yes | Y16: 26825 | Z16: Lofa | AD16: =VLOOKUP($Y16,[1]IU_PROJECTIONS!$F$5:$W$19,2,FALSE) -> 3 | AE16: =VLOOKUP($Y16,[1]IU_PROJECTIONS!$F$5:$W$19,13,FALSE) -> 203540 | AF16: =VLOOKUP($Y16,[1]IU_PROJECTIONS!$F$5:$W$19,11,FALSE) -> 101568 | AG16: =VLOOKUP($Y16,[1]IU_PROJECTIONS!$F$5:$W$19,12,FALSE) -> 101972 | AH16: =VLOOKUP($Y16,[1]IU_PROJECTIONS!$F$5:$W$19,14,FALSE) -> 1 | AI16: =VLOOKUP($Y16,[1]IU_PROJECTIONS!$F$5:$W$19,16,FALSE) -> 41949 | AJ16: =VLOOKUP($Y16,[1]IU_PROJECTIONS!$F$5:$W$19,17,FALSE) -> 79402 | AL16: 97412 | AM16: 1 | AN16: 97413
A17: =IF(INTRO!$E$33<>0,INTRO!$E$33, " ") -> Liberia | B17: Margibi | C17: Margibi | D17: 281806.21 | E17: =IF(INTRO!$E$48="","",ROUND($D17*INTRO!$E$48,0)) -> 23954 | F17: =IF(INTRO!$E$49="","",ROUND($D17*INTRO!$E$49,0)) -> 75242 | G17: =IF(INTRO!$E$50="","",ROUND($D17*INTRO!$E$50,0)) -> 166266 | H17: 1 | I17: 1 | J17: 1 | K17: 1 | L17: =IF(INTRO!$E$37="Endemic",IF($H17>0,IF($H17=4,"Unknown",IF($H17=99,"Stopped",$D17)),0),"Not required") -> 281806.21 | M17: =IF(INTRO!$E$39="Endemic", IF($I17>0, IF($I17=4,"Unknown",IF($I17=99,"Stopped",$D17)), 0),"Not required") -> 281806.21 | N17: =IF(INTRO!$E$41="Endemic", IF(AND($J17>1,$J17<5), IF($J17=4, "Unknown", E17+F17), 0),"Not required") -> 0 | O17: 0 | P17: 1 | Q17: 1 | R17: 0 | S17: 0 | U17: TAS | V17: Yes | W17: Yes | X17: Yes | Y17: 26826 | Z17: Margibi | AD17: =VLOOKUP($Y17,[1]IU_PROJECTIONS!$F$5:$W$19,2,FALSE) -> 2 | AE17: =VLOOKUP($Y17,[1]IU_PROJECTIONS!$F$5:$W$19,13,FALSE) -> 106165 | AF17: =VLOOKUP($Y17,[1]IU_PROJECTIONS!$F$5:$W$19,11,FALSE) -> 77011 | AG17: =VLOOKUP($Y17,[1]IU_PROJECTIONS!$F$5:$W$19,12,FALSE) -> 29154 | AH17: =VLOOKUP($Y17,[1]IU_PROJECTIONS!$F$5:$W$19,14,FALSE) -> 1 | AI17: =VLOOKUP($Y17,[1]IU_PROJECTIONS!$F$5:$W$19,16,FALSE) -> 77011 | AJ17: =VLOOKUP($Y17,[1]IU_PROJECTIONS!$F$5:$W$19,17,FALSE) -> 29154 | AL17: 56748 | AM17: 1 | AN17: 56749
A18: =IF(INTRO!$E$33<>0,INTRO!$E$33, " ") -> Liberia | B18: Maryland | C18: Maryland | D18: 182485.372 | E18: =IF(INTRO!$E$48="","",ROUND($D18*INTRO!$E$48,0)) -> 15511 | F18: =IF(INTRO!$E$49="","",ROUND($D18*INTRO!$E$49,0)) -> 48724 | G18: =IF(INTRO!$E$50="","",ROUND($D18*INTRO!$E$50,0)) -> 107666 | H18: 1 | I18: 1 | J18: 3 | K18: 3 | L18: =IF(INTRO!$E$37="Endemic",IF($H18>0,IF($H18=4,"Unknown",IF($H18=99,"Stopped",$D18)),0),"Not required") -> 182485.372 | M18: =IF(INTRO!$E$39="Endemic", IF($I18>0, IF($I18=4,"Unknown",IF($I18=99,"Stopped",$D18)), 0),"Not required") -> 182485.372 | N18: =IF(INTRO!$E$41="Endemic", IF(AND($J18>1,$J18<5), IF($J18=4, "Unknown", E18+F18), 0),"Not required") -> 64235 | O18: 147813 | P18: 1 | Q18: 1 | R18: 2 | S18: 1 | U18: TAS | V18: Yes | W18: Yes | X18: Yes | Y18: 26827 | Z18: Maryland | AD18: =VLOOKUP($Y18,[1]IU_PROJECTIONS!$F$5:$W$19,2,FALSE) -> 3 | AE18: =VLOOKUP($Y18,[1]IU_PROJECTIONS!$F$5:$W$19,13,FALSE) -> 109554 | AF18: =VLOOKUP($Y18,[1]IU_PROJECTIONS!$F$5:$W$19,11,FALSE) -> 49869 | AG18: =VLOOKUP($Y18,[1]IU_PROJECTIONS!$F$5:$W$19,12,FALSE) -> 59685 | AH18: =VLOOKUP($Y18,[1]IU_PROJECTIONS!$F$5:$W$19,14,FALSE) -> 1 | AI18: =VLOOKUP($Y18,[1]IU_PROJECTIONS!$F$5:$W$19,16,FALSE) -> 26946 | AJ18: =VLOOKUP($Y18,[1]IU_PROJECTIONS!$F$5:$W$19,17,FALSE) -> 51007 | AL18: 25119 | AM18: 1 | AN18: 25120
A19: =IF(INTRO!$E$33<>0,INTRO!$E$33, " ") -> Liberia | B19: Montserrado | C19: Montserrado | D19: 1495877 | E19: 537725 | F19: =IF(INTRO!$E$49="","",ROUND($D19*INTRO!$E$49,0)) -> 399399 | G19: =IF(INTRO!$E$50="","",ROUND($D19*INTRO!$E$50,0)) -> 882567 | H19: 1 | I19: 1 | J19: 1 | K19: 1 | L19: =IF(INTRO!$E$37="Endemic",IF($H19>0,IF($H19=4,"Unknown",IF($H19=99,"Stopped",$D19)),0),"Not required") -> 1495877 | M19: =IF(INTRO!$E$39="Endemic", IF($I19>0, IF($I19=4,"Unknown",IF($I19=99,"Stopped",$D19)), 0),"Not required") -> 1495877 | N19: =IF(INTRO!$E$41="Endemic", IF(AND($J19>1,$J19<5), IF($J19=4, "Unknown", E19+F19), 0),"Not required") -> 0 | O19: 164014 | P19: 1 | Q19: 1 | R19: 0 | S19: 1 | U19: TAS | V19: Yes | W19: Yes | X19: Yes | Y19: 26828 | Z19: Montserrado | AD19: =VLOOKUP($Y19,[1]IU_PROJECTIONS!$F$5:$W$19,2,FALSE) -> 2 | AE19: =VLOOKUP($Y19,[1]IU_PROJECTIONS!$F$5:$W$19,13,FALSE) -> 64132 | AF19: =VLOOKUP($Y19,[1]IU_PROJECTIONS!$F$5:$W$19,11,FALSE) -> 57037 | AG19: =VLOOKUP($Y19,[1]IU_PROJECTIONS!$F$5:$W$19,12,FALSE) -> 7095 | AH19: =VLOOKUP($Y19,[1]IU_PROJECTIONS!$F$5:$W$19,14,FALSE) -> 1 | AI19: =VLOOKUP($Y19,[1]IU_PROJECTIONS!$F$5:$W$19,16,FALSE) -> 18741 | AJ19: =VLOOKUP($Y19,[1]IU_PROJECTIONS!$F$5:$W$19,17,FALSE) -> 7095 | AL19: 0 | AM19: 0 | AN19: 0
A20: =IF(INTRO!$E$33<>0,INTRO!$E$33, " ") -> Liberia | B20: Nimba | C20: Nimba | D20: 620234.017 | E20: =IF(INTRO!$E$48="","",ROUND($D20*INTRO!$E$48,0)) -> 52720 | F20: =IF(INTRO!$E$49="","",ROUND($D20*INTRO!$E$49,0)) -> 165602 | G20: =IF(INTRO!$E$50="","",ROUND($D20*INTRO!$E$50,0)) -> 365938 | H20: 1 | I20: 1 | J20: 2 | K20: 2 | L20: =IF(INTRO!$E$37="Endemic",IF($H20>0,IF($H20=4,"Unknown",IF($H20=99,"Stopped",$D20)),0),"Not required") -> 620234.017 | M20: =IF(INTRO!$E$39="Endemic", IF($I20>0, IF($I20=4,"Unknown",IF($I20=99,"Stopped",$D20)), 0),"Not required") -> 620234.017 | N20: =IF(INTRO!$E$41="Endemic", IF(AND($J20>1,$J20<5), IF($J20=4, "Unknown", E20+F20), 0),"Not required") -> 218322 | O20: 502390 | P20: 1 | Q20: 1 | R20: 2 | S20: 1 | U20: TAS | V20: Yes | W20: Yes | X20: Yes | Y20: 26829 | Z20: Nimba | AD20: =VLOOKUP($Y20,[1]IU_PROJECTIONS!$F$5:$W$19,2,FALSE) -> 3 | AE20: =VLOOKUP($Y20,[1]IU_PROJECTIONS!$F$5:$W$19,13,FALSE) -> 291330 | AF20: =VLOOKUP($Y20,[1]IU_PROJECTIONS!$F$5:$W$19,11,FALSE) -> 169496 | AG20: =VLOOKUP($Y20,[1]IU_PROJECTIONS!$F$5:$W$19,12,FALSE) -> 121834 | AH20: =VLOOKUP($Y20,[1]IU_PROJECTIONS!$F$5:$W$19,14,FALSE) -> 1 | AI20: =VLOOKUP($Y20,[1]IU_PROJECTIONS!$F$5:$W$19,16,FALSE) -> 38082 | AJ20: =VLOOKUP($Y20,[1]IU_PROJECTIONS!$F$5:$W$19,17,FALSE) -> 72085 | AL20: 182181 | AM20: 1 | AN20: 182182
A21: =IF(INTRO!$E$33<>0,INTRO!$E$33, " ") -> Liberia | B21: Rivercess | C21: Rivercess | D21: 95994.42 | E21: =IF(INTRO!$E$48="","",ROUND($D21*INTRO!$E$48,0)) -> 8160 | F21: =IF(INTRO!$E$49="","",ROUND($D21*INTRO!$E$49,0)) -> 25631 | G21: =IF(INTRO!$E$50="","",ROUND($D21*INTRO!$E$50,0)) -> 56637 | H21: 1 | I21: 1 | J21: 2 | K21: 0 | L21: =IF(INTRO!$E$37="Endemic",IF($H21>0,IF($H21=4,"Unknown",IF($H21=99,"Stopped",$D21)),0),"Not required") -> 95994.42 | M21: =IF(INTRO!$E$39="Endemic", IF($I21>0, IF($I21=4,"Unknown",IF($I21=99,"Stopped",$D21)), 0),"Not required") -> 95994.42 | N21: =IF(INTRO!$E$41="Endemic", IF(AND($J21>1,$J21<5), IF($J21=4, "Unknown", E21+F21), 0),"Not required") -> 33791 | O21: 0 | P21: 1 | Q21: 1 | R21: 1 | S21: 0 | U21: TAS | V21: Yes | W21: Yes | X21: Yes | Y21: 26830 | Z21: Rivercess | AD21: =VLOOKUP($Y21,[1]IU_PROJECTIONS!$F$5:$W$19,2,FALSE) -> 2 | AE21: =VLOOKUP($Y21,[1]IU_PROJECTIONS!$F$5:$W$19,13,FALSE) -> 29191 | AF21: =VLOOKUP($Y21,[1]IU_PROJECTIONS!$F$5:$W$19,11,FALSE) -> 26235 | AG21: =VLOOKUP($Y21,[1]IU_PROJECTIONS!$F$5:$W$19,12,FALSE) -> 2956 | AH21: =VLOOKUP($Y21,[1]IU_PROJECTIONS!$F$5:$W$19,14,FALSE) -> 1 | AI21: =VLOOKUP($Y21,[1]IU_PROJECTIONS!$F$5:$W$19,16,FALSE) -> 7811 | AJ21: =VLOOKUP($Y21,[1]IU_PROJECTIONS!$F$5:$W$19,17,FALSE) -> 2956 | AL21: 0 | AM21: 0 | AN21: 0
A22: =IF(INTRO!$E$33<>0,INTRO!$E$33, " ") -> Liberia | B22: Rivergee | C22: Rivergee | D22: 89659.115 | E22: =IF(INTRO!$E$48="","",ROUND($D22*INTRO!$E$48,0)) -> 7621 | F22: =IF(INTRO!$E$49="","",ROUND($D22*INTRO!$E$49,0)) -> 23939 | G22: =IF(INTRO!$E$50="","",ROUND($D22*INTRO!$E$50,0)) -> 52899 | H22: 1 | I22: 1 | J22: 2 | K22: 1 | L22: =IF(INTRO!$E$37="Endemic",IF($H22>0,IF($H22=4,"Unknown",IF($H22=99,"Stopped",$D22)),0),"Not required") -> 89659.115 | M22: =IF(INTRO!$E$39="Endemic", IF($I22>0, IF($I22=4,"Unknown",IF($I22=99,"Stopped",$D22)), 0),"Not required") -> 89659.115 | N22: =IF(INTRO!$E$41="Endemic", IF(AND($J22>1,$J22<5), IF($J22=4, "Unknown", E22+F22), 0),"Not required") -> 31560 | O22: 25105 | P22: 1 | Q22: 1 | R22: 1 | S22: 1 | U22: TAS | V22: Yes | W22: Yes | X22: Yes | Y22: 26831 | Z22: Rivergee | AD22: =VLOOKUP($Y22,[1]IU_PROJECTIONS!$F$5:$W$19,2,FALSE) -> 2 | AE22: =VLOOKUP($Y22,[1]IU_PROJECTIONS!$F$5:$W$19,13,FALSE) -> 31175 | AF22: =VLOOKUP($Y22,[1]IU_PROJECTIONS!$F$5:$W$19,11,FALSE) -> 24500 | AG22: =VLOOKUP($Y22,[1]IU_PROJECTIONS!$F$5:$W$19,12,FALSE) -> 6675 | AH22: =VLOOKUP($Y22,[1]IU_PROJECTIONS!$F$5:$W$19,14,FALSE) -> 1 | AI22: =VLOOKUP($Y22,[1]IU_PROJECTIONS!$F$5:$W$19,16,FALSE) -> 17632 | AJ22: =VLOOKUP($Y22,[1]IU_PROJECTIONS!$F$5:$W$19,17,FALSE) -> 6675 | AL22: 0 | AM22: 0 | AN22: 0
A23: =IF(INTRO!$E$33<>0,INTRO!$E$33, " ") -> Liberia | B23: Sinoe | C23: Sinoe | D23: 137451.104 | E23: =IF(INTRO!$E$48="","",ROUND($D23*INTRO!$E$48,0)) -> 11683 | F23: =IF(INTRO!$E$49="","",ROUND($D23*INTRO!$E$49,0)) -> 36699 | G23: =IF(INTRO!$E$50="","",ROUND($D23*INTRO!$E$50,0)) -> 81096 | H23: 1 | I23: 1 | J23: 3 | K23: 1 | L23: =IF(INTRO!$E$37="Endemic",IF($H23>0,IF($H23=4,"Unknown",IF($H23=99,"Stopped",$D23)),0),"Not required") -> 137451.104 | M23: =IF(INTRO!$E$39="Endemic", IF($I23>0, IF($I23=4,"Unknown",IF($I23=99,"Stopped",$D23)), 0),"Not required") -> 137451.104 | N23: =IF(INTRO!$E$41="Endemic", IF(AND($J23>1,$J23<5), IF($J23=4, "Unknown", E23+F23), 0),"Not required") -> 48382 | O23: 0 | P23: 1 | Q23: 1 | R23: 2 | S23: 0 | U23: TAS | V23: Yes | W23: Yes | X23: Yes | Y23: 26832 | Z23: Sinoe | AD23: =VLOOKUP($Y23,[1]IU_PROJECTIONS!$F$5:$W$19,2,FALSE) -> 2 | AE23: =VLOOKUP($Y23,[1]IU_PROJECTIONS!$F$5:$W$19,13,FALSE) -> 27701 | AF23: =VLOOKUP($Y23,[1]IU_PROJECTIONS!$F$5:$W$19,11,FALSE) -> 26235 | AG23: =VLOOKUP($Y23,[1]IU_PROJECTIONS!$F$5:$W$19,12,FALSE) -> 1466 | AH23: =VLOOKUP($Y23,[1]IU_PROJECTIONS!$F$5:$W$19,14,FALSE) -> 0 | AI23: =VLOOKUP($Y23,[1]IU_PROJECTIONS!$F$5:$W$19,16,FALSE) -> 0 | AJ23: =VLOOKUP($Y23,[1]IU_PROJECTIONS!$F$5:$W$19,17,FALSE) -> 0 | AL23: 0 | AM23: 0 | AN23: 0

Sheet DEC (hidden)
A1: Diethylcarbamazine citrate (DEC)
A2: Administrative structure, eligible population by age group, treatment plan and information about tablets
A4: TOTAL | D4: =SUM(D$9:D$1000) -> 0 | E4: =SUM(E$9:E$1000) -> 0 | F4: =SUM(F$9:F$1000) -> 0 | G4: =SUM(G$9:G$1000) -> 0 | I4: =SUM(I$9:I$1000) -> 0 | J4: =SUM(J$9:J$1000) -> 0 | K4: =SUM(K$9:K$1000) -> 0 | L4: =SUM(L$9:L$1000) -> 0 | M4: =SUM(M$9:M$1000) -> 0
A6: Country administrative structure | D6: Population requiring treatment with DEC | H6: Treatment plan | I6: Target population | J6: Diethylcarbamazine citrate (DEC)
A7: Country | B7: Province/State | C7: District | D7: PreSAC | E7: SAC | F7: Adults | G7: Total | H7: LF | I7: LF | J7: Total required | K7: Remaining in stock | L7: Tablets to be procured | M7: Bottle (100 mg) 1000 tablets
A9: =IF(INTRO!$E$39<>"Non-endemic", " ", IF(INTRO!$E$37="Non-endemic"," ", IF(COUNTRY_INFO!A9=0," ",COUNTRY_INFO!A9))) ->  | B9: =IF(INTRO!$E$39<>"Non-endemic", " ", IF(INTRO!$E$37="Non-endemic"," ", IF(COUNTRY_INFO!B9=0," ",COUNTRY_INFO!B9))) ->  | C9: =IF(INTRO!$E$39<>"Non-endemic", " ", IF(INTRO!$E$37="Non-endemic"," ", IF(COUNTRY_INFO!C9=0," ",COUNTRY_INFO!C9))) ->  | D9: =IF(INTRO!$E$39<>"Non-endemic", 0, IF(INTRO!$E$37="Non-endemic",0,IF(COUNTRY_INFO!$H9=1,COUNTRY_INFO!E9,0))) -> 0 | E9: =IF(INTRO!$E$39<>"Non-endemic", 0, IF(INTRO!$E$37="Non-endemic",0,IF(COUNTRY_INFO!$H9=1,COUNTRY_INFO!F9,0))) -> 0 | F9: =IF(INTRO!$E$39<>"Non-endemic", 0, IF(INTRO!$E$37="Non-endemic",0,IF(COUNTRY_INFO!$H9=1,COUNTRY_INFO!G9,0))) -> 0 | G9: =SUM(D9:F9) -> 0 | H9: =IF(INTRO!$E$39="Non-endemic",IF(INTRO!$E$37="Non-endemic","Not required",COUNTRY_INFO!P9),"Treat with IVM") -> Treat with IVM | I9: =IF(H9=1,G9,0) -> 0 | J9: =IF(I9>0,I9*2.5,0) -> 0 | L9: =IF($J9>$K9,$J9-$K9,0) -> 0 | M9: =ROUNDUP($J9/1000,0) -> 0
A10: =IF(INTRO!$E$39<>"Non-endemic", " ", IF(INTRO!$E$37="Non-endemic"," ", IF(COUNTRY_INFO!A10=0," ",COUNTRY_INFO!A10))) ->  | B10: =IF(INTRO!$E$39<>"Non-endemic", " ", IF(INTRO!$E$37="Non-endemic"," ", IF(COUNTRY_INFO!B10=0," ",COUNTRY_INFO!B10))) ->  | C10: =IF(INTRO!$E$39<>"Non-endemic", " ", IF(INTRO!$E$37="Non-endemic"," ", IF(COUNTRY_INFO!C10=0," ",COUNTRY_INFO!C10))) ->  | D10: =IF(INTRO!$E$39<>"Non-endemic", 0, IF(INTRO!$E$37="Non-endemic",0,IF(COUNTRY_INFO!$H10=1,COUNTRY_INFO!E10,0))) -> 0 | E10: =IF(INTRO!$E$39<>"Non-endemic", 0, IF(INTRO!$E$37="Non-endemic",0,IF(COUNTRY_INFO!$H10=1,COUNTRY_INFO!F10,0))) -> 0 | F10: =IF(INTRO!$E$39<>"Non-endemic", 0, IF(INTRO!$E$37="Non-endemic",0,IF(COUNTRY_INFO!$H10=1,COUNTRY_INFO!G10,0))) -> 0 | G10: 0 | H10: =IF(INTRO!$E$39="Non-endemic",IF(INTRO!$E$37="Non-endemic","Not required",COUNTRY_INFO!P10),"Treat with IVM") -> Treat with IVM | I10: 0 | J10: 0 | L10: 0 | M10: 0
A11: =IF(INTRO!$E$39<>"Non-endemic", " ", IF(INTRO!$E$37="Non-endemic"," ", IF(COUNTRY_INFO!A11=0," ",COUNTRY_INFO!A11))) ->  | B11: =IF(INTRO!$E$39<>"Non-endemic", " ", IF(INTRO!$E$37="Non-endemic"," ", IF(COUNTRY_INFO!B11=0," ",COUNTRY_INFO!B11))) ->  | C11: =IF(INTRO!$E$39<>"Non-endemic", " ", IF(INTRO!$E$37="Non-endemic"," ", IF(COUNTRY_INFO!C11=0," ",COUNTRY_INFO!C11))) ->  | D11: =IF(INTRO!$E$39<>"Non-endemic", 0, IF(INTRO!$E$37="Non-endemic",0,IF(COUNTRY_INFO!$H11=1,COUNTRY_INFO!E11,0))) -> 0 | E11: =IF(INTRO!$E$39<>"Non-endemic", 0, IF(INTRO!$E$37="Non-endemic",0,IF(COUNTRY_INFO!$H11=1,COUNTRY_INFO!F11,0))) -> 0 | F11: =IF(INTRO!$E$39<>"Non-endemic", 0, IF(INTRO!$E$37="Non-endemic",0,IF(COUNTRY_INFO!$H11=1,COUNTRY_INFO!G11,0))) -> 0 | G11: 0 | H11: =IF(INTRO!$E$39="Non-endemic",IF(INTRO!$E$37="Non-endemic","Not required",COUNTRY_INFO!P11),"Treat with IVM") -> Treat with IVM | I11: 0 | J11: 0 | L11: 0 | M11: 0
A12: =IF(INTRO!$E$39<>"Non-endemic", " ", IF(INTRO!$E$37="Non-endemic"," ", IF(COUNTRY_INFO!A12=0," ",COUNTRY_INFO!A12))) ->  | B12: =IF(INTRO!$E$39<>"Non-endemic", " ", IF(INTRO!$E$37="Non-endemic"," ", IF(COUNTRY_INFO!B12=0," ",COUNTRY_INFO!B12))) ->  | C12: =IF(INTRO!$E$39<>"Non-endemic", " ", IF(INTRO!$E$37="Non-endemic"," ", IF(COUNTRY_INFO!C12=0," ",COUNTRY_INFO!C12))) ->  | D12: =IF(INTRO!$E$39<>"Non-endemic", 0, IF(INTRO!$E$37="Non-endemic",0,IF(COUNTRY_INFO!$H12=1,COUNTRY_INFO!E12,0))) -> 0 | E12: =IF(INTRO!$E$39<>"Non-endemic", 0, IF(INTRO!$E$37="Non-endemic",0,IF(COUNTRY_INFO!$H12=1,COUNTRY_INFO!F12,0))) -> 0 | F12: =IF(INTRO!$E$39<>"Non-endemic", 0, IF(INTRO!$E$37="Non-endemic",0,IF(COUNTRY_INFO!$H12=1,COUNTRY_INFO!G12,0))) -> 0 | G12: 0 | H12: =IF(INTRO!$E$39="Non-endemic",IF(INTRO!$E$37="Non-endemic","Not required",COUNTRY_INFO!P12),"Treat with IVM") -> Treat with IVM | I12: 0 | J12: 0 | L12: 0 | M12: 0
A13: =IF(INTRO!$E$39<>"Non-endemic", " ", IF(INTRO!$E$37="Non-endemic"," ", IF(COUNTRY_INFO!A13=0," ",COUNTRY_INFO!A13))) ->  | B13: =IF(INTRO!$E$39<>"Non-endemic", " ", IF(INTRO!$E$37="Non-endemic"," ", IF(COUNTRY_INFO!B13=0," ",COUNTRY_INFO!B13))) ->  | C13: =IF(INTRO!$E$39<>"Non-endemic", " ", IF(INTRO!$E$37="Non-endemic"," ", IF(COUNTRY_INFO!C13=0," ",COUNTRY_INFO!C13))) ->  | D13: =IF(INTRO!$E$39<>"Non-endemic", 0, IF(INTRO!$E$37="Non-endemic",0,IF(COUNTRY_INFO!$H13=1,COUNTRY_INFO!E13,0))) -> 0 | E13: =IF(INTRO!$E$39<>"Non-endemic", 0, IF(INTRO!$E$37="Non-endemic",0,IF(COUNTRY_INFO!$H13=1,COUNTRY_INFO!F13,0))) -> 0 | F13: =IF(INTRO!$E$39<>"Non-endemic", 0, IF(INTRO!$E$37="Non-endemic",0,IF(COUNTRY_INFO!$H13=1,COUNTRY_INFO!G13,0))) -> 0 | G13: 0 | H13: =IF(INTRO!$E$39="Non-endemic",IF(INTRO!$E$37="Non-endemic","Not required",COUNTRY_INFO!P13),"Treat with IVM") -> Treat with IVM | I13: 0 | J13: 0 | L13: 0 | M13: 0
A14: =IF(INTRO!$E$39<>"Non-endemic", " ", IF(INTRO!$E$37="Non-endemic"," ", IF(COUNTRY_INFO!A14=0," ",COUNTRY_INFO!A14))) ->  | B14: =IF(INTRO!$E$39<>"Non-endemic", " ", IF(INTRO!$E$37="Non-endemic"," ", IF(COUNTRY_INFO!B14=0," ",COUNTRY_INFO!B14))) ->  | C14: =IF(INTRO!$E$39<>"Non-endemic", " ", IF(INTRO!$E$37="Non-endemic"," ", IF(COUNTRY_INFO!C14=0," ",COUNTRY_INFO!C14))) ->  | D14: =IF(INTRO!$E$39<>"Non-endemic", 0, IF(INTRO!$E$37="Non-endemic",0,IF(COUNTRY_INFO!$H14=1,COUNTRY_INFO!E14,0))) -> 0 | E14: =IF(INTRO!$E$39<>"Non-endemic", 0, IF(INTRO!$E$37="Non-endemic",0,IF(COUNTRY_INFO!$H14=1,COUNTRY_INFO!F14,0))) -> 0 | F14: =IF(INTRO!$E$39<>"Non-endemic", 0, IF(INTRO!$E$37="Non-endemic",0,IF(COUNTRY_INFO!$H14=1,COUNTRY_INFO!G14,0))) -> 0 | G14: 0 | H14: =IF(INTRO!$E$39="Non-endemic",IF(INTRO!$E$37="Non-endemic","Not required",COUNTRY_INFO!P14),"Treat with IVM") -> Treat with IVM | I14: 0 | J14: 0 | L14: 0 | M14: 0
A15: =IF(INTRO!$E$39<>"Non-endemic", " ", IF(INTRO!$E$37="Non-endemic"," ", IF(COUNTRY_INFO!A15=0," ",COUNTRY_INFO!A15))) ->  | B15: =IF(INTRO!$E$39<>"Non-endemic", " ", IF(INTRO!$E$37="Non-endemic"," ", IF(COUNTRY_INFO!B15=0," ",COUNTRY_INFO!B15))) ->  | C15: =IF(INTRO!$E$39<>"Non-endemic", " ", IF(INTRO!$E$37="Non-endemic"," ", IF(COUNTRY_INFO!C15=0," ",COUNTRY_INFO!C15))) ->  | D15: =IF(INTRO!$E$39<>"Non-endemic", 0, IF(INTRO!$E$37="Non-endemic",0,IF(COUNTRY_INFO!$H15=1,COUNTRY_INFO!E15,0))) -> 0 | E15: =IF(INTRO!$E$39<>"Non-endemic", 0, IF(INTRO!$E$37="Non-endemic",0,IF(COUNTRY_INFO!$H15=1,COUNTRY_INFO!F15,0))) -> 0 | F15: =IF(INTRO!$E$39<>"Non-endemic", 0, IF(INTRO!$E$37="Non-endemic",0,IF(COUNTRY_INFO!$H15=1,COUNTRY_INFO!G15,0))) -> 0 | G15: 0 | H15: =IF(INTRO!$E$39="Non-endemic",IF(INTRO!$E$37="Non-endemic","Not required",COUNTRY_INFO!P15),"Treat with IVM") -> Treat with IVM | I15: 0 | J15: 0 | L15: 0 | M15: 0
A16: =IF(INTRO!$E$39<>"Non-endemic", " ", IF(INTRO!$E$37="Non-endemic"," ", IF(COUNTRY_INFO!A16=0," ",COUNTRY_INFO!A16))) ->  | B16: =IF(INTRO!$E$39<>"Non-endemic", " ", IF(INTRO!$E$37="Non-endemic"," ", IF(COUNTRY_INFO!B16=0," ",COUNTRY_INFO!B16))) ->  | C16: =IF(INTRO!$E$39<>"Non-endemic", " ", IF(INTRO!$E$37="Non-endemic"," ", IF(COUNTRY_INFO!C16=0," ",COUNTRY_INFO!C16))) ->  | D16: =IF(INTRO!$E$39<>"Non-endemic", 0, IF(INTRO!$E$37="Non-endemic",0,IF(COUNTRY_INFO!$H16=1,COUNTRY_INFO!E16,0))) -> 0 | E16: =IF(INTRO!$E$39<>"Non-endemic", 0, IF(INTRO!$E$37="Non-endemic",0,IF(COUNTRY_INFO!$H16=1,COUNTRY_INFO!F16,0))) -> 0 | F16: =IF(INTRO!$E$39<>"Non-endemic", 0, IF(INTRO!$E$37="Non-endemic",0,IF(COUNTRY_INFO!$H16=1,COUNTRY_INFO!G16,0))) -> 0 | G16: 0 | H16: =IF(INTRO!$E$39="Non-endemic",IF(INTRO!$E$37="Non-endemic","Not required",COUNTRY_INFO!P16),"Treat with IVM") -> Treat with IVM | I16: 0 | J16: 0 | L16: 0 | M16: 0
A17: =IF(INTRO!$E$39<>"Non-endemic", " ", IF(INTRO!$E$37="Non-endemic"," ", IF(COUNTRY_INFO!A17=0," ",COUNTRY_INFO!A17))) ->  | B17: =IF(INTRO!$E$39<>"Non-endemic", " ", IF(INTRO!$E$37="Non-endemic"," ", IF(COUNTRY_INFO!B17=0," ",COUNTRY_INFO!B17))) ->  | C17: =IF(INTRO!$E$39<>"Non-endemic", " ", IF(INTRO!$E$37="Non-endemic"," ", IF(COUNTRY_INFO!C17=0," ",COUNTRY_INFO!C17))) ->  | D17: =IF(INTRO!$E$39<>"Non-endemic", 0, IF(INTRO!$E$37="Non-endemic",0,IF(COUNTRY_INFO!$H17=1,COUNTRY_INFO!E17,0))) -> 0 | E17: =IF(INTRO!$E$39<>"Non-endemic", 0, IF(INTRO!$E$37="Non-endemic",0,IF(COUNTRY_INFO!$H17=1,COUNTRY_INFO!F17,0))) -> 0 | F17: =IF(INTRO!$E$39<>"Non-endemic", 0, IF(INTRO!$E$37="Non-endemic",0,IF(COUNTRY_INFO!$H17=1,COUNTRY_INFO!G17,0))) -> 0 | G17: 0 | H17: =IF(INTRO!$E$39="Non-endemic",IF(INTRO!$E$37="Non-endemic","Not required",COUNTRY_INFO!P17),"Treat with IVM") -> Treat with IVM | I17: 0 | J17: 0 | L17: 0 | M17: 0
A18: =IF(INTRO!$E$39<>"Non-endemic", " ", IF(INTRO!$E$37="Non-endemic"," ", IF(COUNTRY_INFO!A18=0," ",COUNTRY_INFO!A18))) ->  | B18: =IF(INTRO!$E$39<>"Non-endemic", " ", IF(INTRO!$E$37="Non-endemic"," ", IF(COUNTRY_INFO!B18=0," ",COUNTRY_INFO!B18))) ->  | C18: =IF(INTRO!$E$39<>"Non-endemic", " ", IF(INTRO!$E$37="Non-endemic"," ", IF(COUNTRY_INFO!C18=0," ",COUNTRY_INFO!C18))) ->  | D18: =IF(INTRO!$E$39<>"Non-endemic", 0, IF(INTRO!$E$37="Non-endemic",0,IF(COUNTRY_INFO!$H18=1,COUNTRY_INFO!E18,0))) -> 0 | E18: =IF(INTRO!$E$39<>"Non-endemic", 0, IF(INTRO!$E$37="Non-endemic",0,IF(COUNTRY_INFO!$H18=1,COUNTRY_INFO!F18,0))) -> 0 | F18: =IF(INTRO!$E$39<>"Non-endemic", 0, IF(INTRO!$E$37="Non-endemic",0,IF(COUNTRY_INFO!$H18=1,COUNTRY_INFO!G18,0))) -> 0 | G18: 0 | H18: =IF(INTRO!$E$39="Non-endemic",IF(INTRO!$E$37="Non-endemic","Not required",COUNTRY_INFO!P18),"Treat with IVM") -> Treat with IVM | I18: 0 | J18: 0 | L18: 0 | M18: 0
A19: =IF(INTRO!$E$39<>"Non-endemic", " ", IF(INTRO!$E$37="Non-endemic"," ", IF(COUNTRY_INFO!A19=0," ",COUNTRY_INFO!A19))) ->  | B19: =IF(INTRO!$E$39<>"Non-endemic", " ", IF(INTRO!$E$37="Non-endemic"," ", IF(COUNTRY_INFO!B19=0," ",COUNTRY_INFO!B19))) ->  | C19: =IF(INTRO!$E$39<>"Non-endemic", " ", IF(INTRO!$E$37="Non-endemic"," ", IF(COUNTRY_INFO!C19=0," ",COUNTRY_INFO!C19))) ->  | D19: =IF(INTRO!$E$39<>"Non-endemic", 0, IF(INTRO!$E$37="Non-endemic",0,IF(COUNTRY_INFO!$H19=1,COUNTRY_INFO!E19,0))) -> 0 | E19: =IF(INTRO!$E$39<>"Non-endemic", 0, IF(INTRO!$E$37="Non-endemic",0,IF(COUNTRY_INFO!$H19=1,COUNTRY_INFO!F19,0))) -> 0 | F19: =IF(INTRO!$E$39<>"Non-endemic", 0, IF(INTRO!$E$37="Non-endemic",0,IF(COUNTRY_INFO!$H19=1,COUNTRY_INFO!G19,0))) -> 0 | G19: 0 | H19: =IF(INTRO!$E$39="Non-endemic",IF(INTRO!$E$37="Non-endemic","Not required",COUNTRY_INFO!P19),"Treat with IVM") -> Treat with IVM | I19: 0 | J19: 0 | L19: 0 | M19: 0
A20: =IF(INTRO!$E$39<>"Non-endemic", " ", IF(INTRO!$E$37="Non-endemic"," ", IF(COUNTRY_INFO!A20=0," ",COUNTRY_INFO!A20))) ->  | B20: =IF(INTRO!$E$39<>"Non-endemic", " ", IF(INTRO!$E$37="Non-endemic"," ", IF(COUNTRY_INFO!B20=0," ",COUNTRY_INFO!B20))) ->  | C20: =IF(INTRO!$E$39<>"Non-endemic", " ", IF(INTRO!$E$37="Non-endemic"," ", IF(COUNTRY_INFO!C20=0," ",COUNTRY_INFO!C20))) ->  | D20: =IF(INTRO!$E$39<>"Non-endemic", 0, IF(INTRO!$E$37="Non-endemic",0,IF(COUNTRY_INFO!$H20=1,COUNTRY_INFO!E20,0))) -> 0 | E20: =IF(INTRO!$E$39<>"Non-endemic", 0, IF(INTRO!$E$37="Non-endemic",0,IF(COUNTRY_INFO!$H20=1,COUNTRY_INFO!F20,0))) -> 0 | F20: =IF(INTRO!$E$39<>"Non-endemic", 0, IF(INTRO!$E$37="Non-endemic",0,IF(COUNTRY_INFO!$H20=1,COUNTRY_INFO!G20,0))) -> 0 | G20: 0 | H20: =IF(INTRO!$E$39="Non-endemic",IF(INTRO!$E$37="Non-endemic","Not required",COUNTRY_INFO!P20),"Treat with IVM") -> Treat with IVM | I20: 0 | J20: 0 | L20: 0 | M20: 0
A21: =IF(INTRO!$E$39<>"Non-endemic", " ", IF(INTRO!$E$37="Non-endemic"," ", IF(COUNTRY_INFO!A21=0," ",COUNTRY_INFO!A21))) ->  | B21: =IF(INTRO!$E$39<>"Non-endemic", " ", IF(INTRO!$E$37="Non-endemic"," ", IF(COUNTRY_INFO!B21=0," ",COUNTRY_INFO!B21))) ->  | C21: =IF(INTRO!$E$39<>"Non-endemic", " ", IF(INTRO!$E$37="Non-endemic"," ", IF(COUNTRY_INFO!C21=0," ",COUNTRY_INFO!C21))) ->  | D21: =IF(INTRO!$E$39<>"Non-endemic", 0, IF(INTRO!$E$37="Non-endemic",0,IF(COUNTRY_INFO!$H21=1,COUNTRY_INFO!E21,0))) -> 0 | E21: =IF(INTRO!$E$39<>"Non-endemic", 0, IF(INTRO!$E$37="Non-endemic",0,IF(COUNTRY_INFO!$H21=1,COUNTRY_INFO!F21,0))) -> 0 | F21: =IF(INTRO!$E$39<>"Non-endemic", 0, IF(INTRO!$E$37="Non-endemic",0,IF(COUNTRY_INFO!$H21=1,COUNTRY_INFO!G21,0))) -> 0 | G21: 0 | H21: =IF(INTRO!$E$39="Non-endemic",IF(INTRO!$E$37="Non-endemic","Not required",COUNTRY_INFO!P21),"Treat with IVM") -> Treat with IVM | I21: 0 | J21: 0 | L21: 0 | M21: 0
A22: =IF(INTRO!$E$39<>"Non-endemic", " ", IF(INTRO!$E$37="Non-endemic"," ", IF(COUNTRY_INFO!A22=0," ",COUNTRY_INFO!A22))) ->  | B22: =IF(INTRO!$E$39<>"Non-endemic", " ", IF(INTRO!$E$37="Non-endemic"," ", IF(COUNTRY_INFO!B22=0," ",COUNTRY_INFO!B22))) ->  | C22: =IF(INTRO!$E$39<>"Non-endemic", " ", IF(INTRO!$E$37="Non-endemic"," ", IF(COUNTRY_INFO!C22=0," ",COUNTRY_INFO!C22))) ->  | D22: =IF(INTRO!$E$39<>"Non-endemic", 0, IF(INTRO!$E$37="Non-endemic",0,IF(COUNTRY_INFO!$H22=1,COUNTRY_INFO!E22,0))) -> 0 | E22: =IF(INTRO!$E$39<>"Non-endemic", 0, IF(INTRO!$E$37="Non-endemic",0,IF(COUNTRY_INFO!$H22=1,COUNTRY_INFO!F22,0))) -> 0 | F22: =IF(INTRO!$E$39<>"Non-endemic", 0, IF(INTRO!$E$37="Non-endemic",0,IF(COUNTRY_INFO!$H22=1,COUNTRY_INFO!G22,0))) -> 0 | G22: 0 | H22: =IF(INTRO!$E$39="Non-endemic",IF(INTRO!$E$37="Non-endemic","Not required",COUNTRY_INFO!P22),"Treat with IVM") -> Treat with IVM | I22: 0 | J22: 0 | L22: 0 | M22: 0
A23: =IF(INTRO!$E$39<>"Non-endemic", " ", IF(INTRO!$E$37="Non-endemic"," ", IF(COUNTRY_INFO!A23=0," ",COUNTRY_INFO!A23))) ->  | B23: =IF(INTRO!$E$39<>"Non-endemic", " ", IF(INTRO!$E$37="Non-endemic"," ", IF(COUNTRY_INFO!B23=0," ",COUNTRY_INFO!B23))) ->  | C23: =IF(INTRO!$E$39<>"Non-endemic", " ", IF(INTRO!$E$37="Non-endemic"," ", IF(COUNTRY_INFO!C23=0," ",COUNTRY_INFO!C23))) ->  | D23: =IF(INTRO!$E$39<>"Non-endemic", 0, IF(INTRO!$E$37="Non-endemic",0,IF(COUNTRY_INFO!$H23=1,COUNTRY_INFO!E23,0))) -> 0 | E23: =IF(INTRO!$E$39<>"Non-endemic", 0, IF(INTRO!$E$37="Non-endemic",0,IF(COUNTRY_INFO!$H23=1,COUNTRY_INFO!F23,0))) -> 0 | F23: =IF(INTRO!$E$39<>"Non-endemic", 0, IF(INTRO!$E$37="Non-endemic",0,IF(COUNTRY_INFO!$H23=1,COUNTRY_INFO!G23,0))) -> 0 | G23: 0 | H23: =IF(INTRO!$E$39="Non-endemic",IF(INTRO!$E$37="Non-endemic","Not required",COUNTRY_INFO!P23),"Treat with IVM") -> Treat with IVM | I23: 0 | J23: 0 | L23: 0 | M23: 0

Sheet ALB_MBD
A1: Albendazole (ALB) and Mebendazole (MBD)
A2: Administrative structure, eligible population by age group, treatment plan and information about tablets
A4: TOTAL | D4: =SUM(D$9:D$1000) -> 806828 | E4: =SUM(E$9:E$1000) -> 1244700 | F4: =SUM(F$9:F$1000) -> 2051528 | I4: =SUM(I$9:I$1000) -> 3802452 | K4: =SUM(K$9:K$1000) -> 304725 | L4: =SUM(L$9:L$1000) -> 391312 | M4: =SUM(M$9:M$1000) -> 0 | N4: =SUM(N$9:N$1000) -> 696037 | O4: =SUM(O$9:O$1000) -> 0 | P4: =SUM(P$9:P$1000) -> 0 | Q4: 0 | R4: 0 | S4: 0 | T4: 3802452 | U4: 19018 | V4: 0 | W4: 391312 | X4: 1959 | Y4: 0 | Z4: 0 | AA4: 0
A6: Country administrative structure | D6: Population requiring treatment with ALB/MBD | G6: Treatment plan | I6: People covered by PELF with ALB | J6: Select medicine for treatment of STH | K6: Target population | S6: Albendazole (ALB) | Y6: Mebendazole (MBD)
A7: Country | B7: Province/State | C7: District | D7: PreSAC | E7: SAC | F7: Total | G7: LF | H7: STH | K7: STH (ALB) | O7: STH (MBD) | S7: Remaining in stock (LF) | T7: Tablets to be procured (LF) | U7: Bottle (400 mg) 200 tablets (LF) | V7: Remaining in stock (STH) | W7: Tablets to be procured for SAC (STH) | X7: Bottle (400 mg) 200 tablets (STH) | Y7: Remaining in stock | Z7: Tablets to be procured for SAC | AA7: Bottles (500 mg) 150 tablets
K8: PreSAC | L8: SAC | M8: Other | N8: Total | O8: PreSAC | P8: SAC | Q8: Other | R8: Total
A9: =IF(AND(INTRO!$E$37="Non-endemic",INTRO!$E$41="Non-endemic")," ",IF(COUNTRY_INFO!A9=0," ",COUNTRY_INFO!A9)) -> Liberia | B9: =IF(AND(INTRO!$E$37="Non-endemic",INTRO!$E$41="Non-endemic")," ",IF(COUNTRY_INFO!B9=0," ",COUNTRY_INFO!B9)) -> Bomi | C9: =IF(AND(INTRO!$E$37="Non-endemic",INTRO!$E$41="Non-endemic")," ",IF(COUNTRY_INFO!C9=0," ",COUNTRY_INFO!C9)) -> Bomi | D9: =IF(AND(INTRO!$E$37="Non-endemic",INTRO!$E$41="Non-endemic"),0,IF(AND(OR(COUNTRY_INFO!$H9=0,COUNTRY_INFO!$H9=4,COUNTRY_INFO!$H9=99),OR(COUNTRY_INFO!$J9=0,COUNTRY_INFO!$J9=4)),0,COUNTRY_INFO!$E9)) -> 9598 | E9: =IF(AND(INTRO!$E$37="Non-endemic",INTRO!$E$41="Non-endemic"),0,IF(AND(OR(COUNTRY_INFO!$H9=0,COUNTRY_INFO!$H9=4,COUNTRY_INFO!$H9=99),OR(COUNTRY_INFO!$J9=0,COUNTRY_INFO!$J9=4)),0,COUNTRY_INFO!$F9)) -> 30150 | F9: =SUM(D9:E9) -> 39748 | G9: =IF(AND(INTRO!$E$37="Non-endemic",INTRO!$E$41="Non-endemic"),0,COUNTRY_INFO!P9) -> 0 | H9: =IF(AND(INTRO!$E$37="Non-endemic",INTRO!$E$41="Non-endemic"),0,COUNTRY_INFO!R9) -> 0 | I9: =IF(INTRO!$E$39="Non-endemic",IF($G9=1,DEC!I9,0),IF($G9=1,IVM!G9,0)) -> 0 | J9: ALB | K9: =IF($J9="ALB", IF(INTRO!$E$39="Non-endemic", IF($H9<>0, IF($I9=0, $D9*$H9, $D9*($H9-$G9)), 0), $D9*$H9), 0) -> 0 | L9: =IF($J9="ALB", IF($H9<>0, IF($I9=0, $E9*$H9, $E9*($H9-$G9)),0), 0) -> 0 | N9: =SUM(K9:M9) -> 0 | O9: =IF($J9="MBD", IF(INTRO!$E$39="Non-endemic", IF($H9<>0, IF($I9=0, $D9*$H9, $D9*($H9-$G9)), 0), $D9*$H9), 0) -> 0 | P9: =IF($J9="MBD", IF($H9<>0,IF($I9=0, $E9*$H9, $E9*($H9-$G9)),0), 0 ) -> 0 | R9: =SUM(O9:Q9) -> 0 | S9: 0 | T9: =IF($I9>$S9, $I9-$S9,0) -> 0 | U9: =ROUNDUP($I9/200,0) -> 0 | W9: =IF($L9>$V9,$L9-$V9,0) -> 0 | X9: =ROUNDUP($L9/200,0) -> 0 | Z9: =IF($P9>$Y9,$P9-$Y9,0) -> 0 | AA9: =ROUNDUP($P9/150,0) -> 0
A10: =IF(AND(INTRO!$E$37="Non-endemic",INTRO!$E$41="Non-endemic")," ",IF(COUNTRY_INFO!A10=0," ",COUNTRY_INFO!A10)) -> Liberia | B10: =IF(AND(INTRO!$E$37="Non-endemic",INTRO!$E$41="Non-endemic")," ",IF(COUNTRY_INFO!B10=0," ",COUNTRY_INFO!B10)) -> Bong | C10: =IF(AND(INTRO!$E$37="Non-endemic",INTRO!$E$41="Non-endemic")," ",IF(COUNTRY_INFO!C10=0," ",COUNTRY_INFO!C10)) -> Bong | D10: =IF(AND(INTRO!$E$37="Non-endemic",INTRO!$E$41="Non-endemic"),0,IF(AND(OR(COUNTRY_INFO!$H10=0,COUNTRY_INFO!$H10=4,COUNTRY_INFO!$H10=99),OR(COUNTRY_INFO!$J10=0,COUNTRY_INFO!$J10=4)),0,COUNTRY_INFO!$E10)) -> 38052 | E10: =IF(AND(INTRO!$E$37="Non-endemic",INTRO!$E$41="Non-endemic"),0,IF(AND(OR(COUNTRY_INFO!$H10=0,COUNTRY_INFO!$H10=4,COUNTRY_INFO!$H10=99),OR(COUNTRY_INFO!$J10=0,COUNTRY_INFO!$J10=4)),0,COUNTRY_INFO!$F10)) -> 119529 | F10: 157581 | G10: =IF(AND(INTRO!$E$37="Non-endemic",INTRO!$E$41="Non-endemic"),0,COUNTRY_INFO!P10) -> 1 | H10: =IF(AND(INTRO!$E$37="Non-endemic",INTRO!$E$41="Non-endemic"),0,COUNTRY_INFO!R10) -> 2 | I10: =IF(INTRO!$E$39="Non-endemic",IF($G10=1,DEC!I10,0),IF($G10=1,IVM!G10,0)) -> 383656 | J10: ALB | K10: =IF($J10="ALB", IF(INTRO!$E$39="Non-endemic", IF($H10<>0, IF($I10=0, $D10*$H10, $D10*($H10-$G10)), 0), $D10*$H10), 0) -> 76104 | L10: 119529 | N10: 195633 | O10: =IF($J10="MBD", IF(INTRO!$E$39="Non-endemic", IF($H10<>0, IF($I10=0, $D10*$H10, $D10*($H10-$G10)), 0), $D10*$H10), 0) -> 0 | P10: 0 | R10: 0 | S10: 0 | T10: 383656 | U10: 1919 | W10: 119529 | X10: 598 | Z10: 0 | AA10: 0
A11: =IF(AND(INTRO!$E$37="Non-endemic",INTRO!$E$41="Non-endemic")," ",IF(COUNTRY_INFO!A11=0," ",COUNTRY_INFO!A11)) -> Liberia | B11: =IF(AND(INTRO!$E$37="Non-endemic",INTRO!$E$41="Non-endemic")," ",IF(COUNTRY_INFO!B11=0," ",COUNTRY_INFO!B11)) -> Gbarpolu | C11: =IF(AND(INTRO!$E$37="Non-endemic",INTRO!$E$41="Non-endemic")," ",IF(COUNTRY_INFO!C11=0," ",COUNTRY_INFO!C11)) -> Gbarpolu | D11: =IF(AND(INTRO!$E$37="Non-endemic",INTRO!$E$41="Non-endemic"),0,IF(AND(OR(COUNTRY_INFO!$H11=0,COUNTRY_INFO!$H11=4,COUNTRY_INFO!$H11=99),OR(COUNTRY_INFO!$J11=0,COUNTRY_INFO!$J11=4)),0,COUNTRY_INFO!$E11)) -> 9515 | E11: =IF(AND(INTRO!$E$37="Non-endemic",INTRO!$E$41="Non-endemic"),0,IF(AND(OR(COUNTRY_INFO!$H11=0,COUNTRY_INFO!$H11=4,COUNTRY_INFO!$H11=99),OR(COUNTRY_INFO!$J11=0,COUNTRY_INFO!$J11=4)),0,COUNTRY_INFO!$F11)) -> 29888 | F11: 39403 | G11: =IF(AND(INTRO!$E$37="Non-endemic",INTRO!$E$41="Non-endemic"),0,COUNTRY_INFO!P11) -> 0 | H11: =IF(AND(INTRO!$E$37="Non-endemic",INTRO!$E$41="Non-endemic"),0,COUNTRY_INFO!R11) -> 0 | I11: =IF(INTRO!$E$39="Non-endemic",IF($G11=1,DEC!I11,0),IF($G11=1,IVM!G11,0)) -> 0 | J11: ALB | K11: =IF($J11="ALB", IF(INTRO!$E$39="Non-endemic", IF($H11<>0, IF($I11=0, $D11*$H11, $D11*($H11-$G11)), 0), $D11*$H11), 0) -> 0 | L11: 0 | N11: 0 | O11: =IF($J11="MBD", IF(INTRO!$E$39="Non-endemic", IF($H11<>0, IF($I11=0, $D11*$H11, $D11*($H11-$G11)), 0), $D11*$H11), 0) -> 0 | P11: 0 | R11: 0 | S11: 0 | T11: 0 | U11: 0 | W11: 0 | X11: 0 | Z11: 0 | AA11: 0
A12: =IF(AND(INTRO!$E$37="Non-endemic",INTRO!$E$41="Non-endemic")," ",IF(COUNTRY_INFO!A12=0," ",COUNTRY_INFO!A12)) -> Liberia | B12: =IF(AND(INTRO!$E$37="Non-endemic",INTRO!$E$41="Non-endemic")," ",IF(COUNTRY_INFO!B12=0," ",COUNTRY_INFO!B12)) -> Grand Bassa | C12: =IF(AND(INTRO!$E$37="Non-endemic",INTRO!$E$41="Non-endemic")," ",IF(COUNTRY_INFO!C12=0," ",COUNTRY_INFO!C12)) -> Grand Bassa | D12: =IF(AND(INTRO!$E$37="Non-endemic",INTRO!$E$41="Non-endemic"),0,IF(AND(OR(COUNTRY_INFO!$H12=0,COUNTRY_INFO!$H12=4,COUNTRY_INFO!$H12=99),OR(COUNTRY_INFO!$J12=0,COUNTRY_INFO!$J12=4)),0,COUNTRY_INFO!$E12)) -> 25296 | E12: =IF(AND(INTRO!$E$37="Non-endemic",INTRO!$E$41="Non-endemic"),0,IF(AND(OR(COUNTRY_INFO!$H12=0,COUNTRY_INFO!$H12=4,COUNTRY_INFO!$H12=99),OR(COUNTRY_INFO!$J12=0,COUNTRY_INFO!$J12=4)),0,COUNTRY_INFO!$F12)) -> 79461 | F12: 104757 | G12: =IF(AND(INTRO!$E$37="Non-endemic",INTRO!$E$41="Non-endemic"),0,COUNTRY_INFO!P12) -> 1 | H12: =IF(AND(INTRO!$E$37="Non-endemic",INTRO!$E$41="Non-endemic"),0,COUNTRY_INFO!R12) -> 1 | I12: =IF(INTRO!$E$39="Non-endemic",IF($G12=1,DEC!I12,0),IF($G12=1,IVM!G12,0)) -> 255048 | J12: ALB | K12: =IF($J12="ALB", IF(INTRO!$E$39="Non-endemic", IF($H12<>0, IF($I12=0, $D12*$H12, $D12*($H12-$G12)), 0), $D12*$H12), 0) -> 25296 | L12: 0 | N12: 25296 | O12: =IF($J12="MBD", IF(INTRO!$E$39="Non-endemic", IF($H12<>0, IF($I12=0, $D12*$H12, $D12*($H12-$G12)), 0), $D12*$H12), 0) -> 0 | P12: 0 | R12: 0 | S12: 0 | T12: 255048 | U12: 1276 | W12: 0 | X12: 0 | Z12: 0 | AA12: 0
A13: =IF(AND(INTRO!$E$37="Non-endemic",INTRO!$E$41="Non-endemic")," ",IF(COUNTRY_INFO!A13=0," ",COUNTRY_INFO!A13)) -> Liberia | B13: =IF(AND(INTRO!$E$37="Non-endemic",INTRO!$E$41="Non-endemic")," ",IF(COUNTRY_INFO!B13=0," ",COUNTRY_INFO!B13)) -> Grand Cape Mount | C13: =IF(AND(INTRO!$E$37="Non-endemic",INTRO!$E$41="Non-endemic")," ",IF(COUNTRY_INFO!C13=0," ",COUNTRY_INFO!C13)) -> Grand Cape Mount | D13: =IF(AND(INTRO!$E$37="Non-endemic",INTRO!$E$41="Non-endemic"),0,IF(AND(OR(COUNTRY_INFO!$H13=0,COUNTRY_INFO!$H13=4,COUNTRY_INFO!$H13=99),OR(COUNTRY_INFO!$J13=0,COUNTRY_INFO!$J13=4)),0,COUNTRY_INFO!$E13)) -> 14500 | E13: =IF(AND(INTRO!$E$37="Non-endemic",INTRO!$E$41="Non-endemic"),0,IF(AND(OR(COUNTRY_INFO!$H13=0,COUNTRY_INFO!$H13=4,COUNTRY_INFO!$H13=99),OR(COUNTRY_INFO!$J13=0,COUNTRY_INFO!$J13=4)),0,COUNTRY_INFO!$F13)) -> 45547 | F13: 60047 | G13: =IF(AND(INTRO!$E$37="Non-endemic",INTRO!$E$41="Non-endemic"),0,COUNTRY_INFO!P13) -> 1 | H13: =IF(AND(INTRO!$E$37="Non-endemic",INTRO!$E$41="Non-endemic"),0,COUNTRY_INFO!R13) -> 1 | I13: =IF(INTRO!$E$39="Non-endemic",IF($G13=1,DEC!I13,0),IF($G13=1,IVM!G13,0)) -> 146194 | J13: ALB | K13: =IF($J13="ALB", IF(INTRO!$E$39="Non-endemic", IF($H13<>0, IF($I13=0, $D13*$H13, $D13*($H13-$G13)), 0), $D13*$H13), 0) -> 14500 | L13: 0 | N13: 14500 | O13: =IF($J13="MBD", IF(INTRO!$E$39="Non-endemic", IF($H13<>0, IF($I13=0, $D13*$H13, $D13*($H13-$G13)), 0), $D13*$H13), 0) -> 0 | P13: 0 | R13: 0 | S13: 0 | T13: 146194 | U13: 731 | W13: 0 | X13: 0 | Z13: 0 | AA13: 0
A14: =IF(AND(INTRO!$E$37="Non-endemic",INTRO!$E$41="Non-endemic")," ",IF(COUNTRY_INFO!A14=0," ",COUNTRY_INFO!A14)) -> Liberia | B14: =IF(AND(INTRO!$E$37="Non-endemic",INTRO!$E$41="Non-endemic")," ",IF(COUNTRY_INFO!B14=0," ",COUNTRY_INFO!B14)) -> Grand Gedeh | C14: =IF(AND(INTRO!$E$37="Non-endemic",INTRO!$E$41="Non-endemic")," ",IF(COUNTRY_INFO!C14=0," ",COUNTRY_INFO!C14)) -> Grand Gedeh | D14: =IF(AND(INTRO!$E$37="Non-endemic",INTRO!$E$41="Non-endemic"),0,IF(AND(OR(COUNTRY_INFO!$H14=0,COUNTRY_INFO!$H14=4,COUNTRY_INFO!$H14=99),OR(COUNTRY_INFO!$J14=0,COUNTRY_INFO!$J14=4)),0,COUNTRY_INFO!$E14)) -> 14293 | E14: =IF(AND(INTRO!$E$37="Non-endemic",INTRO!$E$41="Non-endemic"),0,IF(AND(OR(COUNTRY_INFO!$H14=0,COUNTRY_INFO!$H14=4,COUNTRY_INFO!$H14=99),OR(COUNTRY_INFO!$J14=0,COUNTRY_INFO!$J14=4)),0,COUNTRY_INFO!$F14)) -> 44896 | F14: 59189 | G14: =IF(AND(INTRO!$E$37="Non-endemic",INTRO!$E$41="Non-endemic"),0,COUNTRY_INFO!P14) -> 1 | H14: =IF(AND(INTRO!$E$37="Non-endemic",INTRO!$E$41="Non-endemic"),0,COUNTRY_INFO!R14) -> 0 | I14: =IF(INTRO!$E$39="Non-endemic",IF($G14=1,DEC!I14,0),IF($G14=1,IVM!G14,0)) -> 144104 | J14: ALB | K14: =IF($J14="ALB", IF(INTRO!$E$39="Non-endemic", IF($H14<>0, IF($I14=0, $D14*$H14, $D14*($H14-$G14)), 0), $D14*$H14), 0) -> 0 | L14: 0 | N14: 0 | O14: =IF($J14="MBD", IF(INTRO!$E$39="Non-endemic", IF($H14<>0, IF($I14=0, $D14*$H14, $D14*($H14-$G14)), 0), $D14*$H14), 0) -> 0 | P14: 0 | R14: 0 | S14: 0 | T14: 144104 | U14: 721 | W14: 0 | X14: 0 | Z14: 0 | AA14: 0
A15: =IF(AND(INTRO!$E$37="Non-endemic",INTRO!$E$41="Non-endemic")," ",IF(COUNTRY_INFO!A15=0," ",COUNTRY_INFO!A15)) -> Liberia | B15: =IF(AND(INTRO!$E$37="Non-endemic",INTRO!$E$41="Non-endemic")," ",IF(COUNTRY_INFO!B15=0," ",COUNTRY_INFO!B15)) -> Grand Kru | C15: =IF(AND(INTRO!$E$37="Non-endemic",INTRO!$E$41="Non-endemic")," ",IF(COUNTRY_INFO!C15=0," ",COUNTRY_INFO!C15)) -> Grand Kru | D15: =IF(AND(INTRO!$E$37="Non-endemic",INTRO!$E$41="Non-endemic"),0,IF(AND(OR(COUNTRY_INFO!$H15=0,COUNTRY_INFO!$H15=4,COUNTRY_INFO!$H15=99),OR(COUNTRY_INFO!$J15=0,COUNTRY_INFO!$J15=4)),0,COUNTRY_INFO!$E15)) -> 6608 | E15: =IF(AND(INTRO!$E$37="Non-endemic",INTRO!$E$41="Non-endemic"),0,IF(AND(OR(COUNTRY_INFO!$H15=0,COUNTRY_INFO!$H15=4,COUNTRY_INFO!$H15=99),OR(COUNTRY_INFO!$J15=0,COUNTRY_INFO!$J15=4)),0,COUNTRY_INFO!$F15)) -> 20758 | F15: 27366 | G15: =IF(AND(INTRO!$E$37="Non-endemic",INTRO!$E$41="Non-endemic"),0,COUNTRY_INFO!P15) -> 1 | H15: =IF(AND(INTRO!$E$37="Non-endemic",INTRO!$E$41="Non-endemic"),0,COUNTRY_INFO!R15) -> 2 | I15: =IF(INTRO!$E$39="Non-endemic",IF($G15=1,DEC!I15,0),IF($G15=1,IVM!G15,0)) -> 66627 | J15: ALB | K15: =IF($J15="ALB", IF(INTRO!$E$39="Non-endemic", IF($H15<>0, IF($I15=0, $D15*$H15, $D15*($H15-$G15)), 0), $D15*$H15), 0) -> 13216 | L15: 20758 | N15: 33974 | O15: =IF($J15="MBD", IF(INTRO!$E$39="Non-endemic", IF($H15<>0, IF($I15=0, $D15*$H15, $D15*($H15-$G15)), 0), $D15*$H15), 0) -> 0 | P15: 0 | R15: 0 | S15: 0 | T15: 66627 | U15: 334 | W15: 20758 | X15: 104 | Z15: 0 | AA15: 0
A16: =IF(AND(INTRO!$E$37="Non-endemic",INTRO!$E$41="Non-endemic")," ",IF(COUNTRY_INFO!A16=0," ",COUNTRY_INFO!A16)) -> Liberia | B16: =IF(AND(INTRO!$E$37="Non-endemic",INTRO!$E$41="Non-endemic")," ",IF(COUNTRY_INFO!B16=0," ",COUNTRY_INFO!B16)) -> Lofa | C16: =IF(AND(INTRO!$E$37="Non-endemic",INTRO!$E$41="Non-endemic")," ",IF(COUNTRY_INFO!C16=0," ",COUNTRY_INFO!C16)) -> Lofa | D16: =IF(AND(INTRO!$E$37="Non-endemic",INTRO!$E$41="Non-endemic"),0,IF(AND(OR(COUNTRY_INFO!$H16=0,COUNTRY_INFO!$H16=4,COUNTRY_INFO!$H16=99),OR(COUNTRY_INFO!$J16=0,COUNTRY_INFO!$J16=4)),0,COUNTRY_INFO!$E16)) -> 31592 | E16: =IF(AND(INTRO!$E$37="Non-endemic",INTRO!$E$41="Non-endemic"),0,IF(AND(OR(COUNTRY_INFO!$H16=0,COUNTRY_INFO!$H16=4,COUNTRY_INFO!$H16=99),OR(COUNTRY_INFO!$J16=0,COUNTRY_INFO!$J16=4)),0,COUNTRY_INFO!$F16)) -> 99235 | F16: 130827 | G16: =IF(AND(INTRO!$E$37="Non-endemic",INTRO!$E$41="Non-endemic"),0,COUNTRY_INFO!P16) -> 1 | H16: =IF(AND(INTRO!$E$37="Non-endemic",INTRO!$E$41="Non-endemic"),0,COUNTRY_INFO!R16) -> 0 | I16: =IF(INTRO!$E$39="Non-endemic",IF($G16=1,DEC!I16,0),IF($G16=1,IVM!G16,0)) -> 318518 | J16: ALB | K16: =IF($J16="ALB", IF(INTRO!$E$39="Non-endemic", IF($H16<>0, IF($I16=0, $D16*$H16, $D16*($H16-$G16)), 0), $D16*$H16), 0) -> 0 | L16: 0 | N16: 0 | O16: =IF($J16="MBD", IF(INTRO!$E$39="Non-endemic", IF($H16<>0, IF($I16=0, $D16*$H16, $D16*($H16-$G16)), 0), $D16*$H16), 0) -> 0 | P16: 0 | R16: 0 | S16: 0 | T16: 318518 | U16: 1593 | W16: 0 | X16: 0 | Z16: 0 | AA16: 0
A17: =IF(AND(INTRO!$E$37="Non-endemic",INTRO!$E$41="Non-endemic")," ",IF(COUNTRY_INFO!A17=0," ",COUNTRY_INFO!A17)) -> Liberia | B17: =IF(AND(INTRO!$E$37="Non-endemic",INTRO!$E$41="Non-endemic")," ",IF(COUNTRY_INFO!B17=0," ",COUNTRY_INFO!B17)) -> Margibi | C17: =IF(AND(INTRO!$E$37="Non-endemic",INTRO!$E$41="Non-endemic")," ",IF(COUNTRY_INFO!C17=0," ",COUNTRY_INFO!C17)) -> Margibi | D17: =IF(AND(INTRO!$E$37="Non-endemic",INTRO!$E$41="Non-endemic"),0,IF(AND(OR(COUNTRY_INFO!$H17=0,COUNTRY_INFO!$H17=4,COUNTRY_INFO!$H17=99),OR(COUNTRY_INFO!$J17=0,COUNTRY_INFO!$J17=4)),0,COUNTRY_INFO!$E17)) -> 23954 | E17: =IF(AND(INTRO!$E$37="Non-endemic",INTRO!$E$41="Non-endemic"),0,IF(AND(OR(COUNTRY_INFO!$H17=0,COUNTRY_INFO!$H17=4,COUNTRY_INFO!$H17=99),OR(COUNTRY_INFO!$J17=0,COUNTRY_INFO!$J17=4)),0,COUNTRY_INFO!$F17)) -> 75242 | F17: 99196 | G17: =IF(AND(INTRO!$E$37="Non-endemic",INTRO!$E$41="Non-endemic"),0,COUNTRY_INFO!P17) -> 1 | H17: =IF(AND(INTRO!$E$37="Non-endemic",INTRO!$E$41="Non-endemic"),0,COUNTRY_INFO!R17) -> 0 | I17: =IF(INTRO!$E$39="Non-endemic",IF($G17=1,DEC!I17,0),IF($G17=1,IVM!G17,0)) -> 241508 | J17: ALB | K17: =IF($J17="ALB", IF(INTRO!$E$39="Non-endemic", IF($H17<>0, IF($I17=0, $D17*$H17, $D17*($H17-$G17)), 0), $D17*$H17), 0) -> 0 | L17: 0 | N17: 0 | O17: =IF($J17="MBD", IF(INTRO!$E$39="Non-endemic", IF($H17<>0, IF($I17=0, $D17*$H17, $D17*($H17-$G17)), 0), $D17*$H17), 0) -> 0 | P17: 0 | R17: 0 | S17: 0 | T17: 241508 | U17: 1208 | W17: 0 | X17: 0 | Z17: 0 | AA17: 0
A18: =IF(AND(INTRO!$E$37="Non-endemic",INTRO!$E$41="Non-endemic")," ",IF(COUNTRY_INFO!A18=0," ",COUNTRY_INFO!A18)) -> Liberia | B18: =IF(AND(INTRO!$E$37="Non-endemic",INTRO!$E$41="Non-endemic")," ",IF(COUNTRY_INFO!B18=0," ",COUNTRY_INFO!B18)) -> Maryland | C18: =IF(AND(INTRO!$E$37="Non-endemic",INTRO!$E$41="Non-endemic")," ",IF(COUNTRY_INFO!C18=0," ",COUNTRY_INFO!C18)) -> Maryland | D18: =IF(AND(INTRO!$E$37="Non-endemic",INTRO!$E$41="Non-endemic"),0,IF(AND(OR(COUNTRY_INFO!$H18=0,COUNTRY_INFO!$H18=4,COUNTRY_INFO!$H18=99),OR(COUNTRY_INFO!$J18=0,COUNTRY_INFO!$J18=4)),0,COUNTRY_INFO!$E18)) -> 15511 | E18: =IF(AND(INTRO!$E$37="Non-endemic",INTRO!$E$41="Non-endemic"),0,IF(AND(OR(COUNTRY_INFO!$H18=0,COUNTRY_INFO!$H18=4,COUNTRY_INFO!$H18=99),OR(COUNTRY_INFO!$J18=0,COUNTRY_INFO!$J18=4)),0,COUNTRY_INFO!$F18)) -> 48724 | F18: 64235 | G18: =IF(AND(INTRO!$E$37="Non-endemic",INTRO!$E$41="Non-endemic"),0,COUNTRY_INFO!P18) -> 1 | H18: =IF(AND(INTRO!$E$37="Non-endemic",INTRO!$E$41="Non-endemic"),0,COUNTRY_INFO!R18) -> 2 | I18: =IF(INTRO!$E$39="Non-endemic",IF($G18=1,DEC!I18,0),IF($G18=1,IVM!G18,0)) -> 156390 | J18: ALB | K18: =IF($J18="ALB", IF(INTRO!$E$39="Non-endemic", IF($H18<>0, IF($I18=0, $D18*$H18, $D18*($H18-$G18)), 0), $D18*$H18), 0) -> 31022 | L18: 48724 | N18: 79746 | O18: =IF($J18="MBD", IF(INTRO!$E$39="Non-endemic", IF($H18<>0, IF($I18=0, $D18*$H18, $D18*($H18-$G18)), 0), $D18*$H18), 0) -> 0 | P18: 0 | R18: 0 | S18: 0 | T18: 156390 | U18: 782 | W18: 48724 | X18: 244 | Z18: 0 | AA18: 0
A19: =IF(AND(INTRO!$E$37="Non-endemic",INTRO!$E$41="Non-endemic")," ",IF(COUNTRY_INFO!A19=0," ",COUNTRY_INFO!A19)) -> Liberia | B19: =IF(AND(INTRO!$E$37="Non-endemic",INTRO!$E$41="Non-endemic")," ",IF(COUNTRY_INFO!B19=0," ",COUNTRY_INFO!B19)) -> Montserrado | C19: =IF(AND(INTRO!$E$37="Non-endemic",INTRO!$E$41="Non-endemic")," ",IF(COUNTRY_INFO!C19=0," ",COUNTRY_INFO!C19)) -> Montserrado | D19: =IF(AND(INTRO!$E$37="Non-endemic",INTRO!$E$41="Non-endemic"),0,IF(AND(OR(COUNTRY_INFO!$H19=0,COUNTRY_INFO!$H19=4,COUNTRY_INFO!$H19=99),OR(COUNTRY_INFO!$J19=0,COUNTRY_INFO!$J19=4)),0,COUNTRY_INFO!$E19)) -> 537725 | E19: =IF(AND(INTRO!$E$37="Non-endemic",INTRO!$E$41="Non-endemic"),0,IF(AND(OR(COUNTRY_INFO!$H19=0,COUNTRY_INFO!$H19=4,COUNTRY_INFO!$H19=99),OR(COUNTRY_INFO!$J19=0,COUNTRY_INFO!$J19=4)),0,COUNTRY_INFO!$F19)) -> 399399 | F19: 937124 | G19: =IF(AND(INTRO!$E$37="Non-endemic",INTRO!$E$41="Non-endemic"),0,COUNTRY_INFO!P19) -> 1 | H19: =IF(AND(INTRO!$E$37="Non-endemic",INTRO!$E$41="Non-endemic"),0,COUNTRY_INFO!R19) -> 0 | I19: =IF(INTRO!$E$39="Non-endemic",IF($G19=1,DEC!I19,0),IF($G19=1,IVM!G19,0)) -> 1281966 | J19: ALB | K19: =IF($J19="ALB", IF(INTRO!$E$39="Non-endemic", IF($H19<>0, IF($I19=0, $D19*$H19, $D19*($H19-$G19)), 0), $D19*$H19), 0) -> 0 | L19: 0 | N19: 0 | O19: =IF($J19="MBD", IF(INTRO!$E$39="Non-endemic", IF($H19<>0, IF($I19=0, $D19*$H19, $D19*($H19-$G19)), 0), $D19*$H19), 0) -> 0 | P19: 0 | R19: 0 | S19: 0 | T19: 1281966 | U19: 6410 | W19: 0 | X19: 0 | Z19: 0 | AA19: 0
A20: =IF(AND(INTRO!$E$37="Non-endemic",INTRO!$E$41="Non-endemic")," ",IF(COUNTRY_INFO!A20=0," ",COUNTRY_INFO!A20)) -> Liberia | B20: =IF(AND(INTRO!$E$37="Non-endemic",INTRO!$E$41="Non-endemic")," ",IF(COUNTRY_INFO!B20=0," ",COUNTRY_INFO!B20)) -> Nimba | C20: =IF(AND(INTRO!$E$37="Non-endemic",INTRO!$E$41="Non-endemic")," ",IF(COUNTRY_INFO!C20=0," ",COUNTRY_INFO!C20)) -> Nimba | D20: =IF(AND(INTRO!$E$37="Non-endemic",INTRO!$E$41="Non-endemic"),0,IF(AND(OR(COUNTRY_INFO!$H20=0,COUNTRY_INFO!$H20=4,COUNTRY_INFO!$H20=99),OR(COUNTRY_INFO!$J20=0,COUNTRY_INFO!$J20=4)),0,COUNTRY_INFO!$E20)) -> 52720 | E20: =IF(AND(INTRO!$E$37="Non-endemic",INTRO!$E$41="Non-endemic"),0,IF(AND(OR(COUNTRY_INFO!$H20=0,COUNTRY_INFO!$H20=4,COUNTRY_INFO!$H20=99),OR(COUNTRY_INFO!$J20=0,COUNTRY_INFO!$J20=4)),0,COUNTRY_INFO!$F20)) -> 165602 | F20: 218322 | G20: =IF(AND(INTRO!$E$37="Non-endemic",INTRO!$E$41="Non-endemic"),0,COUNTRY_INFO!P20) -> 1 | H20: =IF(AND(INTRO!$E$37="Non-endemic",INTRO!$E$41="Non-endemic"),0,COUNTRY_INFO!R20) -> 2 | I20: =IF(INTRO!$E$39="Non-endemic",IF($G20=1,DEC!I20,0),IF($G20=1,IVM!G20,0)) -> 531540 | J20: ALB | K20: =IF($J20="ALB", IF(INTRO!$E$39="Non-endemic", IF($H20<>0, IF($I20=0, $D20*$H20, $D20*($H20-$G20)), 0), $D20*$H20), 0) -> 105440 | L20: 165602 | N20: 271042 | O20: =IF($J20="MBD", IF(INTRO!$E$39="Non-endemic", IF($H20<>0, IF($I20=0, $D20*$H20, $D20*($H20-$G20)), 0), $D20*$H20), 0) -> 0 | P20: 0 | R20: 0 | S20: 0 | T20: 531540 | U20: 2658 | W20: 165602 | X20: 829 | Z20: 0 | AA20: 0
A21: =IF(AND(INTRO!$E$37="Non-endemic",INTRO!$E$41="Non-endemic")," ",IF(COUNTRY_INFO!A21=0," ",COUNTRY_INFO!A21)) -> Liberia | B21: =IF(AND(INTRO!$E$37="Non-endemic",INTRO!$E$41="Non-endemic")," ",IF(COUNTRY_INFO!B21=0," ",COUNTRY_INFO!B21)) -> Rivercess | C21: =IF(AND(INTRO!$E$37="Non-endemic",INTRO!$E$41="Non-endemic")," ",IF(COUNTRY_INFO!C21=0," ",COUNTRY_INFO!C21)) -> Rivercess | D21: =IF(AND(INTRO!$E$37="Non-endemic",INTRO!$E$41="Non-endemic"),0,IF(AND(OR(COUNTRY_INFO!$H21=0,COUNTRY_INFO!$H21=4,COUNTRY_INFO!$H21=99),OR(COUNTRY_INFO!$J21=0,COUNTRY_INFO!$J21=4)),0,COUNTRY_INFO!$E21)) -> 8160 | E21: =IF(AND(INTRO!$E$37="Non-endemic",INTRO!$E$41="Non-endemic"),0,IF(AND(OR(COUNTRY_INFO!$H21=0,COUNTRY_INFO!$H21=4,COUNTRY_INFO!$H21=99),OR(COUNTRY_INFO!$J21=0,COUNTRY_INFO!$J21=4)),0,COUNTRY_INFO!$F21)) -> 25631 | F21: 33791 | G21: =IF(AND(INTRO!$E$37="Non-endemic",INTRO!$E$41="Non-endemic"),0,COUNTRY_INFO!P21) -> 1 | H21: =IF(AND(INTRO!$E$37="Non-endemic",INTRO!$E$41="Non-endemic"),0,COUNTRY_INFO!R21) -> 1 | I21: =IF(INTRO!$E$39="Non-endemic",IF($G21=1,DEC!I21,0),IF($G21=1,IVM!G21,0)) -> 82268 | J21: ALB | K21: =IF($J21="ALB", IF(INTRO!$E$39="Non-endemic", IF($H21<>0, IF($I21=0, $D21*$H21, $D21*($H21-$G21)), 0), $D21*$H21), 0) -> 8160 | L21: 0 | N21: 8160 | O21: =IF($J21="MBD", IF(INTRO!$E$39="Non-endemic", IF($H21<>0, IF($I21=0, $D21*$H21, $D21*($H21-$G21)), 0), $D21*$H21), 0) -> 0 | P21: 0 | R21: 0 | S21: 0 | T21: 82268 | U21: 412 | W21: 0 | X21: 0 | Z21: 0 | AA21: 0
A22: =IF(AND(INTRO!$E$37="Non-endemic",INTRO!$E$41="Non-endemic")," ",IF(COUNTRY_INFO!A22=0," ",COUNTRY_INFO!A22)) -> Liberia | B22: =IF(AND(INTRO!$E$37="Non-endemic",INTRO!$E$41="Non-endemic")," ",IF(COUNTRY_INFO!B22=0," ",COUNTRY_INFO!B22)) -> Rivergee | C22: =IF(AND(INTRO!$E$37="Non-endemic",INTRO!$E$41="Non-endemic")," ",IF(COUNTRY_INFO!C22=0," ",COUNTRY_INFO!C22)) -> Rivergee | D22: =IF(AND(INTRO!$E$37="Non-endemic",INTRO!$E$41="Non-endemic"),0,IF(AND(OR(COUNTRY_INFO!$H22=0,COUNTRY_INFO!$H22=4,COUNTRY_INFO!$H22=99),OR(COUNTRY_INFO!$J22=0,COUNTRY_INFO!$J22=4)),0,COUNTRY_INFO!$E22)) -> 7621 | E22: =IF(AND(INTRO!$E$37="Non-endemic",INTRO!$E$41="Non-endemic"),0,IF(AND(OR(COUNTRY_INFO!$H22=0,COUNTRY_INFO!$H22=4,COUNTRY_INFO!$H22=99),OR(COUNTRY_INFO!$J22=0,COUNTRY_INFO!$J22=4)),0,COUNTRY_INFO!$F22)) -> 23939 | F22: 31560 | G22: =IF(AND(INTRO!$E$37="Non-endemic",INTRO!$E$41="Non-endemic"),0,COUNTRY_INFO!P22) -> 1 | H22: =IF(AND(INTRO!$E$37="Non-endemic",INTRO!$E$41="Non-endemic"),0,COUNTRY_INFO!R22) -> 1 | I22: =IF(INTRO!$E$39="Non-endemic",IF($G22=1,DEC!I22,0),IF($G22=1,IVM!G22,0)) -> 76838 | J22: ALB | K22: =IF($J22="ALB", IF(INTRO!$E$39="Non-endemic", IF($H22<>0, IF($I22=0, $D22*$H22, $D22*($H22-$G22)), 0), $D22*$H22), 0) -> 7621 | L22: 0 | N22: 7621 | O22: =IF($J22="MBD", IF(INTRO!$E$39="Non-endemic", IF($H22<>0, IF($I22=0, $D22*$H22, $D22*($H22-$G22)), 0), $D22*$H22), 0) -> 0 | P22: 0 | R22: 0 | S22: 0 | T22: 76838 | U22: 385 | W22: 0 | X22: 0 | Z22: 0 | AA22: 0
A23: =IF(AND(INTRO!$E$37="Non-endemic",INTRO!$E$41="Non-endemic")," ",IF(COUNTRY_INFO!A23=0," ",COUNTRY_INFO!A23)) -> Liberia | B23: =IF(AND(INTRO!$E$37="Non-endemic",INTRO!$E$41="Non-endemic")," ",IF(COUNTRY_INFO!B23=0," ",COUNTRY_INFO!B23)) -> Sinoe | C23: =IF(AND(INTRO!$E$37="Non-endemic",INTRO!$E$41="Non-endemic")," ",IF(COUNTRY_INFO!C23=0," ",COUNTRY_INFO!C23)) -> Sinoe | D23: =IF(AND(INTRO!$E$37="Non-endemic",INTRO!$E$41="Non-endemic"),0,IF(AND(OR(COUNTRY_INFO!$H23=0,COUNTRY_INFO!$H23=4,COUNTRY_INFO!$H23=99),OR(COUNTRY_INFO!$J23=0,COUNTRY_INFO!$J23=4)),0,COUNTRY_INFO!$E23)) -> 11683 | E23: =IF(AND(INTRO!$E$37="Non-endemic",INTRO!$E$41="Non-endemic"),0,IF(AND(OR(COUNTRY_INFO!$H23=0,COUNTRY_INFO!$H23=4,COUNTRY_INFO!$H23=99),OR(COUNTRY_INFO!$J23=0,COUNTRY_INFO!$J23=4)),0,COUNTRY_INFO!$F23)) -> 36699 | F23: 48382 | G23: =IF(AND(INTRO!$E$37="Non-endemic",INTRO!$E$41="Non-endemic"),0,COUNTRY_INFO!P23) -> 1 | H23: =IF(AND(INTRO!$E$37="Non-endemic",INTRO!$E$41="Non-endemic"),0,COUNTRY_INFO!R23) -> 2 | I23: =IF(INTRO!$E$39="Non-endemic",IF($G23=1,DEC!I23,0),IF($G23=1,IVM!G23,0)) -> 117795 | J23: ALB | K23: =IF($J23="ALB", IF(INTRO!$E$39="Non-endemic", IF($H23<>0, IF($I23=0, $D23*$H23, $D23*($H23-$G23)), 0), $D23*$H23), 0) -> 23366 | L23: 36699 | N23: 60065 | O23: =IF($J23="MBD", IF(INTRO!$E$39="Non-endemic", IF($H23<>0, IF($I23=0, $D23*$H23, $D23*($H23-$G23)), 0), $D23*$H23), 0) -> 0 | P23: 0 | R23: 0 | S23: 0 | T23: 117795 | U23: 589 | W23: 36699 | X23: 184 | Z23: 0 | AA23: 0

Sheet PZQ
A1: Praziquantel (PZQ)
A2: Administrative structure, eligible population by age group, treatment plan and information about tablets
A4: TOTAL | D4: =SUM(D$9:D$1000) -> 889633 | E4: =SUM(E$9:E$1000) -> 570978 | F4: =SUM(F$9:F$1000) -> 1460611 | I4: =SUM(I$9:I$1000) -> 981436 | J4: 0 | K4: 457682 | L4: 1439118 | M4: 2453590 | N4: 1373046 | O4: =M4 -> 2453590 | P4: 0 | Q4: 2453590 | R4: 2457
A6: Country administrative structure | D6: Population requiring treatment with PZQ | G6: Treatment plan | I6: Target population | M6: Praziquantel (PZQ)
A7: Country | B7: Province/State | C7: District | D7: SAC | E7: Adults | F7: Total | G7: SCH | H7: All SAC targeted? | I7: SAC | J7: SAC at lower level | K7: Adults | L7: Total | M7: SAC | N7: Adults | O7: Total required for SAC | P7: Remaining in stock | Q7: Tablets to be procured | R7: Bottle (600 mg) 1000 tablets
A9: =IF(INTRO!$E$43="Non-endemic"," ", IF(COUNTRY_INFO!A9=0," ",COUNTRY_INFO!A9)) -> Liberia | B9: =IF(INTRO!$E$43="Non-endemic"," ", IF(COUNTRY_INFO!B9=0," ",COUNTRY_INFO!B9)) -> Bomi | C9: =IF(INTRO!$E$43="Non-endemic"," ", IF(COUNTRY_INFO!C9=0," ",COUNTRY_INFO!C9)) -> Bomi | D9: 30859 | E9: 10115 | F9: =SUM(D9:E9) -> 40974 | G9: =IF(INTRO!$E$43="Non-endemic", "Not required", COUNTRY_INFO!S9) -> 0 | I9: =IF($D9=0,0,IF(AND($G9>0,$H9<>"Yes"),D9,IF(AND($G9>0,$H9="Yes"),COUNTRY_INFO!$F9,0))) -> 0 | J9: 0 | K9: 10115 | L9: =IF($J9=0,SUM(I9,K9),SUM(J9,K9)) -> 10115 | M9: =IF($J9=0,$I9*2.5,$J9*2.5) -> 0 | N9: =$K9*3 -> 30345 | O9: =M9 -> 0 | P9: 0 | Q9: =IF($O9>$P9,O9-P9,0) -> 0 | R9: =ROUNDUP($O9/1000,0) -> 0
A10: =IF(INTRO!$E$43="Non-endemic"," ", IF(COUNTRY_INFO!A10=0," ",COUNTRY_INFO!A10)) -> Liberia | B10: =IF(INTRO!$E$43="Non-endemic"," ", IF(COUNTRY_INFO!B10=0," ",COUNTRY_INFO!B10)) -> Bong | C10: =IF(INTRO!$E$43="Non-endemic"," ", IF(COUNTRY_INFO!C10=0," ",COUNTRY_INFO!C10)) -> Bong | D10: 122338 | E10: 149964 | F10: 272302 | G10: =IF(INTRO!$E$43="Non-endemic", "Not required", COUNTRY_INFO!S10) -> 1 | H10: Yes | I10: =IF($D10=0,0,IF(AND($G10>0,$H10<>"Yes"),D10,IF(AND($G10>0,$H10="Yes"),COUNTRY_INFO!$F10,0))) -> 119529 | J10: 0 | K10: 134398 | L10: 253927 | M10: 298822.5 | N10: 403194 | O10: =M10 -> 298822.5 | P10: 0 | Q10: 298822.5 | R10: 299
A11: =IF(INTRO!$E$43="Non-endemic"," ", IF(COUNTRY_INFO!A11=0," ",COUNTRY_INFO!A11)) -> Liberia | B11: =IF(INTRO!$E$43="Non-endemic"," ", IF(COUNTRY_INFO!B11=0," ",COUNTRY_INFO!B11)) -> Gbarpolu | C11: =IF(INTRO!$E$43="Non-endemic"," ", IF(COUNTRY_INFO!C11=0," ",COUNTRY_INFO!C11)) -> Gbarpolu | D11: 30591 | E11: 4108 | F11: 34699 | G11: =IF(INTRO!$E$43="Non-endemic", "Not required", COUNTRY_INFO!S11) -> 0 | I11: =IF($D11=0,0,IF(AND($G11>0,$H11<>"Yes"),D11,IF(AND($G11>0,$H11="Yes"),COUNTRY_INFO!$F11,0))) -> 0 | J11: 0 | K11: 4108 | L11: 4108 | M11: 0 | N11: 12324 | O11: 0 | P11: 0 | Q11: 0 | R11: 0
A12: =IF(INTRO!$E$43="Non-endemic"," ", IF(COUNTRY_INFO!A12=0," ",COUNTRY_INFO!A12)) -> Liberia | B12: =IF(INTRO!$E$43="Non-endemic"," ", IF(COUNTRY_INFO!B12=0," ",COUNTRY_INFO!B12)) -> Grand Bassa | C12: =IF(INTRO!$E$43="Non-endemic"," ", IF(COUNTRY_INFO!C12=0," ",COUNTRY_INFO!C12)) -> Grand Bassa | D12: 81328 | E12: 10432 | F12: 91760 | G12: =IF(INTRO!$E$43="Non-endemic", "Not required", COUNTRY_INFO!S12) -> 1 | H12: Yes | I12: =IF($D12=0,0,IF(AND($G12>0,$H12<>"Yes"),D12,IF(AND($G12>0,$H12="Yes"),COUNTRY_INFO!$F12,0))) -> 79461 | J12: 0 | K12: 10432 | L12: 89893 | M12: 198652.5 | N12: 31296 | O12: 198652.5 | P12: 0 | Q12: 198652.5 | R12: 199
A13: =IF(INTRO!$E$43="Non-endemic"," ", IF(COUNTRY_INFO!A13=0," ",COUNTRY_INFO!A13)) -> Liberia | B13: =IF(INTRO!$E$43="Non-endemic"," ", IF(COUNTRY_INFO!B13=0," ",COUNTRY_INFO!B13)) -> Grand Cape Mount | C13: =IF(INTRO!$E$43="Non-endemic"," ", IF(COUNTRY_INFO!C13=0," ",COUNTRY_INFO!C13)) -> Grand Cape Mount | D13: 46617 | E13: 39615 | F13: 86232 | G13: =IF(INTRO!$E$43="Non-endemic", "Not required", COUNTRY_INFO!S13) -> 1 | H13: Yes | I13: =IF($D13=0,0,IF(AND($G13>0,$H13<>"Yes"),D13,IF(AND($G13>0,$H13="Yes"),COUNTRY_INFO!$F13,0))) -> 45547 | J13: 0 | K13: 39615 | L13: 85162 | M13: 113867.5 | N13: 118845 | O13: 113867.5 | P13: 0 | Q13: 113867.5 | R13: 114
A14: =IF(INTRO!$E$43="Non-endemic"," ", IF(COUNTRY_INFO!A14=0," ",COUNTRY_INFO!A14)) -> Liberia | B14: =IF(INTRO!$E$43="Non-endemic"," ", IF(COUNTRY_INFO!B14=0," ",COUNTRY_INFO!B14)) -> Grand Gedeh | C14: =IF(INTRO!$E$43="Non-endemic"," ", IF(COUNTRY_INFO!C14=0," ",COUNTRY_INFO!C14)) -> Grand Gedeh | D14: 45949 | E14: 25907 | F14: 71856 | G14: =IF(INTRO!$E$43="Non-endemic", "Not required", COUNTRY_INFO!S14) -> 0 | I14: =IF($D14=0,0,IF(AND($G14>0,$H14<>"Yes"),D14,IF(AND($G14>0,$H14="Yes"),COUNTRY_INFO!$F14,0))) -> 0 | J14: 0 | K14: 10640 | L14: 10640 | M14: 0 | N14: 31920 | O14: =M14 -> 0 | P14: 0 | Q14: 0 | R14: 0
A15: =IF(INTRO!$E$43="Non-endemic"," ", IF(COUNTRY_INFO!A15=0," ",COUNTRY_INFO!A15)) -> Liberia | B15: =IF(INTRO!$E$43="Non-endemic"," ", IF(COUNTRY_INFO!B15=0," ",COUNTRY_INFO!B15)) -> Grand Kru | C15: =IF(INTRO!$E$43="Non-endemic"," ", IF(COUNTRY_INFO!C15=0," ",COUNTRY_INFO!C15)) -> Grand Kru | D15: 0 | E15: 0 | F15: 0 | G15: =IF(INTRO!$E$43="Non-endemic", "Not required", COUNTRY_INFO!S15) -> 0 | I15: =IF($D15=0,0,IF(AND($G15>0,$H15<>"Yes"),D15,IF(AND($G15>0,$H15="Yes"),COUNTRY_INFO!$F15,0))) -> 0 | J15: 0 | K15: 0 | L15: 0 | M15: 0 | N15: 0 | O15: 0 | P15: 0 | Q15: 0 | R15: 0
A16: =IF(INTRO!$E$43="Non-endemic"," ", IF(COUNTRY_INFO!A16=0," ",COUNTRY_INFO!A16)) -> Liberia | B16: =IF(INTRO!$E$43="Non-endemic"," ", IF(COUNTRY_INFO!B16=0," ",COUNTRY_INFO!B16)) -> Lofa | C16: =IF(INTRO!$E$43="Non-endemic"," ", IF(COUNTRY_INFO!C16=0," ",COUNTRY_INFO!C16)) -> Lofa | D16: 101568 | E16: 101972 | F16: 203540 | G16: =IF(INTRO!$E$43="Non-endemic", "Not required", COUNTRY_INFO!S16) -> 1 | H16: Yes | I16: =IF($D16=0,0,IF(AND($G16>0,$H16<>"Yes"),D16,IF(AND($G16>0,$H16="Yes"),COUNTRY_INFO!$F16,0))) -> 99235 | J16: 0 | K16: 79402 | L16: 178637 | M16: 248087.5 | N16: 238206 | O16: =M16 -> 248087.5 | P16: 0 | Q16: 248087.5 | R16: 249
A17: =IF(INTRO!$E$43="Non-endemic"," ", IF(COUNTRY_INFO!A17=0," ",COUNTRY_INFO!A17)) -> Liberia | B17: =IF(INTRO!$E$43="Non-endemic"," ", IF(COUNTRY_INFO!B17=0," ",COUNTRY_INFO!B17)) -> Margibi | C17: =IF(INTRO!$E$43="Non-endemic"," ", IF(COUNTRY_INFO!C17=0," ",COUNTRY_INFO!C17)) -> Margibi | D17: 77011 | E17: 29154 | F17: 106165 | G17: =IF(INTRO!$E$43="Non-endemic", "Not required", COUNTRY_INFO!S17) -> 0 | I17: =IF($D17=0,0,IF(AND($G17>0,$H17<>"Yes"),D17,IF(AND($G17>0,$H17="Yes"),COUNTRY_INFO!$F17,0))) -> 0 | J17: 0 | K17: 29154 | L17: 29154 | M17: 0 | N17: 87462 | O17: 0 | P17: 0 | Q17: 0 | R17: 0
A18: =IF(INTRO!$E$43="Non-endemic"," ", IF(COUNTRY_INFO!A18=0," ",COUNTRY_INFO!A18)) -> Liberia | B18: =IF(INTRO!$E$43="Non-endemic"," ", IF(COUNTRY_INFO!B18=0," ",COUNTRY_INFO!B18)) -> Maryland | C18: =IF(INTRO!$E$43="Non-endemic"," ", IF(COUNTRY_INFO!C18=0," ",COUNTRY_INFO!C18)) -> Maryland | D18: 49869 | E18: 59685 | F18: 109554 | G18: =IF(INTRO!$E$43="Non-endemic", "Not required", COUNTRY_INFO!S18) -> 1 | H18: Yes | I18: =IF($D18=0,0,IF(AND($G18>0,$H18<>"Yes"),D18,IF(AND($G18>0,$H18="Yes"),COUNTRY_INFO!$F18,0))) -> 48724 | J18: 0 | K18: 51007 | L18: 99731 | M18: 121810 | N18: 153021 | O18: =M18 -> 121810 | P18: 0 | Q18: 121810 | R18: 122
A19: =IF(INTRO!$E$43="Non-endemic"," ", IF(COUNTRY_INFO!A19=0," ",COUNTRY_INFO!A19)) -> Liberia | B19: =IF(INTRO!$E$43="Non-endemic"," ", IF(COUNTRY_INFO!B19=0," ",COUNTRY_INFO!B19)) -> Montserrado | C19: =IF(INTRO!$E$43="Non-endemic"," ", IF(COUNTRY_INFO!C19=0," ",COUNTRY_INFO!C19)) -> Montserrado | D19: 57037 | E19: 7095 | F19: 64132 | G19: =IF(INTRO!$E$43="Non-endemic", "Not required", COUNTRY_INFO!S19) -> 1 | H19: Yes | I19: =IF($D19=0,0,IF(AND($G19>0,$H19<>"Yes"),D19,IF(AND($G19>0,$H19="Yes"),COUNTRY_INFO!$F19,0))) -> 399399 | J19: 0 | K19: 7095 | L19: 406494 | M19: 998497.5 | N19: 21285 | O19: 998497.5 | P19: 0 | Q19: 998497.5 | R19: 999
A20: =IF(INTRO!$E$43="Non-endemic"," ", IF(COUNTRY_INFO!A20=0," ",COUNTRY_INFO!A20)) -> Liberia | B20: =IF(INTRO!$E$43="Non-endemic"," ", IF(COUNTRY_INFO!B20=0," ",COUNTRY_INFO!B20)) -> Nimba | C20: =IF(INTRO!$E$43="Non-endemic"," ", IF(COUNTRY_INFO!C20=0," ",COUNTRY_INFO!C20)) -> Nimba | D20: 169496 | E20: 121834 | F20: 291330 | G20: =IF(INTRO!$E$43="Non-endemic", "Not required", COUNTRY_INFO!S20) -> 1 | H20: Yes | I20: =IF($D20=0,0,IF(AND($G20>0,$H20<>"Yes"),D20,IF(AND($G20>0,$H20="Yes"),COUNTRY_INFO!$F20,0))) -> 165602 | J20: 0 | K20: 72085 | L20: 237687 | M20: 414005 | N20: 216255 | O20: =M20 -> 414005 | P20: 0 | Q20: 414005 | R20: 415
A21: =IF(INTRO!$E$43="Non-endemic"," ", IF(COUNTRY_INFO!A21=0," ",COUNTRY_INFO!A21)) -> Liberia | B21: =IF(INTRO!$E$43="Non-endemic"," ", IF(COUNTRY_INFO!B21=0," ",COUNTRY_INFO!B21)) -> Rivercess | C21: =IF(INTRO!$E$43="Non-endemic"," ", IF(COUNTRY_INFO!C21=0," ",COUNTRY_INFO!C21)) -> Rivercess | D21: 26235 | E21: 2956 | F21: 29191 | G21: =IF(INTRO!$E$43="Non-endemic", "Not required", COUNTRY_INFO!S21) -> 0 | I21: =IF($D21=0,0,IF(AND($G21>0,$H21<>"Yes"),D21,IF(AND($G21>0,$H21="Yes"),COUNTRY_INFO!$F21,0))) -> 0 | J21: 0 | K21: 2956 | L21: 2956 | M21: 0 | N21: 8868 | O21: 0 | P21: 0 | Q21: 0 | R21: 0
A22: =IF(INTRO!$E$43="Non-endemic"," ", IF(COUNTRY_INFO!A22=0," ",COUNTRY_INFO!A22)) -> Liberia | B22: =IF(INTRO!$E$43="Non-endemic"," ", IF(COUNTRY_INFO!B22=0," ",COUNTRY_INFO!B22)) -> Rivergee | C22: =IF(INTRO!$E$43="Non-endemic"," ", IF(COUNTRY_INFO!C22=0," ",COUNTRY_INFO!C22)) -> Rivergee | D22: 24500 | E22: 6675 | F22: 31175 | G22: =IF(INTRO!$E$43="Non-endemic", "Not required", COUNTRY_INFO!S22) -> 1 | H22: Yes | I22: =IF($D22=0,0,IF(AND($G22>0,$H22<>"Yes"),D22,IF(AND($G22>0,$H22="Yes"),COUNTRY_INFO!$F22,0))) -> 23939 | J22: 0 | K22: 6675 | L22: 30614 | M22: 59847.5 | N22: 20025 | O22: 59847.5 | P22: 0 | Q22: 59847.5 | R22: 60
A23: =IF(INTRO!$E$43="Non-endemic"," ", IF(COUNTRY_INFO!A23=0," ",COUNTRY_INFO!A23)) -> Liberia | B23: =IF(INTRO!$E$43="Non-endemic"," ", IF(COUNTRY_INFO!B23=0," ",COUNTRY_INFO!B23)) -> Sinoe | C23: =IF(INTRO!$E$43="Non-endemic"," ", IF(COUNTRY_INFO!C23=0," ",COUNTRY_INFO!C23)) -> Sinoe | D23: 26235 | E23: 1466 | F23: 27701 | G23: =IF(INTRO!$E$43="Non-endemic", "Not required", COUNTRY_INFO!S23) -> 0 | I23: =IF($D23=0,0,IF(AND($G23>0,$H23<>"Yes"),D23,IF(AND($G23>0,$H23="Yes"),COUNTRY_INFO!$F23,0))) -> 0 | J23: 0 | K23: 0 | L23: 0 | M23: 0 | N23: 0 | O23: =M23 -> 0 | P23: 0 | Q23: 0 | R23: 0

Sheet DSD
A1: Geography | H1: EPI | K1: Population Requiring PC and Annual Treatment Projections - 2023
A2: SN | B2: Country | C2: ISO3 | D2: Province | E2: District | F2: ESPEN_IU_ID | G2: Ward | H2: Endemicity | I2: Adult Estimations for Rx | J2: Total Estimations for Rx | K2: SAC Requiring PC | L2: Adult Requiring PC | M2: Total Requiring PC | N2: Planned for Rx | O2: SAC Estimations for Rx
A3: 5568 | B3: Liberia | C3: LBR | D3: Bomi | E3: Bomi | F3: 2114 | G3: Dowein | H3: Low | I3: 0 | J3: 0 | K3: 4231 | L3: 0 | M3: 4231 | N3: 1 | O3: 4231
A4: 5566 | B4: Liberia | C4: LBR | D4: Bomi | E4: Bomi | F4: 2114 | G4: Klay | H4: Moderate | I4: 3777 | J4: 13752 | K4: 10185 | L4: 3856 | M4: 14041 | N4: 0 | O4: 0
A5: 5565 | B5: Liberia | C5: LBR | D5: Bomi | E5: Bomi | F5: 2114 | G5: Senjeh | H5: Moderate | I5: 3490 | J5: 12708 | K5: 9411 | L5: 3563 | M5: 12974 | N5: 0 | O5: 0
A6: 5567 | B6: Liberia | C6: LBR | D6: Bomi | E6: Bomi | F6: 2114 | G6: Suehn Mecca | H6: Moderate | I6: 2848 | J6: 10370 | K6: 7680 | L6: 2907 | M6: 10587 | N6: 0 | O6: 0
A7: 5573 | B7: Liberia | C7: LBR | D7: Bong | E7: Bong | F7: 2115 | G7: Fuamah | H7: Low | I7: 0 | J7: 0 | K7: 10433 | L7: 0 | M7: 10433 | N7: 0 | O7: 0
A8: 5574 | B8: Liberia | C8: LBR | D8: Bong | E8: Bong | F8: 2115 | G8: Jorquelleh | H8: High | I8: 51914 | J8: 79340 | K8: 28002 | L8: 53004 | M8: 81006 | N8: 1 | O8: 28002
A9: 5569 | B9: Liberia | C9: LBR | D9: Bong | E9: Bong | F9: 2115 | G9: Kokoyah | H9: High | I9: 17116 | J9: 26158 | K9: 9232 | L9: 17475 | M9: 26707 | N9: 1 | O9: 9232
A10: 5576 | B10: Liberia | C10: LBR | D10: Bong | E10: Bong | F10: 2115 | G10: Kpaai | H10: High | I10: 18255 | J10: 27899 | K10: 9847 | L10: 18639 | M10: 28486 | N10: 1 | O10: 9847
A11: 5572 | B11: Liberia | C11: LBR | D11: Bong | E11: Bong | F11: 2115 | G11: Panta | H11: High | I11: 12935 | J11: 19769 | K11: 6977 | L11: 13207 | M11: 20184 | N11: 1 | O11: 6977
A12: 5575 | B12: Liberia | C12: LBR | D12: Bong | E12: Bong | F12: 2115 | G12: Salala | H12: Moderate | I12: 0 | J12: 0 | K12: 16421 | L12: 6216 | M12: 22637 | N12: 1 | O12: 16421
A13: 5571 | B13: Liberia | C13: LBR | D13: Bong | E13: Bong | F13: 2115 | G13: Sanoyea | H13: High | I13: 18891 | J13: 28871 | K13: 10190 | L13: 19287 | M13: 29477 | N13: 1 | O13: 10190
A14: 5577 | B14: Liberia | C14: LBR | D14: Bong | E14: Bong | F14: 2115 | G14: Suakoko | H14: Moderate | I14: 0 | J14: 0 | K14: 25561 | L14: 9677 | M14: 35238 | N14: 1 | O14: 25561
A15: 5570 | B15: Liberia | C15: LBR | D15: Bong | E15: Bong | F15: 2115 | G15: Zota | H15: High | I15: 15287 | J15: 23363 | K15: 8246 | L15: 15608 | M15: 23854 | N15: 1 | O15: 8246
A16: 5579 | B16: Liberia | C16: LBR | D16: Gbarpolu | E16: Gbarpolu | F16: 2116 | G16: Belle | H16: Low | I16: 0 | J16: 0 | K16: 5766 | L16: 0 | M16: 5766 | N16: 1 | O16: 5766
A17: 5581 | B17: Liberia | C17: LBR | D17: Gbarpolu | E17: Gbarpolu | F17: 2116 | G17: Bokomu | H17: Low | I17: 0 | J17: 0 | K17: 7949 | L17: 0 | M17: 7949 | N17: 1 | O17: 7949
A18: 5578 | B18: Liberia | C18: LBR | D18: Gbarpolu | E18: Gbarpolu | F18: 2116 | G18: Bopolu | H18: Low | I18: 0 | J18: 0 | K18: 6437 | L18: 0 | M18: 6437 | N18: 1 | O18: 6437
A19: 5580 | B19: Liberia | C19: LBR | D19: Gbarpolu | E19: Gbarpolu | F19: 2116 | G19: Gbarma | H19: Moderate | I19: 2254 | J19: 8209 | K19: 6081 | L19: 2302 | M19: 8383 | N19: 0 | O19: 0
A20: 5582 | B20: Liberia | C20: LBR | D20: Gbarpolu | E20: Gbarpolu | F20: 2116 | G20: Kongba | H20: Moderate | I20: 1854 | J20: 6753 | K20: 5002 | L20: 1893 | M20: 6895 | N20: 0 | O20: 0
A21: 5583 | B21: Liberia | C21: LBR | D21: Grand Bassa | E21: Grand Bassa | F21: 2117 | G21: Buchanan | H21: Low | I21: 0 | J21: 0 | K21: 28383 | L21: 0 | M21: 28383 | N21: 1 | O21: 28383
A22: 5584 | B22: Liberia | C22: LBR | D22: Grand Bassa | E22: Grand Bassa | F22: 2117 | G22: Campwood | H22: Low | I22: 0 | J22: 0 | K22: 6860 | L22: 0 | M22: 6860 | N22: 1 | O22: 6860
A23: 5585 | B23: Liberia | C23: LBR | D23: Grand Bassa | E23: Grand Bassa | F23: 2117 | G23: District 1 | H23: Moderate | I23: 3372 | J23: 12279 | K23: 9094 | L23: 3443 | M23: 12537 | N23: 0 | O23: 0
A24: 5586 | B24: Liberia | C24: LBR | D24: Grand Bassa | E24: Grand Bassa | F24: 2117 | G24: District 2 | H24: Moderate | I24: 2267 | J24: 8253 | K24: 6112 | L24: 2314 | M24: 8426 | N24: 0 | O24: 0
A25: 5587 | B25: Liberia | C25: LBR | D25: Grand Bassa | E25: Grand Bassa | F25: 2117 | G25: District 3 | H25: Low | I25: 0 | J25: 0 | K25: 19660 | L25: 0 | M25: 19660 | N25: 1 | O25: 19660
A26: 5588 | B26: Liberia | C26: LBR | D26: Grand Bassa | E26: Grand Bassa | F26: 2117 | G26: District 4 | H26: Moderate | I26: 2565 | J26: 9340 | K26: 6918 | L26: 2619 | M26: 9537 | N26: 0 | O26: 0
A27: 5589 | B27: Liberia | C27: LBR | D27: Grand Bassa | E27: Grand Bassa | F27: 2117 | G27: Owensgrove | H27: Moderate | I27: 2228 | J27: 8114 | K27: 6010 | L27: 2275 | M27: 8285 | N27: 0 | O27: 0
A28: 5590 | B28: Liberia | C28: LBR | D28: Grand Cape Mount | E28: Grand Cape Mount | F28: 2118 | G28: Commonwealth-C | H28: Moderate | I28: 1148 | J28: 4179 | K28: 3095 | L28: 1172 | M28: 4267 | N28: 0 | O28: 0
A29: 5591 | B29: Liberia | C29: LBR | D29: Grand Cape Mount | E29: Grand Cape Mount | F29: 2118 | G29: Garwula | H29: Moderate | I29: 3469 | J29: 12633 | K29: 9357 | L29: 3542 | M29: 12899 | N29: 0 | O29: 0
A30: 5592 | B30: Liberia | C30: LBR | D30: Grand Cape Mount | E30: Grand Cape Mount | F30: 2118 | G30: Gola konneh | H30: Moderate | I30: 3410 | J30: 12417 | K30: 9196 | L30: 3482 | M30: 12678 | N30: 0 | O30: 0
A31: 5593 | B31: Liberia | C31: LBR | D31: Grand Cape Mount | E31: Grand Cape Mount | F31: 2118 | G31: Porkpa | H31: High | I31: 27458 | J31: 41964 | K31: 14811 | L31: 28034 | M31: 42845 | N31: 1 | O31: 14811
A32: 5594 | B32: Liberia | C32: LBR | D32: Grand Cape Mount | E32: Grand Cape Mount | F32: 2118 | G32: Tewor | H32: Moderate | I32: 4130 | J32: 15039 | K32: 11138 | L32: 4217 | M32: 15355 | N32: 0 | O32: 0
A33: 5595 | B33: Liberia | C33: LBR | D33: Grand Gedeh | E33: Grand Gedeh | F33: 2119 | G33: B'Hai | H33: Moderate | I33: 0 | J33: 0 | K33: 4881 | L33: 1848 | M33: 6729 | N33: 1 | O33: 4881
A34: 5596 | B34: Liberia | C34: LBR | D34: Grand Gedeh | E34: Grand Gedeh | F34: 2119 | G34: Cavalla | H34: Moderate | I34: 0 | J34: 0 | K34: 6413 | L34: 2428 | M34: 8841 | N34: 1 | O34: 6413
A35: 5597 | B35: Liberia | C35: LBR | D35: Grand Gedeh | E35: Grand Gedeh | F35: 2119 | G35: Gbao | H35: High | I35: 10640 | J35: 16261 | K35: 5739 | L35: 10863 | M35: 16602 | N35: 1 | O35: 5739
A36: 5598 | B36: Liberia | C36: LBR | D36: Grand Gedeh | E36: Grand Gedeh | F36: 2119 | G36: Konobo | H36: Moderate | I36: 0 | J36: 0 | K36: 11191 | L36: 4236 | M36: 15427 | N36: 1 | O36: 11191
A37: 5599 | B37: Liberia | C37: LBR | D37: Grand Gedeh | E37: Grand Gedeh | F37: 2119 | G37: Putu | H37: Moderate | I37: 0 | J37: 0 | K37: 7146 | L37: 2705 | M37: 9851 | N37: 1 | O37: 7146
A38: 5600 | B38: Liberia | C38: LBR | D38: Grand Gedeh | E38: Grand Gedeh | F38: 2119 | G38: Tchien | H38: Moderate | I38: 0 | J38: 0 | K38: 11545 | L38: 4371 | M38: 15916 | N38: 1 | O38: 11545
A39: 5601 | B39: Liberia | C39: LBR | D39: Grand Kru | E39: Grand Kru | F39: 2120 | G39: Barclayville | H39: Not endemic | I39: 0 | J39: 0 | K39: 0 | L39: 0 | M39: 0 | N39: 0 | O39: 0
A40: 5602 | B40: Liberia | C40: LBR | D40: Grand Kru | E40: Grand Kru | F40: 2120 | G40: Buah | H40: Not endemic | I40: 0 | J40: 0 | K40: 0 | L40: 0 | M40: 0 | N40: 0 | O40: 0
A41: 5603 | B41: Liberia | C41: LBR | D41: Grand Kru | E41: Grand Kru | F41: 2120 | G41: Dorbor | H41: Not endemic | I41: 0 | J41: 0 | K41: 0 | L41: 0 | M41: 0 | N41: 0 | O41: 0
A42: 5604 | B42: Liberia | C42: LBR | D42: Grand Kru | E42: Grand Kru | F42: 2120 | G42: Jraoh | H42: Not endemic | I42: 0 | J42: 0 | K42: 0 | L42: 0 | M42: 0 | N42: 0 | O42: 0
A43: 5605 | B43: Liberia | C43: LBR | D43: Grand Kru | E43: Grand Kru | F43: 2120 | G43: Trehn | H43: Not endemic | I43: 0 | J43: 0 | K43: 0 | L43: 0 | M43: 0 | N43: 0 | O43: 0
A44: 5606 | B44: Liberia | C44: LBR | D44: Lofa | E44: Lofa | F44: 2121 | G44: Foya | H44: High | I44: 50526 | J44: 77219 | K44: 27254 | L44: 51587 | M44: 78841 | N44: 1 | O44: 27254
A45: 5607 | B45: Liberia | C45: LBR | D45: Lofa | E45: Lofa | F45: 2121 | G45: Kolahun | H45: Moderate | I45: 0 | J45: 0 | K45: 22946 | L45: 8687 | M45: 31633 | N45: 1 | O45: 22946
A46: 5608 | B46: Liberia | C46: LBR | D46: Lofa | E46: Lofa | F46: 2121 | G46: Salayea | H46: High | I46: 16756 | J46: 25608 | K46: 9038 | L46: 17107 | M46: 26145 | N46: 1 | O46: 9038
A47: 5609 | B47: Liberia | C47: LBR | D47: Lofa | E47: Lofa | F47: 2121 | G47: Vahun | H47: High | I47: 12120 | J47: 18524 | K47: 6538 | L47: 12375 | M47: 18913 | N47: 1 | O47: 6538
A48: 5610 | B48: Liberia | C48: LBR | D48: Lofa | E48: Lofa | F48: 2121 | G48: Voinjama | H48: Moderate | I48: 0 | J48: 0 | K48: 23047 | L48: 8725 | M48: 31772 | N48: 1 | O48: 23047
A49: 5611 | B49: Liberia | C49: LBR | D49: Lofa | E49: Lofa | F49: 2121 | G49: Zorzor | H49: Moderate | I49: 0 | J49: 0 | K49: 14878 | L49: 5632 | M49: 20510 | N49: 1 | O49: 14878
A50: 5612 | B50: Liberia | C50: LBR | D50: Margibi | E50: Margibi | F50: 2122 | G50: Firestone | H50: Moderate | I50: 8431 | J50: 30703 | K50: 22740 | L50: 8608 | M50: 31348 | N50: 0 | O50: 0
A51: 5613 | B51: Liberia | C51: LBR | D51: Margibi | E51: Margibi | F51: 2122 | G51: Gibi | H51: Moderate | I51: 3391 | J51: 12347 | K51: 9144 | L51: 3462 | M51: 12606 | N51: 0 | O51: 0
A52: 5614 | B52: Liberia | C52: LBR | D52: Margibi | E52: Margibi | F52: 2122 | G52: Kakata | H52: Moderate | I52: 11085 | J52: 40367 | K52: 29897 | L52: 11318 | M52: 41215 | N52: 0 | O52: 0
A53: 5615 | B53: Liberia | C53: LBR | D53: Margibi | E53: Margibi | F53: 2122 | G53: Mambah-Kaba | H53: Moderate | I53: 6247 | J53: 22748 | K53: 16848 | L53: 6379 | M53: 23227 | N53: 0 | O53: 0
A54: 5616 | B54: Liberia | C54: LBR | D54: Maryland | E54: Maryland | F54: 2123 | G54: Barrobo Farjah | H54: Moderate | I54: 0 | J54: 0 | K54: 3117 | L54: 1180 | M54: 4297 | N54: 1 | O54: 3117
A55: 5617 | B55: Liberia | C55: LBR | D55: Maryland | E55: Maryland | F55: 2123 | G55: Barrobo Whojah | H55: Moderate | I55: 0 | J55: 0 | K55: 5157 | L55: 1952 | M55: 7109 | N55: 1 | O55: 5157
A56: 5618 | B56: Liberia | C56: LBR | D56: Maryland | E56: Maryland | F56: 2123 | G56: Harper | H56: Moderate | I56: 0 | J56: 0 | K56: 15130 | L56: 5728 | M56: 20858 | N56: 1 | O56: 15130
A57: 5619 | B57: Liberia | C57: LBR | D57: Maryland | E57: Maryland | F57: 2123 | G57: Karluway 1 | H57: High | I57: 7660 | J57: 11706 | K57: 4131 | L57: 7820 | M57: 11951 | N57: 1 | O57: 4131
A58: 5620 | B58: Liberia | C58: LBR | D58: Maryland | E58: Maryland | F58: 2123 | G58: Karluway 2 | H58: High | I58: 11271 | J58: 17225 | K58: 6080 | L58: 11508 | M58: 17588 | N58: 1 | O58: 6080
A59: 5621 | B59: Liberia | C59: LBR | D59: Maryland | E59: Maryland | F59: 2123 | G59: Pleebo | H59: High | I59: 32076 | J59: 49022 | K59: 17301 | L59: 32749 | M59: 50050 | N59: 1 | O59: 17301
A60: 5622 | B60: Liberia | C60: LBR | D60: Montserrado | E60: Montserrado | F60: 2124 | G60: Bushrod | H60: Low | I60: 0 | J60: 0 | K60: 12332 | L60: 0 | M60: 12332 | N60: 1 | O60: 12332
A61: 5623 | B61: Liberia | C61: LBR | D61: Montserrado | E61: Montserrado | F61: 2124 | G61: Careysburg | H61: Moderate | I61: 759 | J61: 2763 | K61: 2046 | L61: 775 | M61: 2821 | N61: 0 | O61: 0
A62: 5624 | B62: Liberia | C62: LBR | D62: Montserrado | E62: Montserrado | F62: 2124 | G62: Central Monrovia | H62: Low | I62: 0 | J62: 0 | K62: 17298 | L62: 0 | M62: 17298 | N62: 1 | O62: 17298
A63: 5625 | B63: Liberia | C63: LBR | D63: Montserrado | E63: Montserrado | F63: 2124 | G63: Commonwealth 1 | H63: Moderate | I63: 3886 | J63: 14151 | K63: 10481 | L63: 3968 | M63: 14449 | N63: 0 | O63: 0
A64: 5626 | B64: Liberia | C64: LBR | D64: Montserrado | E64: Montserrado | F64: 2124 | G64: Somalia Drive | H64: Low | I64: 0 | J64: 0 | K64: 9471 | L64: 0 | M64: 9471 | N64: 1 | O64: 9471
A65: 5627 | B65: Liberia | C65: LBR | D65: Montserrado | E65: Montserrado | F65: 2124 | G65: St Paul River | H65: Moderate | I65: 1814 | J65: 6607 | K65: 4893 | L65: 1852 | M65: 6745 | N65: 0 | O65: 0
A66: 5628 | B66: Liberia | C66: LBR | D66: Montserrado | E66: Montserrado | F66: 2124 | G66: Todee | H66: Moderate | I66: 636 | J66: 2315 | K66: 1714 | L66: 649 | M66: 2363 | N66: 0 | O66: 0
A67: 5629 | B67: Liberia | C67: LBR | D67: Nimba | E67: Nimba | F67: 2125 | G67: Gbehlay-Geh | H67: High | I67: 51539 | J67: 78767 | K67: 27800 | L67: 52621 | M67: 80421 | N67: 1 | O67: 27800
A68: 5630 | B68: Liberia | C68: LBR | D68: Nimba | E68: Nimba | F68: 2125 | G68: Saclepea Mah | H68: Moderate | I68: 0 | J68: 0 | K68: 30026 | L68: 11367 | M68: 41393 | N68: 1 | O68: 30026
A69: 5631 | B69: Liberia | C69: LBR | D69: Nimba | E69: Nimba | F69: 2125 | G69: Sanniquelleh Mahn | H69: Moderate | I69: 0 | J69: 0 | K69: 46362 | L69: 17551 | M69: 63913 | N69: 1 | O69: 46362
A70: 5632 | B70: Liberia | C70: LBR | D70: Nimba | E70: Nimba | F70: 2125 | G70: Tappita | H70: Moderate | I70: 0 | J70: 0 | K70: 25619 | L70: 9699 | M70: 35318 | N70: 1 | O70: 25619
A71: 5633 | B71: Liberia | C71: LBR | D71: Nimba | E71: Nimba | F71: 2125 | G71: Yarwein Mehnsohnneh | H71: High | I71: 20546 | J71: 31400 | K71: 11082 | L71: 20977 | M71: 32059 | N71: 1 | O71: 11082
A72: 5634 | B72: Liberia | C72: LBR | D72: Nimba | E72: Nimba | F72: 2125 | G72: Zoe-Geh | H72: Moderate | I72: 0 | J72: 0 | K72: 32167 | L72: 12178 | M72: 44345 | N72: 1 | O72: 32167
A73: 5641 | B73: Liberia | C73: LBR | D73: River Cess | E73: River Cess | F73: 2127 | G73: Central C | H73: Moderate | I73: 1397 | J73: 5088 | K73: 3768 | L73: 1426 | M73: 5194 | N73: 0 | O73: 0
A74: 5642 | B74: Liberia | C74: LBR | D74: River Cess | E74: River Cess | F74: 2127 | G74: Doedian | H74: Moderate | I74: 1559 | J74: 5679 | K74: 4206 | L74: 1592 | M74: 5798 | N74: 0 | O74: 0
A75: 5643 | B75: Liberia | C75: LBR | D75: River Cess | E75: River Cess | F75: 2127 | G75: Joe River | H75: Low | I75: 0 | J75: 0 | K75: 4451 | L75: 0 | M75: 4451 | N75: 1 | O75: 4451
A76: 5644 | B76: Liberia | C76: LBR | D76: River Cess | E76: River Cess | F76: 2127 | G76: Jowein | H76: Low | I76: 0 | J76: 0 | K76: 2540 | L76: 0 | M76: 2540 | N76: 1 | O76: 2540
A77: 5645 | B77: Liberia | C77: LBR | D77: River Cess | E77: River Cess | F77: 2127 | G77: Timbo | H77: Low | I77: 0 | J77: 0 | K77: 9349 | L77: 0 | M77: 9349 | N77: 1 | O77: 9349
A78: 5646 | B78: Liberia | C78: LBR | D78: River Cess | E78: River Cess | F78: 2127 | G78: Yarnie | H78: Low | I78: 0 | J78: 0 | K78: 2471 | L78: 0 | M78: 2471 | N78: 1 | O78: 2471
A79: 5635 | B79: Liberia | C79: LBR | D79: River Gee | E79: River Gee | F79: 2126 | G79: Chedepo | H79: Moderate | I79: 1296 | J79: 4719 | K79: 3495 | L79: 1323 | M79: 4818 | N79: 0 | O79: 0
A80: 5636 | B80: Liberia | C80: LBR | D80: River Gee | E80: River Gee | F80: 2126 | G80: Gbeapo | H80: Moderate | I80: 2786 | J80: 10144 | K80: 7513 | L80: 2845 | M80: 10358 | N80: 0 | O80: 0
A81: 5637 | B81: Liberia | C81: LBR | D81: River Gee | E81: River Gee | F81: 2126 | G81: Potupo | H81: Moderate | I81: 890 | J81: 3242 | K81: 2402 | L81: 909 | M81: 3311 | N81: 0 | O81: 0
A82: 5638 | B82: Liberia | C82: LBR | D82: River Gee | E82: River Gee | F82: 2126 | G82: Sarbo | H82: Moderate | I82: 1703 | J82: 6202 | K82: 4593 | L82: 1739 | M82: 6332 | N82: 0 | O82: 0
A83: 5639 | B83: Liberia | C83: LBR | D83: River Gee | E83: River Gee | F83: 2126 | G83: Tienpo | H83: Low | I83: 0 | J83: 0 | K83: 3935 | L83: 0 | M83: 3935 | N83: 1 | O83: 3935
A84: 5640 | B84: Liberia | C84: LBR | D84: River Gee | E84: River Gee | F84: 2126 | G84: Webbo | H84: Low | I84: 0 | J84: 0 | K84: 3077 | L84: 0 | M84: 3077 | N84: 1 | O84: 3077
A85: 5647 | B85: Liberia | C85: LBR | D85: Sinoe | E85: Sinoe | F85: 2128 | G85: Butaw | H85: Moderate | I85: 0 | J85: 0 | K85: 1223 | L85: 463 | M85: 1686 | N85: 1 | O85: 1223
A86: 5648 | B86: Liberia | C86: LBR | D86: Sinoe | E86: Sinoe | F86: 2128 | G86: Dugbe River | H86: Not endemic | I86: 0 | J86: 0 | K86: 0 | L86: 0 | M86: 0 | N86: 0 | O86: 0
A87: 5649 | B87: Liberia | C87: LBR | D87: Sinoe | E87: Sinoe | F87: 2128 | G87: Greenville | H87: Low | I87: 0 | J87: 0 | K87: 7465 | L87: 0 | M87: 7465 | N87: 0 | O87: 0
A88: 5650 | B88: Liberia | C88: LBR | D88: Sinoe | E88: Sinoe | F88: 2128 | G88: Jeade | H88: Not endemic | I88: 0 | J88: 0 | K88: 0 | L88: 0 | M88: 0 | N88: 0 | O88: 0
A89: 5651 | B89: Liberia | C89: LBR | D89: Sinoe | E89: Sinoe | F89: 2128 | G89: Jedepo | H89: Moderate | I89: 0 | J89: 0 | K89: 2732 | L89: 1034 | M89: 3766 | N89: 1 | O89: 2732
A90: 5652 | B90: Liberia | C90: LBR | D90: Sinoe | E90: Sinoe | F90: 2128 | G90: Kpanyan | H90: Not endemic | I90: 0 | J90: 0 | K90: 0 | L90: 0 | M90: 0 | N90: 0 | O90: 0
A91: 5653 | B91: Liberia | C91: LBR | D91: Sinoe | E91: Sinoe | F91: 2128 | G91: Pynes Town | H91: Low | I91: 0 | J91: 0 | K91: 3281 | L91: 0 | M91: 3281 | N91: 0 | O91: 0
A92: 5654 | B92: Liberia | C92: LBR | D92: Sinoe | E92: Sinoe | F92: 2128 | G92: Tarjuwon | H92: Low | I92: 0 | J92: 0 | K92: 9712 | L92: 0 | M92: 9712 | N92: 0 | O92: 0
A93: 5655 | B93: Liberia | C93: LBR | D93: Sinoe | E93: Sinoe | F93: 2128 | G93: Tarsue | H93: Low | I93: 0 | J93: 0 | K93: 2373 | L93: 0 | M93: 2373 | N93: 0 | O93: 0

Sheet IVM
A1: Ivermectin (IVM)
A2: Administrative structure, eligible population by age group, treatment plan and information about tablets
A4: TOTAL | D4: =SUM(D$9:D$1000) -> 3995159 | G4: =SUM(G$9:G$1000) -> 3802452 | H4: 3995159 | I4: 0 | J4: 3995159 | K4: 0 | L4: 539579.6 | M4: 10646865.6 | N4: 11186445.2 | O4: 0 | P4: 11186445.2 | Q4: 22380
A6: Country administrative structure | D6: Population requiring treatment with IVM | E6: Treatment plan | G6: Target population | K6: Ivermectin (IVM)
A7: Country | B7: Province/State | C7: District | E7: LF | F7: Oncho | G7: LF | H7: Oncho | K7: LF only | L7: Oncho only | M7: LF+Oncho | N7: Total required | O7: Remaining in stock | P7: Tablets to be procured | Q7: Bottles (3mg) 500 tablets
H8: in the district | I8: in villages | J8: total
A9: =IF(INTRO!$E$39="Non-endemic"," ",IF(COUNTRY_INFO!A9=0," ",COUNTRY_INFO!A9)) -> Liberia | B9: =IF(INTRO!$E$39="Non-endemic"," ",IF(COUNTRY_INFO!B9=0," ",COUNTRY_INFO!B9)) -> Bomi | C9: =IF(INTRO!$E$39="Non-endemic"," ",IF(COUNTRY_INFO!C9=0," ",COUNTRY_INFO!C9)) -> Bomi | D9: =IF(INTRO!$E$39="Non-endemic",0,IF(INTRO!$E$39="Endemic but PC is not required",IF(COUNTRY_INFO!$H9=1,COUNTRY_INFO!F9+COUNTRY_INFO!G9,0),IF(COUNTRY_INFO!$H9=1,COUNTRY_INFO!F9+COUNTRY_INFO!G9,IF(COUNTRY_INFO!$I9=1,IF(COUNTRY_INFO!M9>=(COUNTRY_INFO!F9+COUNTRY_INFO!G9),COUNTRY_INFO!F9+COUNTRY_INFO!G9,COUNTRY_INFO!$M9),0)))) -> 96774 | E9: =IF(AND(INTRO!$E$39="Non-endemic",INTRO!$E$37="Non-endemic"),"Not required",IF(INTRO!$E$39="Non-endemic","Treat with DEC",COUNTRY_INFO!P9)) -> 0 | F9: =IF(INTRO!$E$39<>"Non-endemic",COUNTRY_INFO!Q9,"Not required") -> 1 | G9: =IF(COUNTRY_INFO!H9=1, IF($E9=1,$D9, 0),0) -> 0 | H9: =IF(INTRO!$E$39<>"Endemic",0, IF(AND(COUNTRY_INFO!$I9=1,$F9<>0),IF(COUNTRY_INFO!M9>=(COUNTRY_INFO!F9+COUNTRY_INFO!G9),COUNTRY_INFO!F9+COUNTRY_INFO!G9,COUNTRY_INFO!$M9), 0)) -> 96774 | J9: =IF(I9=0,H9,IF(I9>H9,H9,I9)) -> 96774 | K9: =IF(G9<J9,0,IF($E9=1, (G9-J9)*2.8, 0)) -> 0 | L9: =IF($E9<$F9, J9*(F9-E9)*2.8, 0) -> 270967.2 | M9: =IF(AND($E9=1, $F9<>0), J9*2.8, 0) -> 0 | N9: =SUM(K9:M9) -> 270967.2 | O9: 0 | P9: =IF($N9>$O9,$N9-$O9,0) -> 270967.2 | Q9: =ROUNDUP($N9/500,0) -> 542
A10: =IF(INTRO!$E$39="Non-endemic"," ",IF(COUNTRY_INFO!A10=0," ",COUNTRY_INFO!A10)) -> Liberia | B10: =IF(INTRO!$E$39="Non-endemic"," ",IF(COUNTRY_INFO!B10=0," ",COUNTRY_INFO!B10)) -> Bong | C10: =IF(INTRO!$E$39="Non-endemic"," ",IF(COUNTRY_INFO!C10=0," ",COUNTRY_INFO!C10)) -> Bong | D10: =IF(INTRO!$E$39="Non-endemic",0,IF(INTRO!$E$39="Endemic but PC is not required",IF(COUNTRY_INFO!$H10=1,COUNTRY_INFO!F10+COUNTRY_INFO!G10,0),IF(COUNTRY_INFO!$H10=1,COUNTRY_INFO!F10+COUNTRY_INFO!G10,IF(COUNTRY_INFO!$I10=1,IF(COUNTRY_INFO!M10>=(COUNTRY_INFO!F10+COUNTRY_INFO!G10),COUNTRY_INFO!F10+COUNTRY_INFO!G10,COUNTRY_INFO!$M10),0)))) -> 383656 | E10: =IF(AND(INTRO!$E$39="Non-endemic",INTRO!$E$37="Non-endemic"),"Not required",IF(INTRO!$E$39="Non-endemic","Treat with DEC",COUNTRY_INFO!P10)) -> 1 | F10: =IF(INTRO!$E$39<>"Non-endemic",COUNTRY_INFO!Q10,"Not required") -> 1 | G10: =IF(COUNTRY_INFO!H10=1, IF($E10=1,$D10, 0),0) -> 383656 | H10: =IF(INTRO!$E$39<>"Endemic",0, IF(AND(COUNTRY_INFO!$I10=1,$F10<>0),IF(COUNTRY_INFO!M10>=(COUNTRY_INFO!F10+COUNTRY_INFO!G10),COUNTRY_INFO!F10+COUNTRY_INFO!G10,COUNTRY_INFO!$M10), 0)) -> 383656 | J10: 383656 | K10: 0 | L10: 0 | M10: 1074236.8 | N10: 1074236.8 | O10: 0 | P10: 1074236.8 | Q10: 2149
A11: =IF(INTRO!$E$39="Non-endemic"," ",IF(COUNTRY_INFO!A11=0," ",COUNTRY_INFO!A11)) -> Liberia | B11: =IF(INTRO!$E$39="Non-endemic"," ",IF(COUNTRY_INFO!B11=0," ",COUNTRY_INFO!B11)) -> Gbarpolu | C11: =IF(INTRO!$E$39="Non-endemic"," ",IF(COUNTRY_INFO!C11=0," ",COUNTRY_INFO!C11)) -> Gbarpolu | D11: =IF(INTRO!$E$39="Non-endemic",0,IF(INTRO!$E$39="Endemic but PC is not required",IF(COUNTRY_INFO!$H11=1,COUNTRY_INFO!F11+COUNTRY_INFO!G11,0),IF(COUNTRY_INFO!$H11=1,COUNTRY_INFO!F11+COUNTRY_INFO!G11,IF(COUNTRY_INFO!$I11=1,IF(COUNTRY_INFO!M11>=(COUNTRY_INFO!F11+COUNTRY_INFO!G11),COUNTRY_INFO!F11+COUNTRY_INFO!G11,COUNTRY_INFO!$M11),0)))) -> 95933 | E11: =IF(AND(INTRO!$E$39="Non-endemic",INTRO!$E$37="Non-endemic"),"Not required",IF(INTRO!$E$39="Non-endemic","Treat with DEC",COUNTRY_INFO!P11)) -> 0 | F11: =IF(INTRO!$E$39<>"Non-endemic",COUNTRY_INFO!Q11,"Not required") -> 1 | G11: =IF(COUNTRY_INFO!H11=1, IF($E11=1,$D11, 0),0) -> 0 | H11: =IF(INTRO!$E$39<>"Endemic",0, IF(AND(COUNTRY_INFO!$I11=1,$F11<>0),IF(COUNTRY_INFO!M11>=(COUNTRY_INFO!F11+COUNTRY_INFO!G11),COUNTRY_INFO!F11+COUNTRY_INFO!G11,COUNTRY_INFO!$M11), 0)) -> 95933 | J11: 95933 | K11: 0 | L11: 268612.4 | M11: 0 | N11: 268612.4 | O11: 0 | P11: 268612.4 | Q11: 538
A12: =IF(INTRO!$E$39="Non-endemic"," ",IF(COUNTRY_INFO!A12=0," ",COUNTRY_INFO!A12)) -> Liberia | B12: =IF(INTRO!$E$39="Non-endemic"," ",IF(COUNTRY_INFO!B12=0," ",COUNTRY_INFO!B12)) -> Grand Bassa | C12: =IF(INTRO!$E$39="Non-endemic"," ",IF(COUNTRY_INFO!C12=0," ",COUNTRY_INFO!C12)) -> Grand Bassa | D12: =IF(INTRO!$E$39="Non-endemic",0,IF(INTRO!$E$39="Endemic but PC is not required",IF(COUNTRY_INFO!$H12=1,COUNTRY_INFO!F12+COUNTRY_INFO!G12,0),IF(COUNTRY_INFO!$H12=1,COUNTRY_INFO!F12+COUNTRY_INFO!G12,IF(COUNTRY_INFO!$I12=1,IF(COUNTRY_INFO!M12>=(COUNTRY_INFO!F12+COUNTRY_INFO!G12),COUNTRY_INFO!F12+COUNTRY_INFO!G12,COUNTRY_INFO!$M12),0)))) -> 255048 | E12: =IF(AND(INTRO!$E$39="Non-endemic",INTRO!$E$37="Non-endemic"),"Not required",IF(INTRO!$E$39="Non-endemic","Treat with DEC",COUNTRY_INFO!P12)) -> 1 | F12: =IF(INTRO!$E$39<>"Non-endemic",COUNTRY_INFO!Q12,"Not required") -> 1 | G12: =IF(COUNTRY_INFO!H12=1, IF($E12=1,$D12, 0),0) -> 255048 | H12: =IF(INTRO!$E$39<>"Endemic",0, IF(AND(COUNTRY_INFO!$I12=1,$F12<>0),IF(COUNTRY_INFO!M12>=(COUNTRY_INFO!F12+COUNTRY_INFO!G12),COUNTRY_INFO!F12+COUNTRY_INFO!G12,COUNTRY_INFO!$M12), 0)) -> 255048 | J12: 255048 | K12: 0 | L12: 0 | M12: 714134.4 | N12: 714134.4 | O12: 0 | P12: 714134.4 | Q12: 1429
A13: =IF(INTRO!$E$39="Non-endemic"," ",IF(COUNTRY_INFO!A13=0," ",COUNTRY_INFO!A13)) -> Liberia | B13: =IF(INTRO!$E$39="Non-endemic"," ",IF(COUNTRY_INFO!B13=0," ",COUNTRY_INFO!B13)) -> Grand Cape Mount | C13: =IF(INTRO!$E$39="Non-endemic"," ",IF(COUNTRY_INFO!C13=0," ",COUNTRY_INFO!C13)) -> Grand Cape Mount | D13: =IF(INTRO!$E$39="Non-endemic",0,IF(INTRO!$E$39="Endemic but PC is not required",IF(COUNTRY_INFO!$H13=1,COUNTRY_INFO!F13+COUNTRY_INFO!G13,0),IF(COUNTRY_INFO!$H13=1,COUNTRY_INFO!F13+COUNTRY_INFO!G13,IF(COUNTRY_INFO!$I13=1,IF(COUNTRY_INFO!M13>=(COUNTRY_INFO!F13+COUNTRY_INFO!G13),COUNTRY_INFO!F13+COUNTRY_INFO!G13,COUNTRY_INFO!$M13),0)))) -> 146194 | E13: =IF(AND(INTRO!$E$39="Non-endemic",INTRO!$E$37="Non-endemic"),"Not required",IF(INTRO!$E$39="Non-endemic","Treat with DEC",COUNTRY_INFO!P13)) -> 1 | F13: =IF(INTRO!$E$39<>"Non-endemic",COUNTRY_INFO!Q13,"Not required") -> 1 | G13: =IF(COUNTRY_INFO!H13=1, IF($E13=1,$D13, 0),0) -> 146194 | H13: =IF(INTRO!$E$39<>"Endemic",0, IF(AND(COUNTRY_INFO!$I13=1,$F13<>0),IF(COUNTRY_INFO!M13>=(COUNTRY_INFO!F13+COUNTRY_INFO!G13),COUNTRY_INFO!F13+COUNTRY_INFO!G13,COUNTRY_INFO!$M13), 0)) -> 146194 | J13: 146194 | K13: 0 | L13: 0 | M13: 409343.2 | N13: 409343.2 | O13: 0 | P13: 409343.2 | Q13: 819
A14: =IF(INTRO!$E$39="Non-endemic"," ",IF(COUNTRY_INFO!A14=0," ",COUNTRY_INFO!A14)) -> Liberia | B14: =IF(INTRO!$E$39="Non-endemic"," ",IF(COUNTRY_INFO!B14=0," ",COUNTRY_INFO!B14)) -> Grand Gedeh | C14: =IF(INTRO!$E$39="Non-endemic"," ",IF(COUNTRY_INFO!C14=0," ",COUNTRY_INFO!C14)) -> Grand Gedeh | D14: =IF(INTRO!$E$39="Non-endemic",0,IF(INTRO!$E$39="Endemic but PC is not required",IF(COUNTRY_INFO!$H14=1,COUNTRY_INFO!F14+COUNTRY_INFO!G14,0),IF(COUNTRY_INFO!$H14=1,COUNTRY_INFO!F14+COUNTRY_INFO!G14,IF(COUNTRY_INFO!$I14=1,IF(COUNTRY_INFO!M14>=(COUNTRY_INFO!F14+COUNTRY_INFO!G14),COUNTRY_INFO!F14+COUNTRY_INFO!G14,COUNTRY_INFO!$M14),0)))) -> 144104 | E14: =IF(AND(INTRO!$E$39="Non-endemic",INTRO!$E$37="Non-endemic"),"Not required",IF(INTRO!$E$39="Non-endemic","Treat with DEC",COUNTRY_INFO!P14)) -> 1 | F14: =IF(INTRO!$E$39<>"Non-endemic",COUNTRY_INFO!Q14,"Not required") -> 1 | G14: =IF(COUNTRY_INFO!H14=1, IF($E14=1,$D14, 0),0) -> 144104 | H14: =IF(INTRO!$E$39<>"Endemic",0, IF(AND(COUNTRY_INFO!$I14=1,$F14<>0),IF(COUNTRY_INFO!M14>=(COUNTRY_INFO!F14+COUNTRY_INFO!G14),COUNTRY_INFO!F14+COUNTRY_INFO!G14,COUNTRY_INFO!$M14), 0)) -> 144104 | J14: 144104 | K14: 0 | L14: 0 | M14: 403491.2 | N14: 403491.2 | O14: 0 | P14: 403491.2 | Q14: 807
A15: =IF(INTRO!$E$39="Non-endemic"," ",IF(COUNTRY_INFO!A15=0," ",COUNTRY_INFO!A15)) -> Liberia | B15: =IF(INTRO!$E$39="Non-endemic"," ",IF(COUNTRY_INFO!B15=0," ",COUNTRY_INFO!B15)) -> Grand Kru | C15: =IF(INTRO!$E$39="Non-endemic"," ",IF(COUNTRY_INFO!C15=0," ",COUNTRY_INFO!C15)) -> Grand Kru | D15: =IF(INTRO!$E$39="Non-endemic",0,IF(INTRO!$E$39="Endemic but PC is not required",IF(COUNTRY_INFO!$H15=1,COUNTRY_INFO!F15+COUNTRY_INFO!G15,0),IF(COUNTRY_INFO!$H15=1,COUNTRY_INFO!F15+COUNTRY_INFO!G15,IF(COUNTRY_INFO!$I15=1,IF(COUNTRY_INFO!M15>=(COUNTRY_INFO!F15+COUNTRY_INFO!G15),COUNTRY_INFO!F15+COUNTRY_INFO!G15,COUNTRY_INFO!$M15),0)))) -> 66627 | E15: =IF(AND(INTRO!$E$39="Non-endemic",INTRO!$E$37="Non-endemic"),"Not required",IF(INTRO!$E$39="Non-endemic","Treat with DEC",COUNTRY_INFO!P15)) -> 1 | F15: =IF(INTRO!$E$39<>"Non-endemic",COUNTRY_INFO!Q15,"Not required") -> 1 | G15: =IF(COUNTRY_INFO!H15=1, IF($E15=1,$D15, 0),0) -> 66627 | H15: =IF(INTRO!$E$39<>"Endemic",0, IF(AND(COUNTRY_INFO!$I15=1,$F15<>0),IF(COUNTRY_INFO!M15>=(COUNTRY_INFO!F15+COUNTRY_INFO!G15),COUNTRY_INFO!F15+COUNTRY_INFO!G15,COUNTRY_INFO!$M15), 0)) -> 66627 | J15: 66627 | K15: 0 | L15: 0 | M15: 186555.6 | N15: 186555.6 | O15: 0 | P15: 186555.6 | Q15: 374
A16: =IF(INTRO!$E$39="Non-endemic"," ",IF(COUNTRY_INFO!A16=0," ",COUNTRY_INFO!A16)) -> Liberia | B16: =IF(INTRO!$E$39="Non-endemic"," ",IF(COUNTRY_INFO!B16=0," ",COUNTRY_INFO!B16)) -> Lofa | C16: =IF(INTRO!$E$39="Non-endemic"," ",IF(COUNTRY_INFO!C16=0," ",COUNTRY_INFO!C16)) -> Lofa | D16: =IF(INTRO!$E$39="Non-endemic",0,IF(INTRO!$E$39="Endemic but PC is not required",IF(COUNTRY_INFO!$H16=1,COUNTRY_INFO!F16+COUNTRY_INFO!G16,0),IF(COUNTRY_INFO!$H16=1,COUNTRY_INFO!F16+COUNTRY_INFO!G16,IF(COUNTRY_INFO!$I16=1,IF(COUNTRY_INFO!M16>=(COUNTRY_INFO!F16+COUNTRY_INFO!G16),COUNTRY_INFO!F16+COUNTRY_INFO!G16,COUNTRY_INFO!$M16),0)))) -> 318518 | E16: =IF(AND(INTRO!$E$39="Non-endemic",INTRO!$E$37="Non-endemic"),"Not required",IF(INTRO!$E$39="Non-endemic","Treat with DEC",COUNTRY_INFO!P16)) -> 1 | F16: =IF(INTRO!$E$39<>"Non-endemic",COUNTRY_INFO!Q16,"Not required") -> 1 | G16: =IF(COUNTRY_INFO!H16=1, IF($E16=1,$D16, 0),0) -> 318518 | H16: =IF(INTRO!$E$39<>"Endemic",0, IF(AND(COUNTRY_INFO!$I16=1,$F16<>0),IF(COUNTRY_INFO!M16>=(COUNTRY_INFO!F16+COUNTRY_INFO!G16),COUNTRY_INFO!F16+COUNTRY_INFO!G16,COUNTRY_INFO!$M16), 0)) -> 318518 | J16: 318518 | K16: 0 | L16: 0 | M16: 891850.4 | N16: 891850.4 | O16: 0 | P16: 891850.4 | Q16: 1784
A17: =IF(INTRO!$E$39="Non-endemic"," ",IF(COUNTRY_INFO!A17=0," ",COUNTRY_INFO!A17)) -> Liberia | B17: =IF(INTRO!$E$39="Non-endemic"," ",IF(COUNTRY_INFO!B17=0," ",COUNTRY_INFO!B17)) -> Margibi | C17: =IF(INTRO!$E$39="Non-endemic"," ",IF(COUNTRY_INFO!C17=0," ",COUNTRY_INFO!C17)) -> Margibi | D17: =IF(INTRO!$E$39="Non-endemic",0,IF(INTRO!$E$39="Endemic but PC is not required",IF(COUNTRY_INFO!$H17=1,COUNTRY_INFO!F17+COUNTRY_INFO!G17,0),IF(COUNTRY_INFO!$H17=1,COUNTRY_INFO!F17+COUNTRY_INFO!G17,IF(COUNTRY_INFO!$I17=1,IF(COUNTRY_INFO!M17>=(COUNTRY_INFO!F17+COUNTRY_INFO!G17),COUNTRY_INFO!F17+COUNTRY_INFO!G17,COUNTRY_INFO!$M17),0)))) -> 241508 | E17: =IF(AND(INTRO!$E$39="Non-endemic",INTRO!$E$37="Non-endemic"),"Not required",IF(INTRO!$E$39="Non-endemic","Treat with DEC",COUNTRY_INFO!P17)) -> 1 | F17: =IF(INTRO!$E$39<>"Non-endemic",COUNTRY_INFO!Q17,"Not required") -> 1 | G17: =IF(COUNTRY_INFO!H17=1, IF($E17=1,$D17, 0),0) -> 241508 | H17: =IF(INTRO!$E$39<>"Endemic",0, IF(AND(COUNTRY_INFO!$I17=1,$F17<>0),IF(COUNTRY_INFO!M17>=(COUNTRY_INFO!F17+COUNTRY_INFO!G17),COUNTRY_INFO!F17+COUNTRY_INFO!G17,COUNTRY_INFO!$M17), 0)) -> 241508 | J17: 241508 | K17: 0 | L17: 0 | M17: 676222.4 | N17: 676222.4 | O17: 0 | P17: 676222.4 | Q17: 1353
A18: =IF(INTRO!$E$39="Non-endemic"," ",IF(COUNTRY_INFO!A18=0," ",COUNTRY_INFO!A18)) -> Liberia | B18: =IF(INTRO!$E$39="Non-endemic"," ",IF(COUNTRY_INFO!B18=0," ",COUNTRY_INFO!B18)) -> Maryland | C18: =IF(INTRO!$E$39="Non-endemic"," ",IF(COUNTRY_INFO!C18=0," ",COUNTRY_INFO!C18)) -> Maryland | D18: =IF(INTRO!$E$39="Non-endemic",0,IF(INTRO!$E$39="Endemic but PC is not required",IF(COUNTRY_INFO!$H18=1,COUNTRY_INFO!F18+COUNTRY_INFO!G18,0),IF(COUNTRY_INFO!$H18=1,COUNTRY_INFO!F18+COUNTRY_INFO!G18,IF(COUNTRY_INFO!$I18=1,IF(COUNTRY_INFO!M18>=(COUNTRY_INFO!F18+COUNTRY_INFO!G18),COUNTRY_INFO!F18+COUNTRY_INFO!G18,COUNTRY_INFO!$M18),0)))) -> 156390 | E18: =IF(AND(INTRO!$E$39="Non-endemic",INTRO!$E$37="Non-endemic"),"Not required",IF(INTRO!$E$39="Non-endemic","Treat with DEC",COUNTRY_INFO!P18)) -> 1 | F18: =IF(INTRO!$E$39<>"Non-endemic",COUNTRY_INFO!Q18,"Not required") -> 1 | G18: =IF(COUNTRY_INFO!H18=1, IF($E18=1,$D18, 0),0) -> 156390 | H18: =IF(INTRO!$E$39<>"Endemic",0, IF(AND(COUNTRY_INFO!$I18=1,$F18<>0),IF(COUNTRY_INFO!M18>=(COUNTRY_INFO!F18+COUNTRY_INFO!G18),COUNTRY_INFO!F18+COUNTRY_INFO!G18,COUNTRY_INFO!$M18), 0)) -> 156390 | J18: 156390 | K18: 0 | L18: 0 | M18: 437892 | N18: 437892 | O18: 0 | P18: 437892 | Q18: 876
A19: =IF(INTRO!$E$39="Non-endemic"," ",IF(COUNTRY_INFO!A19=0," ",COUNTRY_INFO!A19)) -> Liberia | B19: =IF(INTRO!$E$39="Non-endemic"," ",IF(COUNTRY_INFO!B19=0," ",COUNTRY_INFO!B19)) -> Montserrado | C19: =IF(INTRO!$E$39="Non-endemic"," ",IF(COUNTRY_INFO!C19=0," ",COUNTRY_INFO!C19)) -> Montserrado | D19: =IF(INTRO!$E$39="Non-endemic",0,IF(INTRO!$E$39="Endemic but PC is not required",IF(COUNTRY_INFO!$H19=1,COUNTRY_INFO!F19+COUNTRY_INFO!G19,0),IF(COUNTRY_INFO!$H19=1,COUNTRY_INFO!F19+COUNTRY_INFO!G19,IF(COUNTRY_INFO!$I19=1,IF(COUNTRY_INFO!M19>=(COUNTRY_INFO!F19+COUNTRY_INFO!G19),COUNTRY_INFO!F19+COUNTRY_INFO!G19,COUNTRY_INFO!$M19),0)))) -> 1281966 | E19: =IF(AND(INTRO!$E$39="Non-endemic",INTRO!$E$37="Non-endemic"),"Not required",IF(INTRO!$E$39="Non-endemic","Treat with DEC",COUNTRY_INFO!P19)) -> 1 | F19: =IF(INTRO!$E$39<>"Non-endemic",COUNTRY_INFO!Q19,"Not required") -> 1 | G19: =IF(COUNTRY_INFO!H19=1, IF($E19=1,$D19, 0),0) -> 1281966 | H19: =IF(INTRO!$E$39<>"Endemic",0, IF(AND(COUNTRY_INFO!$I19=1,$F19<>0),IF(COUNTRY_INFO!M19>=(COUNTRY_INFO!F19+COUNTRY_INFO!G19),COUNTRY_INFO!F19+COUNTRY_INFO!G19,COUNTRY_INFO!$M19), 0)) -> 1281966 | J19: 1281966 | K19: 0 | L19: 0 | M19: 3589504.8 | N19: 3589504.8 | O19: 0 | P19: 3589504.8 | Q19: 7180
A20: =IF(INTRO!$E$39="Non-endemic"," ",IF(COUNTRY_INFO!A20=0," ",COUNTRY_INFO!A20)) -> Liberia | B20: =IF(INTRO!$E$39="Non-endemic"," ",IF(COUNTRY_INFO!B20=0," ",COUNTRY_INFO!B20)) -> Nimba | C20: =IF(INTRO!$E$39="Non-endemic"," ",IF(COUNTRY_INFO!C20=0," ",COUNTRY_INFO!C20)) -> Nimba | D20: =IF(INTRO!$E$39="Non-endemic",0,IF(INTRO!$E$39="Endemic but PC is not required",IF(COUNTRY_INFO!$H20=1,COUNTRY_INFO!F20+COUNTRY_INFO!G20,0),IF(COUNTRY_INFO!$H20=1,COUNTRY_INFO!F20+COUNTRY_INFO!G20,IF(COUNTRY_INFO!$I20=1,IF(COUNTRY_INFO!M20>=(COUNTRY_INFO!F20+COUNTRY_INFO!G20),COUNTRY_INFO!F20+COUNTRY_INFO!G20,COUNTRY_INFO!$M20),0)))) -> 531540 | E20: =IF(AND(INTRO!$E$39="Non-endemic",INTRO!$E$37="Non-endemic"),"Not required",IF(INTRO!$E$39="Non-endemic","Treat with DEC",COUNTRY_INFO!P20)) -> 1 | F20: =IF(INTRO!$E$39<>"Non-endemic",COUNTRY_INFO!Q20,"Not required") -> 1 | G20: =IF(COUNTRY_INFO!H20=1, IF($E20=1,$D20, 0),0) -> 531540 | H20: =IF(INTRO!$E$39<>"Endemic",0, IF(AND(COUNTRY_INFO!$I20=1,$F20<>0),IF(COUNTRY_INFO!M20>=(COUNTRY_INFO!F20+COUNTRY_INFO!G20),COUNTRY_INFO!F20+COUNTRY_INFO!G20,COUNTRY_INFO!$M20), 0)) -> 531540 | J20: 531540 | K20: 0 | L20: 0 | M20: 1488312 | N20: 1488312 | O20: 0 | P20: 1488312 | Q20: 2977
A21: =IF(INTRO!$E$39="Non-endemic"," ",IF(COUNTRY_INFO!A21=0," ",COUNTRY_INFO!A21)) -> Liberia | B21: =IF(INTRO!$E$39="Non-endemic"," ",IF(COUNTRY_INFO!B21=0," ",COUNTRY_INFO!B21)) -> Rivercess | C21: =IF(INTRO!$E$39="Non-endemic"," ",IF(COUNTRY_INFO!C21=0," ",COUNTRY_INFO!C21)) -> Rivercess | D21: =IF(INTRO!$E$39="Non-endemic",0,IF(INTRO!$E$39="Endemic but PC is not required",IF(COUNTRY_INFO!$H21=1,COUNTRY_INFO!F21+COUNTRY_INFO!G21,0),IF(COUNTRY_INFO!$H21=1,COUNTRY_INFO!F21+COUNTRY_INFO!G21,IF(COUNTRY_INFO!$I21=1,IF(COUNTRY_INFO!M21>=(COUNTRY_INFO!F21+COUNTRY_INFO!G21),COUNTRY_INFO!F21+COUNTRY_INFO!G21,COUNTRY_INFO!$M21),0)))) -> 82268 | E21: =IF(AND(INTRO!$E$39="Non-endemic",INTRO!$E$37="Non-endemic"),"Not required",IF(INTRO!$E$39="Non-endemic","Treat with DEC",COUNTRY_INFO!P21)) -> 1 | F21: =IF(INTRO!$E$39<>"Non-endemic",COUNTRY_INFO!Q21,"Not required") -> 1 | G21: =IF(COUNTRY_INFO!H21=1, IF($E21=1,$D21, 0),0) -> 82268 | H21: =IF(INTRO!$E$39<>"Endemic",0, IF(AND(COUNTRY_INFO!$I21=1,$F21<>0),IF(COUNTRY_INFO!M21>=(COUNTRY_INFO!F21+COUNTRY_INFO!G21),COUNTRY_INFO!F21+COUNTRY_INFO!G21,COUNTRY_INFO!$M21), 0)) -> 82268 | J21: 82268 | K21: 0 | L21: 0 | M21: 230350.4 | N21: 230350.4 | O21: 0 | P21: 230350.4 | Q21: 461
A22: =IF(INTRO!$E$39="Non-endemic"," ",IF(COUNTRY_INFO!A22=0," ",COUNTRY_INFO!A22)) -> Liberia | B22: =IF(INTRO!$E$39="Non-endemic"," ",IF(COUNTRY_INFO!B22=0," ",COUNTRY_INFO!B22)) -> Rivergee | C22: =IF(INTRO!$E$39="Non-endemic"," ",IF(COUNTRY_INFO!C22=0," ",COUNTRY_INFO!C22)) -> Rivergee | D22: =IF(INTRO!$E$39="Non-endemic",0,IF(INTRO!$E$39="Endemic but PC is not required",IF(COUNTRY_INFO!$H22=1,COUNTRY_INFO!F22+COUNTRY_INFO!G22,0),IF(COUNTRY_INFO!$H22=1,COUNTRY_INFO!F22+COUNTRY_INFO!G22,IF(COUNTRY_INFO!$I22=1,IF(COUNTRY_INFO!M22>=(COUNTRY_INFO!F22+COUNTRY_INFO!G22),COUNTRY_INFO!F22+COUNTRY_INFO!G22,COUNTRY_INFO!$M22),0)))) -> 76838 | E22: =IF(AND(INTRO!$E$39="Non-endemic",INTRO!$E$37="Non-endemic"),"Not required",IF(INTRO!$E$39="Non-endemic","Treat with DEC",COUNTRY_INFO!P22)) -> 1 | F22: =IF(INTRO!$E$39<>"Non-endemic",COUNTRY_INFO!Q22,"Not required") -> 1 | G22: =IF(COUNTRY_INFO!H22=1, IF($E22=1,$D22, 0),0) -> 76838 | H22: =IF(INTRO!$E$39<>"Endemic",0, IF(AND(COUNTRY_INFO!$I22=1,$F22<>0),IF(COUNTRY_INFO!M22>=(COUNTRY_INFO!F22+COUNTRY_INFO!G22),COUNTRY_INFO!F22+COUNTRY_INFO!G22,COUNTRY_INFO!$M22), 0)) -> 76838 | J22: 76838 | K22: 0 | L22: 0 | M22: 215146.4 | N22: 215146.4 | O22: 0 | P22: 215146.4 | Q22: 431
A23: =IF(INTRO!$E$39="Non-endemic"," ",IF(COUNTRY_INFO!A23=0," ",COUNTRY_INFO!A23)) -> Liberia | B23: =IF(INTRO!$E$39="Non-endemic"," ",IF(COUNTRY_INFO!B23=0," ",COUNTRY_INFO!B23)) -> Sinoe | C23: =IF(INTRO!$E$39="Non-endemic"," ",IF(COUNTRY_INFO!C23=0," ",COUNTRY_INFO!C23)) -> Sinoe | D23: =IF(INTRO!$E$39="Non-endemic",0,IF(INTRO!$E$39="Endemic but PC is not required",IF(COUNTRY_INFO!$H23=1,COUNTRY_INFO!F23+COUNTRY_INFO!G23,0),IF(COUNTRY_INFO!$H23=1,COUNTRY_INFO!F23+COUNTRY_INFO!G23,IF(COUNTRY_INFO!$I23=1,IF(COUNTRY_INFO!M23>=(COUNTRY_INFO!F23+COUNTRY_INFO!G23),COUNTRY_INFO!F23+COUNTRY_INFO!G23,COUNTRY_INFO!$M23),0)))) -> 117795 | E23: =IF(AND(INTRO!$E$39="Non-endemic",INTRO!$E$37="Non-endemic"),"Not required",IF(INTRO!$E$39="Non-endemic","Treat with DEC",COUNTRY_INFO!P23)) -> 1 | F23: =IF(INTRO!$E$39<>"Non-endemic",COUNTRY_INFO!Q23,"Not required") -> 1 | G23: =IF(COUNTRY_INFO!H23=1, IF($E23=1,$D23, 0),0) -> 117795 | H23: =IF(INTRO!$E$39<>"Endemic",0, IF(AND(COUNTRY_INFO!$I23=1,$F23<>0),IF(COUNTRY_INFO!M23>=(COUNTRY_INFO!F23+COUNTRY_INFO!G23),COUNTRY_INFO!F23+COUNTRY_INFO!G23,COUNTRY_INFO!$M23), 0)) -> 117795 | J23: 117795 | K23: 0 | L23: 0 | M23: 329826 | N23: 329826 | O23: 0 | P23: 329826 | Q23: 660

Sheet IVM+ (hidden)
A1: Ivermectin (IVM) for IDA therapy
A2: Administrative structure, eligible population by age group, treatment plan and information about tablets
A4: TOTAL | E4: =SUM(E$9:E$1000) -> 0 | F4: 0 | G4: 0 | H4: 0 | I4: 0
A6: Country administrative structure | D6: Treatment plan | E6: Population targeted for treatment with IVM (IDA therapy) | F6: Ivermectin (IVM)
A7: Country | B7: Province/State | C7: District | D7: LF | F7: Total required | G7: Remaining in stock | H7: Tablets to be procured | I7: Bottles (3mg) 500 tablets
A9: =IF(AND(INTRO!$E$37="Endemic",INTRO!$E$39="Non-endemic"),IF(COUNTRY_INFO!A9=0," ",COUNTRY_INFO!A9)," ") ->  | B9: =IF(AND(INTRO!$E$37="Endemic",INTRO!$E$39="Non-endemic"),IF(COUNTRY_INFO!B9=0," ",COUNTRY_INFO!B9)," ") ->  | C9: =IF(AND(INTRO!$E$37="Endemic",INTRO!$E$39="Non-endemic"),IF(COUNTRY_INFO!C9=0," ",COUNTRY_INFO!C9)," ") ->  | D9: =IF(COUNTRY_INFO!T9<>"",COUNTRY_INFO!P9,0) -> 0 | E9: =IF(AND(COUNTRY_INFO!T9<>"",COUNTRY_INFO!$H9=1),COUNTRY_INFO!F9+COUNTRY_INFO!G9,0) -> 0 | F9: =E9*2.8 -> 0 | H9: =IF($F9>$G9,$F9-$G9,0) -> 0 | I9: =ROUNDUP($F9/500,0) -> 0
A10: =IF(AND(INTRO!$E$37="Endemic",INTRO!$E$39="Non-endemic"),IF(COUNTRY_INFO!A10=0," ",COUNTRY_INFO!A10)," ") ->  | B10: =IF(AND(INTRO!$E$37="Endemic",INTRO!$E$39="Non-endemic"),IF(COUNTRY_INFO!B10=0," ",COUNTRY_INFO!B10)," ") ->  | C10: =IF(AND(INTRO!$E$37="Endemic",INTRO!$E$39="Non-endemic"),IF(COUNTRY_INFO!C10=0," ",COUNTRY_INFO!C10)," ") ->  | D10: =IF(COUNTRY_INFO!T10<>"",COUNTRY_INFO!P10,0) -> 0 | E10: =IF(AND(COUNTRY_INFO!T10<>"",COUNTRY_INFO!$H10=1),COUNTRY_INFO!F10+COUNTRY_INFO!G10,0) -> 0 | F10: 0 | H10: 0 | I10: 0
A11: =IF(AND(INTRO!$E$37="Endemic",INTRO!$E$39="Non-endemic"),IF(COUNTRY_INFO!A11=0," ",COUNTRY_INFO!A11)," ") ->  | B11: =IF(AND(INTRO!$E$37="Endemic",INTRO!$E$39="Non-endemic"),IF(COUNTRY_INFO!B11=0," ",COUNTRY_INFO!B11)," ") ->  | C11: =IF(AND(INTRO!$E$37="Endemic",INTRO!$E$39="Non-endemic"),IF(COUNTRY_INFO!C11=0," ",COUNTRY_INFO!C11)," ") ->  | D11: =IF(COUNTRY_INFO!T11<>"",COUNTRY_INFO!P11,0) -> 0 | E11: =IF(AND(COUNTRY_INFO!T11<>"",COUNTRY_INFO!$H11=1),COUNTRY_INFO!F11+COUNTRY_INFO!G11,0) -> 0 | F11: 0 | H11: 0 | I11: 0
A12: =IF(AND(INTRO!$E$37="Endemic",INTRO!$E$39="Non-endemic"),IF(COUNTRY_INFO!A12=0," ",COUNTRY_INFO!A12)," ") ->  | B12: =IF(AND(INTRO!$E$37="Endemic",INTRO!$E$39="Non-endemic"),IF(COUNTRY_INFO!B12=0," ",COUNTRY_INFO!B12)," ") ->  | C12: =IF(AND(INTRO!$E$37="Endemic",INTRO!$E$39="Non-endemic"),IF(COUNTRY_INFO!C12=0," ",COUNTRY_INFO!C12)," ") ->  | D12: =IF(COUNTRY_INFO!T12<>"",COUNTRY_INFO!P12,0) -> 0 | E12: =IF(AND(COUNTRY_INFO!T12<>"",COUNTRY_INFO!$H12=1),COUNTRY_INFO!F12+COUNTRY_INFO!G12,0) -> 0 | F12: 0 | H12: 0 | I12: 0
A13: =IF(AND(INTRO!$E$37="Endemic",INTRO!$E$39="Non-endemic"),IF(COUNTRY_INFO!A13=0," ",COUNTRY_INFO!A13)," ") ->  | B13: =IF(AND(INTRO!$E$37="Endemic",INTRO!$E$39="Non-endemic"),IF(COUNTRY_INFO!B13=0," ",COUNTRY_INFO!B13)," ") ->  | C13: =IF(AND(INTRO!$E$37="Endemic",INTRO!$E$39="Non-endemic"),IF(COUNTRY_INFO!C13=0," ",COUNTRY_INFO!C13)," ") ->  | D13: =IF(COUNTRY_INFO!T13<>"",COUNTRY_INFO!P13,0) -> 0 | E13: =IF(AND(COUNTRY_INFO!T13<>"",COUNTRY_INFO!$H13=1),COUNTRY_INFO!F13+COUNTRY_INFO!G13,0) -> 0 | F13: 0 | H13: 0 | I13: 0
A14: =IF(AND(INTRO!$E$37="Endemic",INTRO!$E$39="Non-endemic"),IF(COUNTRY_INFO!A14=0," ",COUNTRY_INFO!A14)," ") ->  | B14: =IF(AND(INTRO!$E$37="Endemic",INTRO!$E$39="Non-endemic"),IF(COUNTRY_INFO!B14=0," ",COUNTRY_INFO!B14)," ") ->  | C14: =IF(AND(INTRO!$E$37="Endemic",INTRO!$E$39="Non-endemic"),IF(COUNTRY_INFO!C14=0," ",COUNTRY_INFO!C14)," ") ->  | D14: =IF(COUNTRY_INFO!T14<>"",COUNTRY_INFO!P14,0) -> 0 | E14: =IF(AND(COUNTRY_INFO!T14<>"",COUNTRY_INFO!$H14=1),COUNTRY_INFO!F14+COUNTRY_INFO!G14,0) -> 0 | F14: 0 | H14: 0 | I14: 0
A15: =IF(AND(INTRO!$E$37="Endemic",INTRO!$E$39="Non-endemic"),IF(COUNTRY_INFO!A15=0," ",COUNTRY_INFO!A15)," ") ->  | B15: =IF(AND(INTRO!$E$37="Endemic",INTRO!$E$39="Non-endemic"),IF(COUNTRY_INFO!B15=0," ",COUNTRY_INFO!B15)," ") ->  | C15: =IF(AND(INTRO!$E$37="Endemic",INTRO!$E$39="Non-endemic"),IF(COUNTRY_INFO!C15=0," ",COUNTRY_INFO!C15)," ") ->  | D15: =IF(COUNTRY_INFO!T15<>"",COUNTRY_INFO!P15,0) -> 0 | E15: =IF(AND(COUNTRY_INFO!T15<>"",COUNTRY_INFO!$H15=1),COUNTRY_INFO!F15+COUNTRY_INFO!G15,0) -> 0 | F15: 0 | H15: 0 | I15: 0
A16: =IF(AND(INTRO!$E$37="Endemic",INTRO!$E$39="Non-endemic"),IF(COUNTRY_INFO!A16=0," ",COUNTRY_INFO!A16)," ") ->  | B16: =IF(AND(INTRO!$E$37="Endemic",INTRO!$E$39="Non-endemic"),IF(COUNTRY_INFO!B16=0," ",COUNTRY_INFO!B16)," ") ->  | C16: =IF(AND(INTRO!$E$37="Endemic",INTRO!$E$39="Non-endemic"),IF(COUNTRY_INFO!C16=0," ",COUNTRY_INFO!C16)," ") ->  | D16: =IF(COUNTRY_INFO!T16<>"",COUNTRY_INFO!P16,0) -> 0 | E16: =IF(AND(COUNTRY_INFO!T16<>"",COUNTRY_INFO!$H16=1),COUNTRY_INFO!F16+COUNTRY_INFO!G16,0) -> 0 | F16: 0 | H16: 0 | I16: 0
A17: =IF(AND(INTRO!$E$37="Endemic",INTRO!$E$39="Non-endemic"),IF(COUNTRY_INFO!A17=0," ",COUNTRY_INFO!A17)," ") ->  | B17: =IF(AND(INTRO!$E$37="Endemic",INTRO!$E$39="Non-endemic"),IF(COUNTRY_INFO!B17=0," ",COUNTRY_INFO!B17)," ") ->  | C17: =IF(AND(INTRO!$E$37="Endemic",INTRO!$E$39="Non-endemic"),IF(COUNTRY_INFO!C17=0," ",COUNTRY_INFO!C17)," ") ->  | D17: =IF(COUNTRY_INFO!T17<>"",COUNTRY_INFO!P17,0) -> 0 | E17: =IF(AND(COUNTRY_INFO!T17<>"",COUNTRY_INFO!$H17=1),COUNTRY_INFO!F17+COUNTRY_INFO!G17,0) -> 0 | F17: 0 | H17: 0 | I17: 0
A18: =IF(AND(INTRO!$E$37="Endemic",INTRO!$E$39="Non-endemic"),IF(COUNTRY_INFO!A18=0," ",COUNTRY_INFO!A18)," ") ->  | B18: =IF(AND(INTRO!$E$37="Endemic",INTRO!$E$39="Non-endemic"),IF(COUNTRY_INFO!B18=0," ",COUNTRY_INFO!B18)," ") ->  | C18: =IF(AND(INTRO!$E$37="Endemic",INTRO!$E$39="Non-endemic"),IF(COUNTRY_INFO!C18=0," ",COUNTRY_INFO!C18)," ") ->  | D18: =IF(COUNTRY_INFO!T18<>"",COUNTRY_INFO!P18,0) -> 0 | E18: =IF(AND(COUNTRY_INFO!T18<>"",COUNTRY_INFO!$H18=1),COUNTRY_INFO!F18+COUNTRY_INFO!G18,0) -> 0 | F18: 0 | H18: 0 | I18: 0
A19: =IF(AND(INTRO!$E$37="Endemic",INTRO!$E$39="Non-endemic"),IF(COUNTRY_INFO!A19=0," ",COUNTRY_INFO!A19)," ") ->  | B19: =IF(AND(INTRO!$E$37="Endemic",INTRO!$E$39="Non-endemic"),IF(COUNTRY_INFO!B19=0," ",COUNTRY_INFO!B19)," ") ->  | C19: =IF(AND(INTRO!$E$37="Endemic",INTRO!$E$39="Non-endemic"),IF(COUNTRY_INFO!C19=0," ",COUNTRY_INFO!C19)," ") ->  | D19: =IF(COUNTRY_INFO!T19<>"",COUNTRY_INFO!P19,0) -> 0 | E19: =IF(AND(COUNTRY_INFO!T19<>"",COUNTRY_INFO!$H19=1),COUNTRY_INFO!F19+COUNTRY_INFO!G19,0) -> 0 | F19: 0 | H19: 0 | I19: 0
A20: =IF(AND(INTRO!$E$37="Endemic",INTRO!$E$39="Non-endemic"),IF(COUNTRY_INFO!A20=0," ",COUNTRY_INFO!A20)," ") ->  | B20: =IF(AND(INTRO!$E$37="Endemic",INTRO!$E$39="Non-endemic"),IF(COUNTRY_INFO!B20=0," ",COUNTRY_INFO!B20)," ") ->  | C20: =IF(AND(INTRO!$E$37="Endemic",INTRO!$E$39="Non-endemic"),IF(COUNTRY_INFO!C20=0," ",COUNTRY_INFO!C20)," ") ->  | D20: =IF(COUNTRY_INFO!T20<>"",COUNTRY_INFO!P20,0) -> 0 | E20: =IF(AND(COUNTRY_INFO!T20<>"",COUNTRY_INFO!$H20=1),COUNTRY_INFO!F20+COUNTRY_INFO!G20,0) -> 0 | F20: 0 | H20: 0 | I20: 0
A21: =IF(AND(INTRO!$E$37="Endemic",INTRO!$E$39="Non-endemic"),IF(COUNTRY_INFO!A21=0," ",COUNTRY_INFO!A21)," ") ->  | B21: =IF(AND(INTRO!$E$37="Endemic",INTRO!$E$39="Non-endemic"),IF(COUNTRY_INFO!B21=0," ",COUNTRY_INFO!B21)," ") ->  | C21: =IF(AND(INTRO!$E$37="Endemic",INTRO!$E$39="Non-endemic"),IF(COUNTRY_INFO!C21=0," ",COUNTRY_INFO!C21)," ") ->  | D21: =IF(COUNTRY_INFO!T21<>"",COUNTRY_INFO!P21,0) -> 0 | E21: =IF(AND(COUNTRY_INFO!T21<>"",COUNTRY_INFO!$H21=1),COUNTRY_INFO!F21+COUNTRY_INFO!G21,0) -> 0 | F21: 0 | H21: 0 | I21: 0
A22: =IF(AND(INTRO!$E$37="Endemic",INTRO!$E$39="Non-endemic"),IF(COUNTRY_INFO!A22=0," ",COUNTRY_INFO!A22)," ") ->  | B22: =IF(AND(INTRO!$E$37="Endemic",INTRO!$E$39="Non-endemic"),IF(COUNTRY_INFO!B22=0," ",COUNTRY_INFO!B22)," ") ->  | C22: =IF(AND(INTRO!$E$37="Endemic",INTRO!$E$39="Non-endemic"),IF(COUNTRY_INFO!C22=0," ",COUNTRY_INFO!C22)," ") ->  | D22: =IF(COUNTRY_INFO!T22<>"",COUNTRY_INFO!P22,0) -> 0 | E22: =IF(AND(COUNTRY_INFO!T22<>"",COUNTRY_INFO!$H22=1),COUNTRY_INFO!F22+COUNTRY_INFO!G22,0) -> 0 | F22: 0 | H22: 0 | I22: 0
A23: =IF(AND(INTRO!$E$37="Endemic",INTRO!$E$39="Non-endemic"),IF(COUNTRY_INFO!A23=0," ",COUNTRY_INFO!A23)," ") ->  | B23: =IF(AND(INTRO!$E$37="Endemic",INTRO!$E$39="Non-endemic"),IF(COUNTRY_INFO!B23=0," ",COUNTRY_INFO!B23)," ") ->  | C23: =IF(AND(INTRO!$E$37="Endemic",INTRO!$E$39="Non-endemic"),IF(COUNTRY_INFO!C23=0," ",COUNTRY_INFO!C23)," ") ->  | D23: =IF(COUNTRY_INFO!T23<>"",COUNTRY_INFO!P23,0) -> 0 | E23: =IF(AND(COUNTRY_INFO!T23<>"",COUNTRY_INFO!$H23=1),COUNTRY_INFO!F23+COUNTRY_INFO!G23,0) -> 0 | F23: 0 | H23: 0 | I23: 0

Sheet SUMMARY
B2: Joint request for selected PC medicines v.3.1
B4: This form constitutes an official government request to WHO for the supply of the PC medicines. It can be submitted any time before 15 August of the current year for distribution of medicines during the following year, but at least 6-8 months before the planned PC intervention(s) to allow time for reviewing and approval of the request, placing order, manufacturing PC medicines and shipment to the country.
B6: Country | C6: =IF(INTRO!$E$33<>0,INTRO!$E$33," ") -> Liberia | G6: Year | H6: =IF(INTRO!$E$35<>0,INTRO!$E$35," ") -> 2023
B8: Information on PC medicines requested to WHO
B10: PC medicine | C10: Number of tablets | G10: Total number of bottles
C11: Required | D11: In stock | E11: In pipeline | F11: Requested | G11: Required | H11: Requested
B12: Albendazole for LF | C12: 3802452 | D12: 0 | F12: =IF(C12>(D12+E12),C12-D12-E12, 0) -> 3802452 | G12: =IF($C12=0,0, IF($B12="Albendazole for LF", IF($C12=ALB_MBD!$I$4,ALB_MBD!$U$4,ROUNDUP($C12/200,0)), IF($B12="Albendazole for STH (SAC)", IF($C12=ALB_MBD!$L$4,ALB_MBD!$X$4,ROUNDUP($C12/200,0)), IF($B12="Mebendazole (SAC)", IF($C12=ALB_MBD!$P$4,ALB_MBD!$AA$4,ROUNDUP($C12/150,0)), IF($B12="Diethylcarbamazine citrate", IF($C12=DEC!$J$4,DEC!$M$4,ROUNDUP($C12/1000,0)), IF($B12="Praziquantel (SAC)", IF($C12=PZQ!$O$4,PZQ!$R$4,ROUNDUP($C12/1000,0)), IF($B12="Ivermectin", IF($C12=IVM!$N$4,IVM!$Q$4,$C12/500+0.49),0))))))) -> 19018 | H12: =IF($F12=0,0,IF(OR($B12="Albendazole for LF",$B12="Albendazole for STH (SAC)"),$G12-ROUNDUP(($E12+$D12)/200,0),IF($B12="Ivermectin",$G12-ROUNDUP(($E12+$D12)/500,0),IF($B12="Mebendazole (SAC)",$G12-ROUNDUP(($E12+$D12)/150,0),$G12-ROUNDUP(($E12+$D12)/1000,0))))) -> 19018
B13: Albendazole for STH (SAC) | C13: 391312 | D13: 0 | F13: 391312 | G13: =IF($C13=0,0, IF($B13="Albendazole for LF", IF($C13=ALB_MBD!$I$4,ALB_MBD!$U$4,ROUNDUP($C13/200,0)), IF($B13="Albendazole for STH (SAC)", IF($C13=ALB_MBD!$L$4,ALB_MBD!$X$4,ROUNDUP($C13/200,0)), IF($B13="Mebendazole (SAC)", IF($C13=ALB_MBD!$P$4,ALB_MBD!$AA$4,ROUNDUP($C13/150,0)), IF($B13="Diethylcarbamazine citrate", IF($C13=DEC!$J$4,DEC!$M$4,ROUNDUP($C13/1000,0)), IF($B13="Praziquantel (SAC)", IF($C13=PZQ!$O$4,PZQ!$R$4,ROUNDUP($C13/1000,0)), IF($B13="Ivermectin", IF($C13=IVM!$N$4,IVM!$Q$4,$C13/500+0.49),0))))))) -> 1959 | H13: 1959
B14: Praziquantel (SAC) | C14: 2453590 | D14: 0 | E14: 0 | F14: 2453590 | G14: =IF($C14=0,0, IF($B14="Albendazole for LF", IF($C14=ALB_MBD!$I$4,ALB_MBD!$U$4,ROUNDUP($C14/200,0)), IF($B14="Albendazole for STH (SAC)", IF($C14=ALB_MBD!$L$4,ALB_MBD!$X$4,ROUNDUP($C14/200,0)), IF($B14="Mebendazole (SAC)", IF($C14=ALB_MBD!$P$4,ALB_MBD!$AA$4,ROUNDUP($C14/150,0)), IF($B14="Diethylcarbamazine citrate", IF($C14=DEC!$J$4,DEC!$M$4,ROUNDUP($C14/1000,0)), IF($B14="Praziquantel (SAC)", IF($C14=PZQ!$O$4,PZQ!$R$4,ROUNDUP($C14/1000,0)), IF($B14="Ivermectin", IF($C14=IVM!$N$4,IVM!$Q$4,$C14/500+0.49),0))))))) -> 2457 | H14: 2457
B15: Ivermectin | C15: 11186445 | F15: 11186445 | G15: =IF($C15=0,0, IF($B15="Albendazole for LF", IF($C15=ALB_MBD!$I$4,ALB_MBD!$U$4,ROUNDUP($C15/200,0)), IF($B15="Albendazole for STH (SAC)", IF($C15=ALB_MBD!$L$4,ALB_MBD!$X$4,ROUNDUP($C15/200,0)), IF($B15="Mebendazole (SAC)", IF($C15=ALB_MBD!$P$4,ALB_MBD!$AA$4,ROUNDUP($C15/150,0)), IF($B15="Diethylcarbamazine citrate", IF($C15=DEC!$J$4,DEC!$M$4,ROUNDUP($C15/1000,0)), IF($B15="Praziquantel (SAC)", IF($C15=PZQ!$O$4,PZQ!$R$4,ROUNDUP($C15/1000,0)), IF($B15="Ivermectin", IF($C15=IVM!$N$4,IVM!$Q$4,$C15/500+0.49),0))))))) -> 22373.38 | H15: 22373.38
B16: Mebendazole (SAC) | C16: 0 | D16: 0 | F16: 0 | G16: =IF($C16=0,0, IF($B16="Albendazole for LF", IF($C16=ALB_MBD!$I$4,ALB_MBD!$U$4,ROUNDUP($C16/200,0)), IF($B16="Albendazole for STH (SAC)", IF($C16=ALB_MBD!$L$4,ALB_MBD!$X$4,ROUNDUP($C16/200,0)), IF($B16="Mebendazole (SAC)", IF($C16=ALB_MBD!$P$4,ALB_MBD!$AA$4,ROUNDUP($C16/150,0)), IF($B16="Diethylcarbamazine citrate", IF($C16=DEC!$J$4,DEC!$M$4,ROUNDUP($C16/1000,0)), IF($B16="Praziquantel (SAC)", IF($C16=PZQ!$O$4,PZQ!$R$4,ROUNDUP($C16/1000,0)), IF($B16="Ivermectin", IF($C16=IVM!$N$4,IVM!$Q$4,$C16/500+0.49),0))))))) -> 0 | H16: 0
C17: 0 | D17: 0 | F17: 0 | G17: =IF($C17=0,0, IF($B17="Albendazole for LF", IF($C17=ALB_MBD!$I$4,ALB_MBD!$U$4,ROUNDUP($C17/200,0)), IF($B17="Albendazole for STH (SAC)", IF($C17=ALB_MBD!$L$4,ALB_MBD!$X$4,ROUNDUP($C17/200,0)), IF($B17="Mebendazole (SAC)", IF($C17=ALB_MBD!$P$4,ALB_MBD!$AA$4,ROUNDUP($C17/150,0)), IF($B17="Diethylcarbamazine citrate", IF($C17=DEC!$J$4,DEC!$M$4,ROUNDUP($C17/1000,0)), IF($B17="Praziquantel (SAC)", IF($C17=PZQ!$O$4,PZQ!$R$4,ROUNDUP($C17/1000,0)), IF($B17="Ivermectin", IF($C17=IVM!$N$4,IVM!$Q$4,$C17/500+0.49),0))))))) -> 0 | H17: 0
B19: Number of people to be treated with donated medicine ( see User Guide for details )
B21: Disease | G21: Round 1 | H21: Round 2
B22: Lymphatic filariasis | C22: These figures are estimated only for targeted age groups to be treated with donated medicines in areas where treatment for specific disease is required | G22: 3802452 | H22: 0
B23: Onchocerciasis | G23: 11186445 | H23: 0
B24: Schistosomiasis | G24: 2453590
B25: Soil-transmitted helminthiases | G25: 0 | H25: 391312
B29: Information on planned PC interventions
B31: PC medicine | C31: Planned date of the 1st round of PC | E31: Planned date of the 2nd round of PC | G31: Date by which the medicine should arrive to the national warehouse
B32: Albendazole for LF | C32: November | D32: 2023 | G32: May | H32: 2023
B33: Albendazole for STH | C33: May | D33: 2023 | G33: August | H33: 2022
B34: Praziquantel | C34: November | D34: 2023 | G34: August | H34: 2023
B35: Ivermectin | C35: November | D35: 2023 | G35: May | H35: 2023
B36: Mebendazole
B39: Information on PC medicines for treatment of population not targeted with current donation through WHO
B41: PC medicine | C41: Age group | D41: # of people | E41: # of tablets | F41: Specify source | H41: Status
B42: Praziquantel | C42: Adults | D42: 0 | E42: 0 | F42: 0 | H42: Required
B53: Checklist
B54: Submission
B55: What should be submitted?
B56: The supply of the requested medicines should be based on up-to-date epidemiological data, specific usage plans, and capacity for implementation. The following checklist ensures that all necessary forms and information are provided to WHO (in electronic format).
B57: Joint request for selected PC medicines
B58: Joint reporting form
B59: PC epidemiological data reporting form
B61: Availability of funding for implementation in the year for which the medicines are requested
B63: Diseases targeted for implementation | C63: Total treatments | D63: Funding secured for | E63: Source | H63: Amount
B64: =B22 -> Lymphatic filariasis | C64: =SUM(G22:H22) -> 3802452
B65: =B23 -> Onchocerciasis | C65: =SUM(G23:H23) -> 11186445
B66: =B24 -> Schistosomiasis | C66: =SUM(G24:H24) -> 2453590 | D66: Yes | E66: SCI
B67: =B25 -> Soil-transmitted helminthiases | C67: =SUM(G25:H25) -> 391312 | D67: Yes | E67: SCI
B69: Who should fill in the form?
B70: National NTD coordinator should compile all required information needed to complete the request form. In the absence of such a coordinator, specific programme managers should coordinate their respective part. The final single request must be approved by the Ministry of Health.
B72: Information on person(s) who has filled in the form
B74: Title | C74: Name | E74: Phone | G74: Email | H74: Date
B75: ONCHO Programme Manager | C75: Sonnie Ziama Gbewo | E75: 770185215 | G75: ziamasonnie@gmail.com
B76: SCH Programme Manager | C76: Anthony K. Bettee | E76: 886539548 | G76: abettee@gmail.com
B77: LF Programme Manager | C77: Abraham Nyenswah | E77: 777025215 | G77: nyenswahwlah@gmail.com
B80: The WHO recommends that all serious adverse events suspected to be associated with use of PC medicines should be reported in accordance with national Pharmacovigilance guidelines. In the absence of a national Pharmacovigilance system, contact the WHO Neglected Tropical Disease department for guidance.
B81: The WHO is committed to facilitate PC medicines donation with a free-of-charge supply of a) albendazole, mebendazole and praziquantel to the MoH’s national warehouse; and b) diethylcarbamazine citrate to the entry port/airport of recipient countries.
B82: The institution submitting the present request is responsible for a) arranging the offloading of the medicines from the truck and storing it in the national warehouse and subsequent shipment to the final distribution centres; b) for registering the donated medicine, if required, by the relevant national regulatory authorities; and c) for informing about any changes of their PC campaigns (e.g. postpone of the planned MDA date, replacement of NTD coordinator, etc.).
C83: I have read and accept WHO Data Sharing Policy
B84: Name and signature of NTD coordinator or Ministry of Health representative
B85: Date:
B87: Please complete information on shipment and consignee in the worksheet SHIPMENT. Any additional details related to this Request should be provided in the "Additional information" box in the worksheet SHIPMENT.
B88: Please send the national request (signed and in electronic format) to the concerned WR with copy to:
B89: WHO headquarters | C89: PC_JointForms@who.int
B90: WHO Regional Office | C90: Regional Advisor for NTD
B91: Mectizan donation program | C91: Dr Yao Sodahlon, email: ysodahlon@taskforce.org
B93: Please note that your request will be reviewed by an independent panel before approval. The information in this form, joint reporting form and PC epidemiological data reporting form are essential for WHO to ensure efficient usage of medicines. As part of its ongoing monitoring and evaluation activities, and to meet its contractual obligations to donors and other partners, WHO and its appointed agents reserve the right to periodically inspect stocks of the medicines at country level.

Sheet SHIPMENT
B2: Joint request for selected PC medicines v.3.1
B4: Country | C4: =IF(INTRO!$E$33<>0,INTRO!$E$33," ") -> Liberia | G4: Year | H4: =IF(INTRO!$E$35<>0,INTRO!$E$35," ") -> 2023
B6: Information on shipment and consignee
C8: Consignee | F8: Delivery point / Final recipient if different from the consignee
B9: Name | C9: Clement, Dr Lugala Peter Lasuba | F9: Karsor K.Kollie
B10: Department/Unit | C10: Country Representative Office | F10: Health Services/ Neglected Tropical Diseases
B11: Organization | C11: World Health Organization | F11: Ministry of Health
B12: Phone | C12: +231 886516803 | F12: +231777532903/231886532903
B13: Fax
B14: E-mail | C14: wholiberia@who.int | F14: karsorkollie@gmail.com
B15: Mailing address | C15: Mamba Point,P.O.Box 316, 1000 Monrovia 10 Liberia | F15: Congo Town, Monrovia, Liberia
C17: Consignee | F17: Delivery point / Final recipient if different from the consignee
B18: Name | C18: Clement, Dr Lugala Peter Lasuba | F18: Alex Korkolea
B19: Department/Unit | C19: Country Representative Office | F19: Supply Chain Unit/ Central Medicine Store
B20: Organization | C20: World Health Organization | F20: Ministry of Health
B21: Phone | C21: +231 886516803 | F21: +231776150865/231886430576
B22: Fax
B23: E-mail | C23: wholiberia@who.int | F23: alexkorkolea@gmail.com
B24: Mailing address | C24: Mamba Point,P.O.Box 316, 1000 Monrovia 10 Liberia | F24: Caldwell, Bushrod Island, Monrovia, Liberia
C26: Consignee | F26: Delivery point / Final recipient if different from the consignee
B27: Name
B28: Department/Unit
B29: Organization
B30: Phone
B31: Fax
B32: E-mail
B33: Mailing address
B36: Information on import requirements
B38: Is the Import Permit required?
B39: How long does it take to obtain the Import Permit?
B40: Do you require any documents to be submitted together with the Import Permit application?
B41: If YES, please specify here
B42: Does the consignee have to get customs clearance before the shipment can proceed?
B43: Is there any additional information may be helpful in ensuring timely clearance and delivery of medicines to your country?
B44: If YES, please specify here
B46: Additional information

Sheet DATA_POLICY
B2: Joint request for selected PC medicines v.3.1
B4: Country | D4: =IF(INTRO!$E$33<>0,INTRO!$E$33," ") -> Liberia | G4: Year | H4: =IF(INTRO!$E$35<>0,INTRO!$E$35," ") -> 2023
B7: WHO Data Sharing Policy statement
B9: Data are the basis for all sound public health actions and the benefits of data sharing are widely recognized, including scientific and public health benefits. Whenever possible, WHO wishes to promote the sharing of health data, including but not restricted to surveillance and epidemiological data.
B14: ="In this connection, and without prejudice to information sharing and publication pursuant to legally binding instruments, by providing data to WHO, the Ministry of Health of " & D4 & ":" -> In this connection, and without prejudice to information sharing and publication pursuant to legally binding instruments, by providing data to WHO, the Ministry of Health of Liberia:
B18: Confirms that all data to be supplied to WHO hereunder have been collected in accordance with applicable national laws, including data protection laws aimed at protecting the confidentiality of identifiable persons;
B23: ="Agrees that WHO shall be entitled, subject always to measures to ensure the ethical and secure use of the data, and subject always to an appropriate acknowledgement of "&D4&":" -> Agrees that WHO shall be entitled, subject always to measures to ensure the ethical and secure use of the data, and subject always to an appropriate acknowledgement of Liberia:
C27: to publish the data, stripped of any personal identifiers and make the Data available to any interested party on request (to the extent they have not, or not yet, been published by WHO) on terms that allow non-commercial, not-for-profit use of the Data for public health purposes (provided always that publication of the Data shall remain under the control of WHO); to use, compile, aggregate, evaluate and analyse the Data and publish and disseminate the results thereof in conjunction with WHO’s work and in accordance with the Organization’s policies and practices.
B39: =CONCATENATE("Except where data sharing and publication is required under legally binding instruments (IHR, WHO Nomenclature Regulations 1967, etc.), the Ministry of Health of ", D4," may in respect of certain data opt out of (any part of) the above," & " by notifying WHO thereof in writing at the following address, provided that any such notification shall clearly identify the data in question and clearly indicate the scope of the opt-out (in reference to the above), " & "and provided that specific reasons shall be given for the opt out.") -> Except where data sharing and publication is required under legally binding instruments (IHR, WHO Nomenclature Regulations 1967, etc.), the Ministry of Health of Liberia may in respect of certain data opt out of (any part of) the above, by notifying WHO thereof in writing at the following address, provided that any such notification shall clearly identify the data in question and clearly indicate the scope of the opt-out (in reference to the above), and provided that specific reasons shall be given for the opt out.
